{"text_format":"1","workbook":"xlsx","n_sheets":8,"sheets":["Prezenční listina","Startovní listina","Výsledková listina","Družstva","Běh Vírem","mezičasy","Družstva (prac.)","Výsledková listina (2)"],"not_rendered":{"charts":0,"images":10,"macros":1,"external_links":0,"defined_names":10,"comments":0,"pivot_tables":0},"unopened":[],"bounds":{"document_bytes":16777216,"sheet_cells":100000,"rows_first":2000,"rows_last":500,"rows_between":2000,"halvings":0,"cell_chars":16384,"cell_head_chars":4096},"cells_cut":0,"cells_raw":0,"read":"whole","date_system":"1900"}

{"sheet":"Prezenční listina","index":0,"n_rows":152,"n_cols":19,"rows_kept":152,"cut":false,"hidden":true,"merged":[[5,10,5,12],[0,0,0,7]]}
[{"$f":"\"Prezenční listina - Malý svratecký maratón \"&O2","v":"Prezenční listina - Malý svratecký maratón 2015"}]
[null,"Příjmení","Jméno","Narození","Oddíl / Bydliště","Startovní číslo","Adresa (e-mail)","Kategorie",null,null,null,null,null,null,2015,null,null,null,"Pohlaví"]
[1,"Alman","Dušan",1967,"Babice",48,null,{"$f":"IF(S3<>\"Ž\",IF($O$2-D3>39,IF($O$2-D3>49,IF($O$2-D3>59,IF($O$2-D3>69,IF($O$2-D3>90,\"\",\"E\"),\"D\"),\"C\"),\"B\"),\"A\"),IF(S3=\"Ž\",IF($O$2-D3>34,IF($O$2-D3>44,IF($O$2-D3>90,\"\",\"H\"),\"G\"),\"F\")))","v":"B"},null,null,null,null,null,null,null,null,null,null,{"$f":"IF(LEN(B3)=0,\" \",IF(MID(B3,LEN(B3),1)=\"á\",\"Ž\",\"M\"))","v":"M"}]
[{"$f":"IF(B4<>0,A3+1,\"\")","v":2},"Barták","Roland",1965,"Kuřim",77,null,"C",null,null,null,null,null,null,null,null,null,null,"M"]
[{"$f":"IF(B5<>0,A4+1,\"\")","v":3},"Bezrouk","Jiří",1962,"Křtiny",61,null,"C",null,null,null,null,null,null,null,null,null,null,"M"]
[4,"Bohuslav","Martin",1987,"Atletic Třebíč",27,null,"A",null,null,"Rok nastavit v buňce O2",null,null,null,null,null,null,null,"M"]
[5,"Brabenec","Miroslav",1959,"Žďár nad Sázavou",74,null,"C",null,null,null,null,null,null,null,null,null,null,"M"]
[6,"Brabenec","Aleš",1987,"Žďár nad Sázavou",73,null,"A",null,null,null,null,null,null,null,null,null,null,"M"]
[7,"Cahboune","Soufiane",1988,"Club Anfa Athletisme (Maroko)",null,null,"A",null,null,null,null,null,null,null,null,null,null,"M"]
[8,"Cechmaister","Bohumil",1974,"Sokol Přísnotice",64,null,"B",null,null,null,null,null,null,null,null,null,null,"M"]
[9,"Češner","Vladimír",1958,"Odolena Voda",57,null,"C",null,null,null,null,null,null,null,null,null,null,"M"]
[10,"Dušil","Jaroslav",1970,"Brno",50,null,"B",null,null,null,null,null,null,null,null,null,null,"M"]
[11,"Dvorský","Ladislav",1965,"MK Seitl Ostrava",10,"ubytování","C",null,null,null,null,null,null,null,null,null,null,"M"]
[12,"Dýrová Macháčková","Šárka",1983,"Mizunoteam Brno",87,null,"F",null,null,null,null,null,null,null,null,null,null,"Ž"]
[13,"Fousek","Jan",1991,"MK Seitl Ostrava",11,"ubytování","A",null,null,null,null,null,null,null,null,null,null,"M"]
[14,"Fučík","Jaroslav",1974,"Prosetín",100,null,"B",null,null,null,null,null,null,null,null,null,null,"M"]
[15,"Glier","Michal",1982,"Moravská Slávia Brno",82,null,"A",null,null,null,null,null,null,null,null,null,null,"M"]
[16,"Hakl","Martin",1987,"Running with Those that Carit",45,null,"A",null,null,null,null,null,null,null,null,null,null,"M"]
[17,"Hladký","Jiří",1975,"Brno - Nový Lískovec",96,null,"B",null,null,null,null,null,null,null,null,null,null,"M"]
[18,"Holý","Josef",1941,"Moravská Slávia Brno",14,null,"E",null,null,null,null,null,null,null,null,null,null,"M"]
[19,"Horný","Pavel",1973,"VHT Přerov",42,null,"B",null,null,null,null,null,null,null,null,null,null,"M"]
[20,"Hrubý","Milan",1938,"Blansko",21,"doprava","E",null,null,null,null,null,null,null,null,null,null,"M"]
[21,"Hübner","Jan",1978,"SDH Bolešín",59,null,"A",null,null,null,null,null,null,null,null,null,null,"M"]
[22,"Hübner","Tomáš",1979,"SDH Bolešín",null,null,"A",null,null,null,null,null,null,null,null,null,null,"M"]
[23,"Chramosta","Jaroslav",1966,"JABOJA Team Děčín",5,"ubytování 2x","B",null,null,null,null,null,null,null,null,null,null,"M"]
[24,"Jaskulka","Martin",1968,"Kuřim",85,null,"B",null,null,null,null,null,null,null,null,null,null,"M"]
[25,"Johaníková","Lucie",1986,"Moravská Slávia Brno",56,null,"F",null,null,null,null,null,null,null,null,null,null,"Ž"]
[26,"Junga","Stanislav",1971,"Újezd u Brna",103,null,"B",null,null,null,null,null,null,null,null,null,null,"M"]
[27,"Kaše","Jaroslav",1953,"Club běžeckých outsiderů",75,null,"D",null,null,null,null,null,null,null,null,null,null,"M"]
[28,"Klíma","Miroslav",1975,"Itchy & Scratchy",null,null,"B",null,null,null,null,null,null,null,null,null,null,"M"]
[29,"Kocur","Lukáš",1977,"VHS Brno",38,null,"A",null,null,null,null,null,null,null,null,null,null,"M"]
[30,"Kohoutek","Jaromír",1955,"Brno",89,null,"D",null,null,null,null,null,null,null,null,null,null,"M"]
[31,"Kolman","Jakub",1976,"Posilovna Průvan",55,null,"A",null,null,null,null,null,null,null,null,null,null,"M"]
[32,"Komárková","Zdeňka",1974,"SDH Bolešín",7,null,"G",null,null,null,null,null,null,null,null,null,null,"Ž"]
[33,"Konečný","Libor",1971,"Kuřim",98,null,"B",null,null,null,null,null,null,null,null,null,null,{"$f":"IF(LEN(B35)=0,\" \",IF(MID(B35,LEN(B35),1)=\"á\",\"Ž\",\"M\"))","v":"M"}]
[34,"Konečný","Jaroslav",1969,"Popůvky",102,null,"B",null,null,null,null,null,null,null,null,null,null,"M"]
[35,"Kosmák","Václav",1983,"Brno",86,null,"A",null,null,null,null,null,null,null,null,null,null,"M"]
[36,"Krátká","Anna",1969,"Hvězda SKP Pardubice",35,null,"H",null,null,null,null,null,null,null,null,null,null,"Ž"]
[37,"Krátký","Josef",1965,"Hvězda SKP Pardubice",36,null,"C",null,null,null,null,null,null,null,null,null,null,"M"]
[38,"Kratochvíl","Jaroslav",1977,"SDH Hluboké",95,null,"A",null,null,null,null,null,null,null,null,null,null,"M"]
[39,"Kresta","Roman",1965,"Brno",13,"doprava","C",null,null,null,null,null,null,null,null,null,null,"M"]
[40,"Kropáček","Jaroslav",1970,"Brno",37,null,"B",null,null,null,null,null,null,null,null,null,null,"M"]
[41,"Mareš","Bohumil",1951,"LEAR Brno",54,null,"D",null,null,null,null,null,null,null,null,null,null,"M"]
[42,"Mikeš","Petr",1977,"Vyškovec",30,null,"A",null,null,null,null,null,null,null,null,null,null,"M"]
[43,"Nekuža","Jiří",1951,"RUNNERS Zbýšov",80,null,"D",null,null,null,null,null,null,null,null,null,null,"M"]
[44,"Novotný","Petr",1965,"Kuřim",76,null,"C",null,null,null,null,null,null,null,null,null,null,"M"]
[45,"Očenášek","Zdeněk",1976,"Brno",53,null,"A",null,null,null,null,null,null,null,null,null,null,"M"]
[46,"Orálek","Daniel",1970,"Moravská Slávia Brno",107,null,"B",null,null,null,null,null,null,null,null,null,null,"M"]
[47,"Podmelová","Vilma",1962,"Moravská Slávia Brno",106,null,"H",null,null,null,null,null,null,null,null,null,null,"Ž"]
[48,"Pokorný","Václav",1978,"Brno",19,null,"A",null,null,null,null,null,null,null,null,null,null,"M"]
[49,"Procházka","Pavel",1988,"Bystřice nad Pernštejnem",105,null,"A",null,null,null,null,null,null,null,null,null,null,"M"]
[50,"Ryška","Vít",1975,"VSK Univerzita Brno",40,null,"B",null,null,null,null,null,null,null,null,null,null,"M"]
[51,"Řezníček","Roman",1977,"Žďár nad Sázavou",58,null,"A",null,null,null,null,null,null,null,null,null,null,"M"]
[52,"Řezníček","Petr",1973,"Polnička",92,null,"B",null,null,null,null,null,null,null,null,null,null,"M"]
[53,"Sedláček","Aleš",1976,"Sokol Přísnotice",63,null,"A",null,null,null,null,null,null,null,null,null,null,"M"]
[54,"Sedláček","Svatopluk",1957,"Moravská Slávia Brno",104,null,"C",null,null,null,null,null,null,null,null,null,null,"M"]
[55,"Suchý","Karel",1956,"Atletic Třebíč",44,null,"C",null,null,null,null,null,null,null,null,null,null,"M"]
[56,"Škapa","Marek",1971,"MK Seitl Ostrava",8,"ubytování","B",null,null,null,null,null,null,null,null,null,null,"M"]
[57,"Štýbnar","Zbyněk",1974,"Běžec Vysočiny Jihlava",22,null,"B",null,null,null,null,null,null,null,null,null,null,"M"]
[58,"Tesařová","Marie",1954,"Křižanov",12,"doprava","H",null,null,null,null,null,null,null,null,null,null,"Ž"]
[59,"Výtisk","Alfons",1949,"MK Seitl Ostrava",9,"ubytování","D",null,null,null,null,null,null,null,null,null,null,"M"]
[60,"Dostálová","Vendula",1981,"HAL 3000 Brno",3,null,"F",null,null,null,null,null,null,null,null,null,null,"Ž"]
[61,"Pivec","Jan",1981,"HAL 3000 Brno",2,null,"A",null,null,null,null,null,null,null,null,null,null,"M"]
[62,"Bečička","Petr",1960,"HAL 3000 Brno",1,null,"C",null,null,null,null,null,null,null,null,null,null,"M"]
[63,"Navrátilová","Vlasta",1983,"Vír",4,null,"F",null,null,null,null,null,null,null,null,null,null,"Ž"]
[64,"Zourek","Karel",1959,"Brno",6,null,"C",null,null,null,null,null,null,null,null,null,null,"M"]
[65,"Kameníčková","Veronika",1966,"Vinařice",16,null,{"$f":"IF(S67<>\"Ž\",IF($O$2-D67>39,IF($O$2-D67>49,IF($O$2-D67>59,IF($O$2-D67>69,IF($O$2-D67>90,\"\",\"E\"),\"D\"),\"C\"),\"B\"),\"A\"),IF(S67=\"Ž\",IF($O$2-D67>34,IF($O$2-D67>44,IF($O$2-D67>90,\"\",\"H\"),\"G\"),\"F\")))","v":"H"},null,null,null,null,null,null,null,null,null,null,{"$f":"IF(LEN(B67)=0,\" \",IF(MID(B67,LEN(B67),1)=\"á\",\"Ž\",\"M\"))","v":"Ž"}]
[66,"Kameníček","Michal",1986,"Vinařice",17,null,"A",null,null,null,null,null,null,null,null,null,null,"M"]
[{"$f":"IF(B69<>0,A68+1,\"\")","v":67},"Peštuková","Ivana",1990,"Vinařice",18,null,"F",null,null,null,null,null,null,null,null,null,null,"Ž"]
[68,"Vašalovská","Petra",1986,"Atletic Třebíč",23,null,"F",null,null,null,null,null,null,null,null,null,null,"Ž"]
[69,"Mahelová","Jitka",1962,"Atletic Třebíč",24,null,"H",null,null,null,null,null,null,null,null,null,null,"Ž"]
[70,"Nováček","Tomáš",1983,"Atletic Třebíč",26,null,"A",null,null,null,null,null,null,null,null,null,null,"M"]
[71,"Kratochvíl","Pavel",1960,"Atletic Třebíč",28,null,"C",null,null,null,null,null,null,null,null,null,null,"M"]
[72,"Provazník","Milan",1966,"Polička",29,null,"B",null,null,null,null,null,null,null,null,null,null,"M"]
[73,"Kryštof","Ondřej",1976,"Jiskra Vír",31,null,"A",null,null,null,null,null,null,null,null,null,null,"M"]
[74,"Šedová","Věra",1964,"Atletic Třebíč",33,null,"H",null,null,null,null,null,null,null,null,null,null,"Ž"]
[75,"Navrátil","Petr",1963,"Rožná",34,null,"C",null,null,null,null,null,null,null,null,null,null,"M"]
[76,"Hýbl","Jiří",1967,"Hrušovany u Brna",41,null,"B",null,null,null,null,null,null,null,null,null,null,"M"]
[77,"Dvořák","Vojtěch",1974,"Brno",43,null,"B",null,null,null,null,null,null,null,null,null,null,"M"]
[78,"Münster","Libor",1966,"Blansko",46,null,"B",null,null,null,null,null,null,null,null,null,null,"M"]
[79,"Boháč","Jiří",1954,"Běhej Brno com",47,null,"D",null,null,null,null,null,null,null,null,null,null,"M"]
[80,"Plekanec","Juraj",1974,"Brno",49,null,"B",null,null,null,null,null,null,null,null,null,null,"M"]
[81,"Pešáková","Mirka",1985,"AK RACERS Tetčice",51,null,"F",null,null,null,null,null,null,null,null,null,null,"Ž"]
[82,"Kupidlovský","Daniel",1976,"Stodůlky",60,null,"A",null,null,null,null,null,null,null,null,null,null,"M"]
[83,"Čuhel","Jiří",1958,"Křtěnov",62,null,"C",null,null,null,null,null,null,null,null,null,null,"M"]
[84,"Dubský","Roman",1978,"SK Přibyslav",67,null,"A",null,null,null,null,null,null,null,null,null,null,"M"]
[85,"Rokosová","Ivana",1982,"Polička",69,null,"F",null,null,null,null,null,null,null,null,null,null,"Ž"]
[86,"Strakoš","Vilém",1969,"SK Fuga Kuřim",70,null,"B",null,null,null,null,null,null,null,null,null,null,"M"]
[87,"Mička","Michal",1987,"Žďár nad Sázavou",72,null,"A",null,null,null,null,null,null,null,null,null,null,"M"]
[88,"Vídeňský","Jiří",1947,"KD Moravské Budějovice",79,null,"D",null,null,null,null,null,null,null,null,null,null,"M"]
[89,"Holoubek","Jindřich",1968,"Brno",83,null,"B",null,null,null,null,null,null,null,null,null,null,"M"]
[90,"Šilhan","Vladimír",1957,"Original Ježek Babice nad Svitavou",84,null,"C",null,null,null,null,null,null,null,null,null,null,"M"]
[91,"Ježová","Martina",1975,"Brno",90,null,"G",null,null,null,null,null,null,null,null,null,null,"Ž"]
[92,"Poneš","Pavel",1978,"TK SOKOLI Brno",91,null,"A",null,null,null,null,null,null,null,null,null,null,"M"]
[93,"Havlíček","Ivo",1966,"Lánov - Krkonoše",93,null,"B",null,null,null,null,null,null,null,null,null,null,"M"]
[94,"Benc","Karel",1975,"Pivonice",94,null,"B",null,null,null,null,null,null,null,null,null,null,"M"]
[95,"Tonarová","Miroslava",1976,"Bory",97,null,"G",null,null,null,null,null,null,null,null,null,null,"Ž"]
[96,"Vacula","Ondřej",1981,"AC Lelek Lelekovice",99,null,"A",null,null,null,null,null,null,null,null,null,null,"M"]
[97,"Milka","Zdeněk",1984,"Brno",101,null,"A",null,null,null,null,null,null,null,null,null,null,{"$f":"IF(LEN(B99)=0,\" \",IF(MID(B99,LEN(B99),1)=\"á\",\"Ž\",\"M\"))","v":"M"}]
["",null,null,null,null,null,null,"",null,null,null,null,null,null,null,null,null,null," "]
["",null,null,null,null,null,null,"",null,null,null,null,null,null,null,null,null,null," "]
["",null,null,null,null,null,null,"",null,null,null,null,null,null,null,null,null,null," "]
["",null,null,null,null,null,null,"",null,null,null,null,null,null,null,null,null,null," "]
["",null,null,null,null,null,null,"",null,null,null,null,null,null,null,null,null,null," "]
["",null,null,null,null,null,null,"",null,null,null,null,null,null,null,null,null,null," "]
["",null,null,null,null,null,null,"",null,null,null,null,null,null,null,null,null,null," "]
["",null,null,null,null,null,null,"",null,null,null,null,null,null,null,null,null,null," "]
["",null,null,null,null,null,null,"",null,null,null,null,null,null,null,null,null,null," "]
["",null,null,null,null,null,null,"",null,null,null,null,null,null,null,null,null,null," "]
["",null,null,null,null,null,null,"",null,null,null,null,null,null,null,null,null,null," "]
["",null,null,null,null,null,null,"",null,null,null,null,null,null,null,null,null,null," "]
["",null,null,null,null,null,null,"",null,null,null,null,null,null,null,null,null,null," "]
["",null,null,null,null,null,null,"",null,null,null,null,null,null,null,null,null,null," "]
["",null,null,null,null,null,null,"",null,null,null,null,null,null,null,null,null,null," "]
["",null,null,null,null,null,null,"",null,null,null,null,null,null,null,null,null,null," "]
["",null,null,null,null,null,null,"",null,null,null,null,null,null,null,null,null,null," "]
["",null,null,null,null,null,null,"",null,null,null,null,null,null,null,null,null,null," "]
["",null,null,null,null,null,null,"",null,null,null,null,null,null,null,null,null,null," "]
["",null,null,null,null,null,null,"",null,null,null,null,null,null,null,null,null,null," "]
["",null,null,null,null,null,null,"",null,null,null,null,null,null,null,null,null,null," "]
["",null,null,null,null,null,null,"",null,null,null,null,null,null,null,null,null,null," "]
["",null,null,null,null,null,null,"",null,null,null,null,null,null,null,null,null,null," "]
["",null,null,null,null,null,null,"",null,null,null,null,null,null,null,null,null,null," "]
["",null,null,null,null,null,null,"",null,null,null,null,null,null,null,null,null,null," "]
["",null,null,null,null,null,null,"",null,null,null,null,null,null,null,null,null,null," "]
["",null,null,null,null,null,null,"",null,null,null,null,null,null,null,null,null,null," "]
["",null,null,null,null,null,null,"",null,null,null,null,null,null,null,null,null,null," "]
["",null,null,null,null,null,null,"",null,null,null,null,null,null,null,null,null,null," "]
["",null,null,null,null,null,null,"",null,null,null,null,null,null,null,null,null,null," "]
["",null,null,null,null,null,null,"",null,null,null,null,null,null,null,null,null,null," "]
["",null,null,null,null,null,null,{"$f":"IF(S131<>\"Ž\",IF($O$2-D131>39,IF($O$2-D131>49,IF($O$2-D131>59,IF($O$2-D131>69,IF($O$2-D131>90,\"\",\"E\"),\"D\"),\"C\"),\"B\"),\"A\"),IF(S131=\"Ž\",IF($O$2-D131>34,IF($O$2-D131>44,IF($O$2-D131>90,\"\",\"H\"),\"G\"),\"F\")))","v":""},null,null,null,null,null,null,null,null,null,null,{"$f":"IF(LEN(B131)=0,\" \",IF(MID(B131,LEN(B131),1)=\"á\",\"Ž\",\"M\"))","v":" "}]
["",null,null,null,null,null,null,"",null,null,null,null,null,null,null,null,null,null," "]
[{"$f":"IF(B133<>0,A132+1,\"\")","v":""},null,null,null,null,null,null,"",null,null,null,null,null,null,null,null,null,null," "]
["",null,null,null,null,null,null,"",null,null,null,null,null,null,null,null,null,null," "]
["",null,null,null,null,null,null,"",null,null,null,null,null,null,null,null,null,null," "]
["",null,null,null,null,null,null,"",null,null,null,null,null,null,null,null,null,null," "]
["",null,null,null,null,null,null,"",null,null,null,null,null,null,null,null,null,null," "]
["",null,null,null,null,null,null,"",null,null,null,null,null,null,null,null,null,null," "]
["",null,null,null,null,null,null,"",null,null,null,null,null,null,null,null,null,null," "]
["",null,null,null,null,null,null,"",null,null,null,null,null,null,null,null,null,null," "]
["",null,null,null,null,null,null,"",null,null,null,null,null,null,null,null,null,null," "]
["",null,null,null,null,null,null,"",null,null,null,null,null,null,null,null,null,null," "]
["",null,null,null,null,null,null,"",null,null,null,null,null,null,null,null,null,null," "]
["",null,null,null,null,null,null,"",null,null,null,null,null,null,null,null,null,null," "]
["",null,null,null,null,null,null,"",null,null,null,null,null,null,null,null,null,null," "]
["",null,null,null,null,null,null,"",null,null,null,null,null,null,null,null,null,null," "]
["",null,null,null,null,null,null,"",null,null,null,null,null,null,null,null,null,null," "]
["",null,null,null,null,null,null,"",null,null,null,null,null,null,null,null,null,null," "]
["",null,null,null,null,null,null,"",null,null,null,null,null,null,null,null,null,null," "]
["",null,null,null,null,null,null,"",null,null,null,null,null,null,null,null,null,null," "]
["",null,null,null,null,null,null,"",null,null,null,null,null,null,null,null,null,null," "]
["",null,null,null,null,null,null,"",null,null,null,null,null,null,null,null,null,null," "]

{"sheet":"Startovní listina","index":1,"n_rows":141,"n_cols":12,"rows_kept":141,"cut":false,"hidden":false,"merged":[[4,11,11,11],[0,0,0,6],[2,0,2,6],[1,0,1,6],[1,8,2,9]]}
[{"$f":"\"Startovní listina - Malý svratecký maraton \"&'Prezenční listina'!O2","v":"Startovní listina - Malý svratecký maraton 2015"}]
["2015-08-22",null,null,null,null,null,null,null,"Počet přihlášených v jednotlivých kategoriích"]
[{"$f":"'Prezenční listina'!O2-1953&\". ročník\"","v":"62. ročník"},null,null,null,null,null,null,null,null,null,null,"Celkem startujících"]
[null,"Startovní číslo","Příjmení","Jméno","Narození","Oddíl / Bydliště","Kategorie"]
[1,{"$f":"IF('Prezenční listina'!F64=0,\"\",'Prezenční listina'!F64)","v":1},{"$f":"IF('Prezenční listina'!F64=0,\"\",'Prezenční listina'!B64)","v":"Bečička"},{"$f":"IF('Prezenční listina'!F64=0,\"\",'Prezenční listina'!C64)","v":"Petr"},{"$f":"IF('Prezenční listina'!F64=0,\"\",'Prezenční listina'!D64)","v":1960},{"$f":"IF('Prezenční listina'!F64=0,\"\",'Prezenční listina'!E64)","v":"HAL 3000 Brno"},{"$f":"IF('Prezenční listina'!F64=0,\"\",'Prezenční listina'!H64)","v":"C"},null,"A:",{"$f":"COUNTIF($G$5:$G$141,\"A\")","v":26},null,{"$f":"COUNT(B5:B141)","v":94}]
[{"$f":"IF(C6=\"\",\"\",A5+1)","v":2},{"$f":"IF('Prezenční listina'!F63=0,\"\",'Prezenční listina'!F63)","v":2},{"$f":"IF('Prezenční listina'!F63=0,\"\",'Prezenční listina'!B63)","v":"Pivec"},{"$f":"IF('Prezenční listina'!F63=0,\"\",'Prezenční listina'!C63)","v":"Jan"},{"$f":"IF('Prezenční listina'!F63=0,\"\",'Prezenční listina'!D63)","v":1981},{"$f":"IF('Prezenční listina'!F63=0,\"\",'Prezenční listina'!E63)","v":"HAL 3000 Brno"},{"$f":"IF('Prezenční listina'!F63=0,\"\",'Prezenční listina'!H63)","v":"A"},null,"B:",{"$f":"COUNTIF($G$5:$G$141,\"B\")","v":26}]
[3,{"$f":"IF('Prezenční listina'!F62=0,\"\",'Prezenční listina'!F62)","v":3},{"$f":"IF('Prezenční listina'!F62=0,\"\",'Prezenční listina'!B62)","v":"Dostálová"},{"$f":"IF('Prezenční listina'!F62=0,\"\",'Prezenční listina'!C62)","v":"Vendula"},{"$f":"IF('Prezenční listina'!F62=0,\"\",'Prezenční listina'!D62)","v":1981},{"$f":"IF('Prezenční listina'!F62=0,\"\",'Prezenční listina'!E62)","v":"HAL 3000 Brno"},{"$f":"IF('Prezenční listina'!F62=0,\"\",'Prezenční listina'!H62)","v":"F"},null,"C:",{"$f":"COUNTIF($G$5:$G$141,\"C\")","v":16}]
[4,{"$f":"IF('Prezenční listina'!F65=0,\"\",'Prezenční listina'!F65)","v":4},{"$f":"IF('Prezenční listina'!F65=0,\"\",'Prezenční listina'!B65)","v":"Navrátilová"},{"$f":"IF('Prezenční listina'!F65=0,\"\",'Prezenční listina'!C65)","v":"Vlasta"},{"$f":"IF('Prezenční listina'!F65=0,\"\",'Prezenční listina'!D65)","v":1983},{"$f":"IF('Prezenční listina'!F65=0,\"\",'Prezenční listina'!E65)","v":"Vír"},{"$f":"IF('Prezenční listina'!F65=0,\"\",'Prezenční listina'!H65)","v":"F"},null,"D:",{"$f":"COUNTIF($G$5:$G$141,\"D\")","v":7}]
[5,{"$f":"IF('Prezenční listina'!F25=0,\"\",'Prezenční listina'!F25)","v":5},{"$f":"IF('Prezenční listina'!F25=0,\"\",'Prezenční listina'!B25)","v":"Chramosta"},{"$f":"IF('Prezenční listina'!F25=0,\"\",'Prezenční listina'!C25)","v":"Jaroslav"},{"$f":"IF('Prezenční listina'!F25=0,\"\",'Prezenční listina'!D25)","v":1966},{"$f":"IF('Prezenční listina'!F25=0,\"\",'Prezenční listina'!E25)","v":"JABOJA Team Děčín"},{"$f":"IF('Prezenční listina'!F25=0,\"\",'Prezenční listina'!H25)","v":"B"},null,"E:",{"$f":"COUNTIF($G$5:$G$141,\"E\")","v":2}]
[6,{"$f":"IF('Prezenční listina'!F66=0,\"\",'Prezenční listina'!F66)","v":6},{"$f":"IF('Prezenční listina'!F66=0,\"\",'Prezenční listina'!B66)","v":"Zourek"},{"$f":"IF('Prezenční listina'!F66=0,\"\",'Prezenční listina'!C66)","v":"Karel"},{"$f":"IF('Prezenční listina'!F66=0,\"\",'Prezenční listina'!D66)","v":1959},{"$f":"IF('Prezenční listina'!F66=0,\"\",'Prezenční listina'!E66)","v":"Brno"},{"$f":"IF('Prezenční listina'!F66=0,\"\",'Prezenční listina'!H66)","v":"C"},null,"F:",{"$f":"COUNTIF($G$5:$G$141,\"F\")","v":8}]
[7,{"$f":"IF('Prezenční listina'!F34=0,\"\",'Prezenční listina'!F34)","v":7},{"$f":"IF('Prezenční listina'!F34=0,\"\",'Prezenční listina'!B34)","v":"Komárková"},{"$f":"IF('Prezenční listina'!F34=0,\"\",'Prezenční listina'!C34)","v":"Zdeňka"},{"$f":"IF('Prezenční listina'!F34=0,\"\",'Prezenční listina'!D34)","v":1974},{"$f":"IF('Prezenční listina'!F34=0,\"\",'Prezenční listina'!E34)","v":"SDH Bolešín"},{"$f":"IF('Prezenční listina'!F34=0,\"\",'Prezenční listina'!H34)","v":"G"},null,"G:",{"$f":"COUNTIF($G$5:$G$141,\"G\")","v":3}]
[8,{"$f":"IF('Prezenční listina'!F58=0,\"\",'Prezenční listina'!F58)","v":8},{"$f":"IF('Prezenční listina'!F58=0,\"\",'Prezenční listina'!B58)","v":"Škapa"},{"$f":"IF('Prezenční listina'!F58=0,\"\",'Prezenční listina'!C58)","v":"Marek"},{"$f":"IF('Prezenční listina'!F58=0,\"\",'Prezenční listina'!D58)","v":1971},{"$f":"IF('Prezenční listina'!F58=0,\"\",'Prezenční listina'!E58)","v":"MK Seitl Ostrava"},{"$f":"IF('Prezenční listina'!F58=0,\"\",'Prezenční listina'!H58)","v":"B"},null,"H:",{"$f":"COUNTIF($G$5:$G$141,\"H\")","v":6}]
[9,{"$f":"IF('Prezenční listina'!F61=0,\"\",'Prezenční listina'!F61)","v":9},{"$f":"IF('Prezenční listina'!F61=0,\"\",'Prezenční listina'!B61)","v":"Výtisk"},{"$f":"IF('Prezenční listina'!F61=0,\"\",'Prezenční listina'!C61)","v":"Alfons"},{"$f":"IF('Prezenční listina'!F61=0,\"\",'Prezenční listina'!D61)","v":1949},{"$f":"IF('Prezenční listina'!F61=0,\"\",'Prezenční listina'!E61)","v":"MK Seitl Ostrava"},{"$f":"IF('Prezenční listina'!F61=0,\"\",'Prezenční listina'!H61)","v":"D"}]
[10,{"$f":"IF('Prezenční listina'!F13=0,\"\",'Prezenční listina'!F13)","v":10},{"$f":"IF('Prezenční listina'!F13=0,\"\",'Prezenční listina'!B13)","v":"Dvorský"},{"$f":"IF('Prezenční listina'!F13=0,\"\",'Prezenční listina'!C13)","v":"Ladislav"},{"$f":"IF('Prezenční listina'!F13=0,\"\",'Prezenční listina'!D13)","v":1965},{"$f":"IF('Prezenční listina'!F13=0,\"\",'Prezenční listina'!E13)","v":"MK Seitl Ostrava"},{"$f":"IF('Prezenční listina'!F13=0,\"\",'Prezenční listina'!H13)","v":"C"}]
[11,{"$f":"IF('Prezenční listina'!F15=0,\"\",'Prezenční listina'!F15)","v":11},{"$f":"IF('Prezenční listina'!F15=0,\"\",'Prezenční listina'!B15)","v":"Fousek"},{"$f":"IF('Prezenční listina'!F15=0,\"\",'Prezenční listina'!C15)","v":"Jan"},{"$f":"IF('Prezenční listina'!F15=0,\"\",'Prezenční listina'!D15)","v":1991},{"$f":"IF('Prezenční listina'!F15=0,\"\",'Prezenční listina'!E15)","v":"MK Seitl Ostrava"},{"$f":"IF('Prezenční listina'!F15=0,\"\",'Prezenční listina'!H15)","v":"A"}]
[12,{"$f":"IF('Prezenční listina'!F60=0,\"\",'Prezenční listina'!F60)","v":12},{"$f":"IF('Prezenční listina'!F60=0,\"\",'Prezenční listina'!B60)","v":"Tesařová"},{"$f":"IF('Prezenční listina'!F60=0,\"\",'Prezenční listina'!C60)","v":"Marie"},{"$f":"IF('Prezenční listina'!F60=0,\"\",'Prezenční listina'!D60)","v":1954},{"$f":"IF('Prezenční listina'!F60=0,\"\",'Prezenční listina'!E60)","v":"Křižanov"},{"$f":"IF('Prezenční listina'!F60=0,\"\",'Prezenční listina'!H60)","v":"H"}]
[13,{"$f":"IF('Prezenční listina'!F41=0,\"\",'Prezenční listina'!F41)","v":13},{"$f":"IF('Prezenční listina'!F41=0,\"\",'Prezenční listina'!B41)","v":"Kresta"},{"$f":"IF('Prezenční listina'!F41=0,\"\",'Prezenční listina'!C41)","v":"Roman"},{"$f":"IF('Prezenční listina'!F41=0,\"\",'Prezenční listina'!D41)","v":1965},{"$f":"IF('Prezenční listina'!F41=0,\"\",'Prezenční listina'!E41)","v":"Brno"},{"$f":"IF('Prezenční listina'!F41=0,\"\",'Prezenční listina'!H41)","v":"C"}]
[14,{"$f":"IF('Prezenční listina'!F20=0,\"\",'Prezenční listina'!F20)","v":14},{"$f":"IF('Prezenční listina'!F20=0,\"\",'Prezenční listina'!B20)","v":"Holý"},{"$f":"IF('Prezenční listina'!F20=0,\"\",'Prezenční listina'!C20)","v":"Josef"},{"$f":"IF('Prezenční listina'!F20=0,\"\",'Prezenční listina'!D20)","v":1941},{"$f":"IF('Prezenční listina'!F20=0,\"\",'Prezenční listina'!E20)","v":"Moravská Slávia Brno"},{"$f":"IF('Prezenční listina'!F20=0,\"\",'Prezenční listina'!H20)","v":"E"}]
[15,{"$f":"IF('Prezenční listina'!F67=0,\"\",'Prezenční listina'!F67)","v":16},{"$f":"IF('Prezenční listina'!F67=0,\"\",'Prezenční listina'!B67)","v":"Kameníčková"},{"$f":"IF('Prezenční listina'!F67=0,\"\",'Prezenční listina'!C67)","v":"Veronika"},{"$f":"IF('Prezenční listina'!F67=0,\"\",'Prezenční listina'!D67)","v":1966},{"$f":"IF('Prezenční listina'!F67=0,\"\",'Prezenční listina'!E67)","v":"Vinařice"},{"$f":"IF('Prezenční listina'!F67=0,\"\",'Prezenční listina'!H67)","v":"H"}]
[16,{"$f":"IF('Prezenční listina'!F68=0,\"\",'Prezenční listina'!F68)","v":17},{"$f":"IF('Prezenční listina'!F68=0,\"\",'Prezenční listina'!B68)","v":"Kameníček"},{"$f":"IF('Prezenční listina'!F68=0,\"\",'Prezenční listina'!C68)","v":"Michal"},{"$f":"IF('Prezenční listina'!F68=0,\"\",'Prezenční listina'!D68)","v":1986},{"$f":"IF('Prezenční listina'!F68=0,\"\",'Prezenční listina'!E68)","v":"Vinařice"},{"$f":"IF('Prezenční listina'!F68=0,\"\",'Prezenční listina'!H68)","v":"A"}]
[17,{"$f":"IF('Prezenční listina'!F69=0,\"\",'Prezenční listina'!F69)","v":18},{"$f":"IF('Prezenční listina'!F69=0,\"\",'Prezenční listina'!B69)","v":"Peštuková"},{"$f":"IF('Prezenční listina'!F69=0,\"\",'Prezenční listina'!C69)","v":"Ivana"},{"$f":"IF('Prezenční listina'!F69=0,\"\",'Prezenční listina'!D69)","v":1990},{"$f":"IF('Prezenční listina'!F69=0,\"\",'Prezenční listina'!E69)","v":"Vinařice"},{"$f":"IF('Prezenční listina'!F69=0,\"\",'Prezenční listina'!H69)","v":"F"}]
[18,{"$f":"IF('Prezenční listina'!F50=0,\"\",'Prezenční listina'!F50)","v":19},{"$f":"IF('Prezenční listina'!F50=0,\"\",'Prezenční listina'!B50)","v":"Pokorný"},{"$f":"IF('Prezenční listina'!F50=0,\"\",'Prezenční listina'!C50)","v":"Václav"},{"$f":"IF('Prezenční listina'!F50=0,\"\",'Prezenční listina'!D50)","v":1978},{"$f":"IF('Prezenční listina'!F50=0,\"\",'Prezenční listina'!E50)","v":"Brno"},{"$f":"IF('Prezenční listina'!F50=0,\"\",'Prezenční listina'!H50)","v":"A"}]
[19,{"$f":"IF('Prezenční listina'!F22=0,\"\",'Prezenční listina'!F22)","v":21},{"$f":"IF('Prezenční listina'!F22=0,\"\",'Prezenční listina'!B22)","v":"Hrubý"},{"$f":"IF('Prezenční listina'!F22=0,\"\",'Prezenční listina'!C22)","v":"Milan"},{"$f":"IF('Prezenční listina'!F22=0,\"\",'Prezenční listina'!D22)","v":1938},{"$f":"IF('Prezenční listina'!F22=0,\"\",'Prezenční listina'!E22)","v":"Blansko"},{"$f":"IF('Prezenční listina'!F22=0,\"\",'Prezenční listina'!H22)","v":"E"}]
[20,{"$f":"IF('Prezenční listina'!F59=0,\"\",'Prezenční listina'!F59)","v":22},{"$f":"IF('Prezenční listina'!F59=0,\"\",'Prezenční listina'!B59)","v":"Štýbnar"},{"$f":"IF('Prezenční listina'!F59=0,\"\",'Prezenční listina'!C59)","v":"Zbyněk"},{"$f":"IF('Prezenční listina'!F59=0,\"\",'Prezenční listina'!D59)","v":1974},{"$f":"IF('Prezenční listina'!F59=0,\"\",'Prezenční listina'!E59)","v":"Běžec Vysočiny Jihlava"},{"$f":"IF('Prezenční listina'!F59=0,\"\",'Prezenční listina'!H59)","v":"B"}]
[21,{"$f":"IF('Prezenční listina'!F70=0,\"\",'Prezenční listina'!F70)","v":23},{"$f":"IF('Prezenční listina'!F70=0,\"\",'Prezenční listina'!B70)","v":"Vašalovská"},{"$f":"IF('Prezenční listina'!F70=0,\"\",'Prezenční listina'!C70)","v":"Petra"},{"$f":"IF('Prezenční listina'!F70=0,\"\",'Prezenční listina'!D70)","v":1986},{"$f":"IF('Prezenční listina'!F70=0,\"\",'Prezenční listina'!E70)","v":"Atletic Třebíč"},{"$f":"IF('Prezenční listina'!F70=0,\"\",'Prezenční listina'!H70)","v":"F"}]
[22,{"$f":"IF('Prezenční listina'!F71=0,\"\",'Prezenční listina'!F71)","v":24},{"$f":"IF('Prezenční listina'!F71=0,\"\",'Prezenční listina'!B71)","v":"Mahelová"},{"$f":"IF('Prezenční listina'!F71=0,\"\",'Prezenční listina'!C71)","v":"Jitka"},{"$f":"IF('Prezenční listina'!F71=0,\"\",'Prezenční listina'!D71)","v":1962},{"$f":"IF('Prezenční listina'!F71=0,\"\",'Prezenční listina'!E71)","v":"Atletic Třebíč"},{"$f":"IF('Prezenční listina'!F71=0,\"\",'Prezenční listina'!H71)","v":"H"}]
[23,{"$f":"IF('Prezenční listina'!F72=0,\"\",'Prezenční listina'!F72)","v":26},{"$f":"IF('Prezenční listina'!F72=0,\"\",'Prezenční listina'!B72)","v":"Nováček"},{"$f":"IF('Prezenční listina'!F72=0,\"\",'Prezenční listina'!C72)","v":"Tomáš"},{"$f":"IF('Prezenční listina'!F72=0,\"\",'Prezenční listina'!D72)","v":1983},{"$f":"IF('Prezenční listina'!F72=0,\"\",'Prezenční listina'!E72)","v":"Atletic Třebíč"},{"$f":"IF('Prezenční listina'!F72=0,\"\",'Prezenční listina'!H72)","v":"A"}]
[24,{"$f":"IF('Prezenční listina'!F6=0,\"\",'Prezenční listina'!F6)","v":27},{"$f":"IF('Prezenční listina'!F6=0,\"\",'Prezenční listina'!B6)","v":"Bohuslav"},{"$f":"IF('Prezenční listina'!F6=0,\"\",'Prezenční listina'!C6)","v":"Martin"},{"$f":"IF('Prezenční listina'!F6=0,\"\",'Prezenční listina'!D6)","v":1987},{"$f":"IF('Prezenční listina'!F6=0,\"\",'Prezenční listina'!E6)","v":"Atletic Třebíč"},{"$f":"IF('Prezenční listina'!F6=0,\"\",'Prezenční listina'!H6)","v":"A"}]
[25,{"$f":"IF('Prezenční listina'!F73=0,\"\",'Prezenční listina'!F73)","v":28},{"$f":"IF('Prezenční listina'!F73=0,\"\",'Prezenční listina'!B73)","v":"Kratochvíl"},{"$f":"IF('Prezenční listina'!F73=0,\"\",'Prezenční listina'!C73)","v":"Pavel"},{"$f":"IF('Prezenční listina'!F73=0,\"\",'Prezenční listina'!D73)","v":1960},{"$f":"IF('Prezenční listina'!F73=0,\"\",'Prezenční listina'!E73)","v":"Atletic Třebíč"},{"$f":"IF('Prezenční listina'!F73=0,\"\",'Prezenční listina'!H73)","v":"C"}]
[26,{"$f":"IF('Prezenční listina'!F74=0,\"\",'Prezenční listina'!F74)","v":29},{"$f":"IF('Prezenční listina'!F74=0,\"\",'Prezenční listina'!B74)","v":"Provazník"},{"$f":"IF('Prezenční listina'!F74=0,\"\",'Prezenční listina'!C74)","v":"Milan"},{"$f":"IF('Prezenční listina'!F74=0,\"\",'Prezenční listina'!D74)","v":1966},{"$f":"IF('Prezenční listina'!F74=0,\"\",'Prezenční listina'!E74)","v":"Polička"},{"$f":"IF('Prezenční listina'!F74=0,\"\",'Prezenční listina'!H74)","v":"B"}]
[27,{"$f":"IF('Prezenční listina'!F44=0,\"\",'Prezenční listina'!F44)","v":30},{"$f":"IF('Prezenční listina'!F44=0,\"\",'Prezenční listina'!B44)","v":"Mikeš"},{"$f":"IF('Prezenční listina'!F44=0,\"\",'Prezenční listina'!C44)","v":"Petr"},{"$f":"IF('Prezenční listina'!F44=0,\"\",'Prezenční listina'!D44)","v":1977},{"$f":"IF('Prezenční listina'!F44=0,\"\",'Prezenční listina'!E44)","v":"Vyškovec"},{"$f":"IF('Prezenční listina'!F44=0,\"\",'Prezenční listina'!H44)","v":"A"}]
[28,{"$f":"IF('Prezenční listina'!F75=0,\"\",'Prezenční listina'!F75)","v":31},{"$f":"IF('Prezenční listina'!F75=0,\"\",'Prezenční listina'!B75)","v":"Kryštof"},{"$f":"IF('Prezenční listina'!F75=0,\"\",'Prezenční listina'!C75)","v":"Ondřej"},{"$f":"IF('Prezenční listina'!F75=0,\"\",'Prezenční listina'!D75)","v":1976},{"$f":"IF('Prezenční listina'!F75=0,\"\",'Prezenční listina'!E75)","v":"Jiskra Vír"},{"$f":"IF('Prezenční listina'!F75=0,\"\",'Prezenční listina'!H75)","v":"A"}]
[29,{"$f":"IF('Prezenční listina'!F76=0,\"\",'Prezenční listina'!F76)","v":33},{"$f":"IF('Prezenční listina'!F76=0,\"\",'Prezenční listina'!B76)","v":"Šedová"},{"$f":"IF('Prezenční listina'!F76=0,\"\",'Prezenční listina'!C76)","v":"Věra"},{"$f":"IF('Prezenční listina'!F76=0,\"\",'Prezenční listina'!D76)","v":1964},{"$f":"IF('Prezenční listina'!F76=0,\"\",'Prezenční listina'!E76)","v":"Atletic Třebíč"},{"$f":"IF('Prezenční listina'!F76=0,\"\",'Prezenční listina'!H76)","v":"H"}]
[30,{"$f":"IF('Prezenční listina'!F77=0,\"\",'Prezenční listina'!F77)","v":34},{"$f":"IF('Prezenční listina'!F77=0,\"\",'Prezenční listina'!B77)","v":"Navrátil"},{"$f":"IF('Prezenční listina'!F77=0,\"\",'Prezenční listina'!C77)","v":"Petr"},{"$f":"IF('Prezenční listina'!F77=0,\"\",'Prezenční listina'!D77)","v":1963},{"$f":"IF('Prezenční listina'!F77=0,\"\",'Prezenční listina'!E77)","v":"Rožná"},{"$f":"IF('Prezenční listina'!F77=0,\"\",'Prezenční listina'!H77)","v":"C"}]
[31,{"$f":"IF('Prezenční listina'!F38=0,\"\",'Prezenční listina'!F38)","v":35},{"$f":"IF('Prezenční listina'!F38=0,\"\",'Prezenční listina'!B38)","v":"Krátká"},{"$f":"IF('Prezenční listina'!F38=0,\"\",'Prezenční listina'!C38)","v":"Anna"},{"$f":"IF('Prezenční listina'!F38=0,\"\",'Prezenční listina'!D38)","v":1969},{"$f":"IF('Prezenční listina'!F38=0,\"\",'Prezenční listina'!E38)","v":"Hvězda SKP Pardubice"},{"$f":"IF('Prezenční listina'!F38=0,\"\",'Prezenční listina'!H38)","v":"H"}]
[32,{"$f":"IF('Prezenční listina'!F39=0,\"\",'Prezenční listina'!F39)","v":36},{"$f":"IF('Prezenční listina'!F39=0,\"\",'Prezenční listina'!B39)","v":"Krátký"},{"$f":"IF('Prezenční listina'!F39=0,\"\",'Prezenční listina'!C39)","v":"Josef"},{"$f":"IF('Prezenční listina'!F39=0,\"\",'Prezenční listina'!D39)","v":1965},{"$f":"IF('Prezenční listina'!F39=0,\"\",'Prezenční listina'!E39)","v":"Hvězda SKP Pardubice"},{"$f":"IF('Prezenční listina'!F39=0,\"\",'Prezenční listina'!H39)","v":"C"}]
[33,{"$f":"IF('Prezenční listina'!F42=0,\"\",'Prezenční listina'!F42)","v":37},{"$f":"IF('Prezenční listina'!F42=0,\"\",'Prezenční listina'!B42)","v":"Kropáček"},{"$f":"IF('Prezenční listina'!F42=0,\"\",'Prezenční listina'!C42)","v":"Jaroslav"},{"$f":"IF('Prezenční listina'!F42=0,\"\",'Prezenční listina'!D42)","v":1970},{"$f":"IF('Prezenční listina'!F42=0,\"\",'Prezenční listina'!E42)","v":"Brno"},{"$f":"IF('Prezenční listina'!F42=0,\"\",'Prezenční listina'!H42)","v":"B"}]
[34,{"$f":"IF('Prezenční listina'!F31=0,\"\",'Prezenční listina'!F31)","v":38},{"$f":"IF('Prezenční listina'!F31=0,\"\",'Prezenční listina'!B31)","v":"Kocur"},{"$f":"IF('Prezenční listina'!F31=0,\"\",'Prezenční listina'!C31)","v":"Lukáš"},{"$f":"IF('Prezenční listina'!F31=0,\"\",'Prezenční listina'!D31)","v":1977},{"$f":"IF('Prezenční listina'!F31=0,\"\",'Prezenční listina'!E31)","v":"VHS Brno"},{"$f":"IF('Prezenční listina'!F31=0,\"\",'Prezenční listina'!H31)","v":"A"}]
[{"$f":"IF(C39=\"\",\"\",A38+1)","v":35},{"$f":"IF('Prezenční listina'!F52=0,\"\",'Prezenční listina'!F52)","v":40},{"$f":"IF('Prezenční listina'!F52=0,\"\",'Prezenční listina'!B52)","v":"Ryška"},{"$f":"IF('Prezenční listina'!F52=0,\"\",'Prezenční listina'!C52)","v":"Vít"},{"$f":"IF('Prezenční listina'!F52=0,\"\",'Prezenční listina'!D52)","v":1975},{"$f":"IF('Prezenční listina'!F52=0,\"\",'Prezenční listina'!E52)","v":"VSK Univerzita Brno"},{"$f":"IF('Prezenční listina'!F52=0,\"\",'Prezenční listina'!H52)","v":"B"}]
[{"$f":"IF(C40=\"\",\"\",A39+1)","v":36},{"$f":"IF('Prezenční listina'!F78=0,\"\",'Prezenční listina'!F78)","v":41},{"$f":"IF('Prezenční listina'!F78=0,\"\",'Prezenční listina'!B78)","v":"Hýbl"},{"$f":"IF('Prezenční listina'!F78=0,\"\",'Prezenční listina'!C78)","v":"Jiří"},{"$f":"IF('Prezenční listina'!F78=0,\"\",'Prezenční listina'!D78)","v":1967},{"$f":"IF('Prezenční listina'!F78=0,\"\",'Prezenční listina'!E78)","v":"Hrušovany u Brna"},{"$f":"IF('Prezenční listina'!F78=0,\"\",'Prezenční listina'!H78)","v":"B"}]
[37,{"$f":"IF('Prezenční listina'!F21=0,\"\",'Prezenční listina'!F21)","v":42},{"$f":"IF('Prezenční listina'!F21=0,\"\",'Prezenční listina'!B21)","v":"Horný"},{"$f":"IF('Prezenční listina'!F21=0,\"\",'Prezenční listina'!C21)","v":"Pavel"},{"$f":"IF('Prezenční listina'!F21=0,\"\",'Prezenční listina'!D21)","v":1973},{"$f":"IF('Prezenční listina'!F21=0,\"\",'Prezenční listina'!E21)","v":"VHT Přerov"},{"$f":"IF('Prezenční listina'!F21=0,\"\",'Prezenční listina'!H21)","v":"B"}]
[38,{"$f":"IF('Prezenční listina'!F79=0,\"\",'Prezenční listina'!F79)","v":43},{"$f":"IF('Prezenční listina'!F79=0,\"\",'Prezenční listina'!B79)","v":"Dvořák"},{"$f":"IF('Prezenční listina'!F79=0,\"\",'Prezenční listina'!C79)","v":"Vojtěch"},{"$f":"IF('Prezenční listina'!F79=0,\"\",'Prezenční listina'!D79)","v":1974},{"$f":"IF('Prezenční listina'!F79=0,\"\",'Prezenční listina'!E79)","v":"Brno"},{"$f":"IF('Prezenční listina'!F79=0,\"\",'Prezenční listina'!H79)","v":"B"}]
[39,{"$f":"IF('Prezenční listina'!F57=0,\"\",'Prezenční listina'!F57)","v":44},{"$f":"IF('Prezenční listina'!F57=0,\"\",'Prezenční listina'!B57)","v":"Suchý"},{"$f":"IF('Prezenční listina'!F57=0,\"\",'Prezenční listina'!C57)","v":"Karel"},{"$f":"IF('Prezenční listina'!F57=0,\"\",'Prezenční listina'!D57)","v":1956},{"$f":"IF('Prezenční listina'!F57=0,\"\",'Prezenční listina'!E57)","v":"Atletic Třebíč"},{"$f":"IF('Prezenční listina'!F57=0,\"\",'Prezenční listina'!H57)","v":"C"}]
[40,{"$f":"IF('Prezenční listina'!F18=0,\"\",'Prezenční listina'!F18)","v":45},{"$f":"IF('Prezenční listina'!F18=0,\"\",'Prezenční listina'!B18)","v":"Hakl"},{"$f":"IF('Prezenční listina'!F18=0,\"\",'Prezenční listina'!C18)","v":"Martin"},{"$f":"IF('Prezenční listina'!F18=0,\"\",'Prezenční listina'!D18)","v":1987},{"$f":"IF('Prezenční listina'!F18=0,\"\",'Prezenční listina'!E18)","v":"Running with Those that Carit"},{"$f":"IF('Prezenční listina'!F18=0,\"\",'Prezenční listina'!H18)","v":"A"}]
[41,{"$f":"IF('Prezenční listina'!F80=0,\"\",'Prezenční listina'!F80)","v":46},{"$f":"IF('Prezenční listina'!F80=0,\"\",'Prezenční listina'!B80)","v":"Münster"},{"$f":"IF('Prezenční listina'!F80=0,\"\",'Prezenční listina'!C80)","v":"Libor"},{"$f":"IF('Prezenční listina'!F80=0,\"\",'Prezenční listina'!D80)","v":1966},{"$f":"IF('Prezenční listina'!F80=0,\"\",'Prezenční listina'!E80)","v":"Blansko"},{"$f":"IF('Prezenční listina'!F80=0,\"\",'Prezenční listina'!H80)","v":"B"}]
[42,{"$f":"IF('Prezenční listina'!F81=0,\"\",'Prezenční listina'!F81)","v":47},{"$f":"IF('Prezenční listina'!F81=0,\"\",'Prezenční listina'!B81)","v":"Boháč"},{"$f":"IF('Prezenční listina'!F81=0,\"\",'Prezenční listina'!C81)","v":"Jiří"},{"$f":"IF('Prezenční listina'!F81=0,\"\",'Prezenční listina'!D81)","v":1954},{"$f":"IF('Prezenční listina'!F81=0,\"\",'Prezenční listina'!E81)","v":"Běhej Brno com"},{"$f":"IF('Prezenční listina'!F81=0,\"\",'Prezenční listina'!H81)","v":"D"}]
[43,{"$f":"IF('Prezenční listina'!F3=0,\"\",'Prezenční listina'!F3)","v":48},{"$f":"IF('Prezenční listina'!F3=0,\"\",'Prezenční listina'!B3)","v":"Alman"},{"$f":"IF('Prezenční listina'!F3=0,\"\",'Prezenční listina'!C3)","v":"Dušan"},{"$f":"IF('Prezenční listina'!F3=0,\"\",'Prezenční listina'!D3)","v":1967},{"$f":"IF('Prezenční listina'!F3=0,\"\",'Prezenční listina'!E3)","v":"Babice"},{"$f":"IF('Prezenční listina'!F3=0,\"\",'Prezenční listina'!H3)","v":"B"}]
[44,{"$f":"IF('Prezenční listina'!F82=0,\"\",'Prezenční listina'!F82)","v":49},{"$f":"IF('Prezenční listina'!F82=0,\"\",'Prezenční listina'!B82)","v":"Plekanec"},{"$f":"IF('Prezenční listina'!F82=0,\"\",'Prezenční listina'!C82)","v":"Juraj"},{"$f":"IF('Prezenční listina'!F82=0,\"\",'Prezenční listina'!D82)","v":1974},{"$f":"IF('Prezenční listina'!F82=0,\"\",'Prezenční listina'!E82)","v":"Brno"},{"$f":"IF('Prezenční listina'!F82=0,\"\",'Prezenční listina'!H82)","v":"B"}]
[45,{"$f":"IF('Prezenční listina'!F12=0,\"\",'Prezenční listina'!F12)","v":50},{"$f":"IF('Prezenční listina'!F12=0,\"\",'Prezenční listina'!B12)","v":"Dušil"},{"$f":"IF('Prezenční listina'!F12=0,\"\",'Prezenční listina'!C12)","v":"Jaroslav"},{"$f":"IF('Prezenční listina'!F12=0,\"\",'Prezenční listina'!D12)","v":1970},{"$f":"IF('Prezenční listina'!F12=0,\"\",'Prezenční listina'!E12)","v":"Brno"},{"$f":"IF('Prezenční listina'!F12=0,\"\",'Prezenční listina'!H12)","v":"B"}]
[46,{"$f":"IF('Prezenční listina'!F83=0,\"\",'Prezenční listina'!F83)","v":51},{"$f":"IF('Prezenční listina'!F83=0,\"\",'Prezenční listina'!B83)","v":"Pešáková"},{"$f":"IF('Prezenční listina'!F83=0,\"\",'Prezenční listina'!C83)","v":"Mirka"},{"$f":"IF('Prezenční listina'!F83=0,\"\",'Prezenční listina'!D83)","v":1985},{"$f":"IF('Prezenční listina'!F83=0,\"\",'Prezenční listina'!E83)","v":"AK RACERS Tetčice"},{"$f":"IF('Prezenční listina'!F83=0,\"\",'Prezenční listina'!H83)","v":"F"}]
[47,{"$f":"IF('Prezenční listina'!F47=0,\"\",'Prezenční listina'!F47)","v":53},{"$f":"IF('Prezenční listina'!F47=0,\"\",'Prezenční listina'!B47)","v":"Očenášek"},{"$f":"IF('Prezenční listina'!F47=0,\"\",'Prezenční listina'!C47)","v":"Zdeněk"},{"$f":"IF('Prezenční listina'!F47=0,\"\",'Prezenční listina'!D47)","v":1976},{"$f":"IF('Prezenční listina'!F47=0,\"\",'Prezenční listina'!E47)","v":"Brno"},{"$f":"IF('Prezenční listina'!F47=0,\"\",'Prezenční listina'!H47)","v":"A"}]
[48,{"$f":"IF('Prezenční listina'!F43=0,\"\",'Prezenční listina'!F43)","v":54},{"$f":"IF('Prezenční listina'!F43=0,\"\",'Prezenční listina'!B43)","v":"Mareš"},{"$f":"IF('Prezenční listina'!F43=0,\"\",'Prezenční listina'!C43)","v":"Bohumil"},{"$f":"IF('Prezenční listina'!F43=0,\"\",'Prezenční listina'!D43)","v":1951},{"$f":"IF('Prezenční listina'!F43=0,\"\",'Prezenční listina'!E43)","v":"LEAR Brno"},{"$f":"IF('Prezenční listina'!F43=0,\"\",'Prezenční listina'!H43)","v":"D"}]
[49,{"$f":"IF('Prezenční listina'!F33=0,\"\",'Prezenční listina'!F33)","v":55},{"$f":"IF('Prezenční listina'!F33=0,\"\",'Prezenční listina'!B33)","v":"Kolman"},{"$f":"IF('Prezenční listina'!F33=0,\"\",'Prezenční listina'!C33)","v":"Jakub"},{"$f":"IF('Prezenční listina'!F33=0,\"\",'Prezenční listina'!D33)","v":1976},{"$f":"IF('Prezenční listina'!F33=0,\"\",'Prezenční listina'!E33)","v":"Posilovna Průvan"},{"$f":"IF('Prezenční listina'!F33=0,\"\",'Prezenční listina'!H33)","v":"A"}]
[50,{"$f":"IF('Prezenční listina'!F27=0,\"\",'Prezenční listina'!F27)","v":56},{"$f":"IF('Prezenční listina'!F27=0,\"\",'Prezenční listina'!B27)","v":"Johaníková"},{"$f":"IF('Prezenční listina'!F27=0,\"\",'Prezenční listina'!C27)","v":"Lucie"},{"$f":"IF('Prezenční listina'!F27=0,\"\",'Prezenční listina'!D27)","v":1986},{"$f":"IF('Prezenční listina'!F27=0,\"\",'Prezenční listina'!E27)","v":"Moravská Slávia Brno"},{"$f":"IF('Prezenční listina'!F27=0,\"\",'Prezenční listina'!H27)","v":"F"}]
[51,{"$f":"IF('Prezenční listina'!F11=0,\"\",'Prezenční listina'!F11)","v":57},{"$f":"IF('Prezenční listina'!F11=0,\"\",'Prezenční listina'!B11)","v":"Češner"},{"$f":"IF('Prezenční listina'!F11=0,\"\",'Prezenční listina'!C11)","v":"Vladimír"},{"$f":"IF('Prezenční listina'!F11=0,\"\",'Prezenční listina'!D11)","v":1958},{"$f":"IF('Prezenční listina'!F11=0,\"\",'Prezenční listina'!E11)","v":"Odolena Voda"},{"$f":"IF('Prezenční listina'!F11=0,\"\",'Prezenční listina'!H11)","v":"C"}]
[52,{"$f":"IF('Prezenční listina'!F53=0,\"\",'Prezenční listina'!F53)","v":58},{"$f":"IF('Prezenční listina'!F53=0,\"\",'Prezenční listina'!B53)","v":"Řezníček"},{"$f":"IF('Prezenční listina'!F53=0,\"\",'Prezenční listina'!C53)","v":"Roman"},{"$f":"IF('Prezenční listina'!F53=0,\"\",'Prezenční listina'!D53)","v":1977},{"$f":"IF('Prezenční listina'!F53=0,\"\",'Prezenční listina'!E53)","v":"Žďár nad Sázavou"},{"$f":"IF('Prezenční listina'!F53=0,\"\",'Prezenční listina'!H53)","v":"A"}]
[53,{"$f":"IF('Prezenční listina'!F23=0,\"\",'Prezenční listina'!F23)","v":59},{"$f":"IF('Prezenční listina'!F23=0,\"\",'Prezenční listina'!B23)","v":"Hübner"},{"$f":"IF('Prezenční listina'!F23=0,\"\",'Prezenční listina'!C23)","v":"Jan"},{"$f":"IF('Prezenční listina'!F23=0,\"\",'Prezenční listina'!D23)","v":1978},{"$f":"IF('Prezenční listina'!F23=0,\"\",'Prezenční listina'!E23)","v":"SDH Bolešín"},{"$f":"IF('Prezenční listina'!F23=0,\"\",'Prezenční listina'!H23)","v":"A"}]
[54,{"$f":"IF('Prezenční listina'!F84=0,\"\",'Prezenční listina'!F84)","v":60},{"$f":"IF('Prezenční listina'!F84=0,\"\",'Prezenční listina'!B84)","v":"Kupidlovský"},{"$f":"IF('Prezenční listina'!F84=0,\"\",'Prezenční listina'!C84)","v":"Daniel"},{"$f":"IF('Prezenční listina'!F84=0,\"\",'Prezenční listina'!D84)","v":1976},{"$f":"IF('Prezenční listina'!F84=0,\"\",'Prezenční listina'!E84)","v":"Stodůlky"},{"$f":"IF('Prezenční listina'!F84=0,\"\",'Prezenční listina'!H84)","v":"A"}]
[55,{"$f":"IF('Prezenční listina'!F5=0,\"\",'Prezenční listina'!F5)","v":61},{"$f":"IF('Prezenční listina'!F5=0,\"\",'Prezenční listina'!B5)","v":"Bezrouk"},{"$f":"IF('Prezenční listina'!F5=0,\"\",'Prezenční listina'!C5)","v":"Jiří"},{"$f":"IF('Prezenční listina'!F5=0,\"\",'Prezenční listina'!D5)","v":1962},{"$f":"IF('Prezenční listina'!F5=0,\"\",'Prezenční listina'!E5)","v":"Křtiny"},{"$f":"IF('Prezenční listina'!F5=0,\"\",'Prezenční listina'!H5)","v":"C"}]
[56,{"$f":"IF('Prezenční listina'!F85=0,\"\",'Prezenční listina'!F85)","v":62},{"$f":"IF('Prezenční listina'!F85=0,\"\",'Prezenční listina'!B85)","v":"Čuhel"},{"$f":"IF('Prezenční listina'!F85=0,\"\",'Prezenční listina'!C85)","v":"Jiří"},{"$f":"IF('Prezenční listina'!F85=0,\"\",'Prezenční listina'!D85)","v":1958},{"$f":"IF('Prezenční listina'!F85=0,\"\",'Prezenční listina'!E85)","v":"Křtěnov"},{"$f":"IF('Prezenční listina'!F85=0,\"\",'Prezenční listina'!H85)","v":"C"}]
[57,{"$f":"IF('Prezenční listina'!F55=0,\"\",'Prezenční listina'!F55)","v":63},{"$f":"IF('Prezenční listina'!F55=0,\"\",'Prezenční listina'!B55)","v":"Sedláček"},{"$f":"IF('Prezenční listina'!F55=0,\"\",'Prezenční listina'!C55)","v":"Aleš"},{"$f":"IF('Prezenční listina'!F55=0,\"\",'Prezenční listina'!D55)","v":1976},{"$f":"IF('Prezenční listina'!F55=0,\"\",'Prezenční listina'!E55)","v":"Sokol Přísnotice"},{"$f":"IF('Prezenční listina'!F55=0,\"\",'Prezenční listina'!H55)","v":"A"}]
[58,{"$f":"IF('Prezenční listina'!F10=0,\"\",'Prezenční listina'!F10)","v":64},{"$f":"IF('Prezenční listina'!F10=0,\"\",'Prezenční listina'!B10)","v":"Cechmaister"},{"$f":"IF('Prezenční listina'!F10=0,\"\",'Prezenční listina'!C10)","v":"Bohumil"},{"$f":"IF('Prezenční listina'!F10=0,\"\",'Prezenční listina'!D10)","v":1974},{"$f":"IF('Prezenční listina'!F10=0,\"\",'Prezenční listina'!E10)","v":"Sokol Přísnotice"},{"$f":"IF('Prezenční listina'!F10=0,\"\",'Prezenční listina'!H10)","v":"B"}]
[59,{"$f":"IF('Prezenční listina'!F86=0,\"\",'Prezenční listina'!F86)","v":67},{"$f":"IF('Prezenční listina'!F86=0,\"\",'Prezenční listina'!B86)","v":"Dubský"},{"$f":"IF('Prezenční listina'!F86=0,\"\",'Prezenční listina'!C86)","v":"Roman"},{"$f":"IF('Prezenční listina'!F86=0,\"\",'Prezenční listina'!D86)","v":1978},{"$f":"IF('Prezenční listina'!F86=0,\"\",'Prezenční listina'!E86)","v":"SK Přibyslav"},{"$f":"IF('Prezenční listina'!F86=0,\"\",'Prezenční listina'!H86)","v":"A"}]
[60,{"$f":"IF('Prezenční listina'!F87=0,\"\",'Prezenční listina'!F87)","v":69},{"$f":"IF('Prezenční listina'!F87=0,\"\",'Prezenční listina'!B87)","v":"Rokosová"},{"$f":"IF('Prezenční listina'!F87=0,\"\",'Prezenční listina'!C87)","v":"Ivana"},{"$f":"IF('Prezenční listina'!F87=0,\"\",'Prezenční listina'!D87)","v":1982},{"$f":"IF('Prezenční listina'!F87=0,\"\",'Prezenční listina'!E87)","v":"Polička"},{"$f":"IF('Prezenční listina'!F87=0,\"\",'Prezenční listina'!H87)","v":"F"}]
[61,{"$f":"IF('Prezenční listina'!F88=0,\"\",'Prezenční listina'!F88)","v":70},{"$f":"IF('Prezenční listina'!F88=0,\"\",'Prezenční listina'!B88)","v":"Strakoš"},{"$f":"IF('Prezenční listina'!F88=0,\"\",'Prezenční listina'!C88)","v":"Vilém"},{"$f":"IF('Prezenční listina'!F88=0,\"\",'Prezenční listina'!D88)","v":1969},{"$f":"IF('Prezenční listina'!F88=0,\"\",'Prezenční listina'!E88)","v":"SK Fuga Kuřim"},{"$f":"IF('Prezenční listina'!F88=0,\"\",'Prezenční listina'!H88)","v":"B"}]
[62,{"$f":"IF('Prezenční listina'!F89=0,\"\",'Prezenční listina'!F89)","v":72},{"$f":"IF('Prezenční listina'!F89=0,\"\",'Prezenční listina'!B89)","v":"Mička"},{"$f":"IF('Prezenční listina'!F89=0,\"\",'Prezenční listina'!C89)","v":"Michal"},{"$f":"IF('Prezenční listina'!F89=0,\"\",'Prezenční listina'!D89)","v":1987},{"$f":"IF('Prezenční listina'!F89=0,\"\",'Prezenční listina'!E89)","v":"Žďár nad Sázavou"},{"$f":"IF('Prezenční listina'!F89=0,\"\",'Prezenční listina'!H89)","v":"A"}]
[63,{"$f":"IF('Prezenční listina'!F8=0,\"\",'Prezenční listina'!F8)","v":73},{"$f":"IF('Prezenční listina'!F8=0,\"\",'Prezenční listina'!B8)","v":"Brabenec"},{"$f":"IF('Prezenční listina'!F8=0,\"\",'Prezenční listina'!C8)","v":"Aleš"},{"$f":"IF('Prezenční listina'!F8=0,\"\",'Prezenční listina'!D8)","v":1987},{"$f":"IF('Prezenční listina'!F8=0,\"\",'Prezenční listina'!E8)","v":"Žďár nad Sázavou"},{"$f":"IF('Prezenční listina'!F8=0,\"\",'Prezenční listina'!H8)","v":"A"}]
[64,{"$f":"IF('Prezenční listina'!F7=0,\"\",'Prezenční listina'!F7)","v":74},{"$f":"IF('Prezenční listina'!F7=0,\"\",'Prezenční listina'!B7)","v":"Brabenec"},{"$f":"IF('Prezenční listina'!F7=0,\"\",'Prezenční listina'!C7)","v":"Miroslav"},{"$f":"IF('Prezenční listina'!F7=0,\"\",'Prezenční listina'!D7)","v":1959},{"$f":"IF('Prezenční listina'!F7=0,\"\",'Prezenční listina'!E7)","v":"Žďár nad Sázavou"},{"$f":"IF('Prezenční listina'!F7=0,\"\",'Prezenční listina'!H7)","v":"C"}]
[65,{"$f":"IF('Prezenční listina'!F29=0,\"\",'Prezenční listina'!F29)","v":75},{"$f":"IF('Prezenční listina'!F29=0,\"\",'Prezenční listina'!B29)","v":"Kaše"},{"$f":"IF('Prezenční listina'!F29=0,\"\",'Prezenční listina'!C29)","v":"Jaroslav"},{"$f":"IF('Prezenční listina'!F29=0,\"\",'Prezenční listina'!D29)","v":1953},{"$f":"IF('Prezenční listina'!F29=0,\"\",'Prezenční listina'!E29)","v":"Club běžeckých outsiderů"},{"$f":"IF('Prezenční listina'!F29=0,\"\",'Prezenční listina'!H29)","v":"D"}]
[66,{"$f":"IF('Prezenční listina'!F46=0,\"\",'Prezenční listina'!F46)","v":76},{"$f":"IF('Prezenční listina'!F46=0,\"\",'Prezenční listina'!B46)","v":"Novotný"},{"$f":"IF('Prezenční listina'!F46=0,\"\",'Prezenční listina'!C46)","v":"Petr"},{"$f":"IF('Prezenční listina'!F46=0,\"\",'Prezenční listina'!D46)","v":1965},{"$f":"IF('Prezenční listina'!F46=0,\"\",'Prezenční listina'!E46)","v":"Kuřim"},{"$f":"IF('Prezenční listina'!F46=0,\"\",'Prezenční listina'!H46)","v":"C"}]
[67,{"$f":"IF('Prezenční listina'!F4=0,\"\",'Prezenční listina'!F4)","v":77},{"$f":"IF('Prezenční listina'!F4=0,\"\",'Prezenční listina'!B4)","v":"Barták"},{"$f":"IF('Prezenční listina'!F4=0,\"\",'Prezenční listina'!C4)","v":"Roland"},{"$f":"IF('Prezenční listina'!F4=0,\"\",'Prezenční listina'!D4)","v":1965},{"$f":"IF('Prezenční listina'!F4=0,\"\",'Prezenční listina'!E4)","v":"Kuřim"},{"$f":"IF('Prezenční listina'!F4=0,\"\",'Prezenční listina'!H4)","v":"C"}]
[68,{"$f":"IF('Prezenční listina'!F90=0,\"\",'Prezenční listina'!F90)","v":79},{"$f":"IF('Prezenční listina'!F90=0,\"\",'Prezenční listina'!B90)","v":"Vídeňský"},{"$f":"IF('Prezenční listina'!F90=0,\"\",'Prezenční listina'!C90)","v":"Jiří"},{"$f":"IF('Prezenční listina'!F90=0,\"\",'Prezenční listina'!D90)","v":1947},{"$f":"IF('Prezenční listina'!F90=0,\"\",'Prezenční listina'!E90)","v":"KD Moravské Budějovice"},{"$f":"IF('Prezenční listina'!F90=0,\"\",'Prezenční listina'!H90)","v":"D"}]
[69,{"$f":"IF('Prezenční listina'!F45=0,\"\",'Prezenční listina'!F45)","v":80},{"$f":"IF('Prezenční listina'!F45=0,\"\",'Prezenční listina'!B45)","v":"Nekuža"},{"$f":"IF('Prezenční listina'!F45=0,\"\",'Prezenční listina'!C45)","v":"Jiří"},{"$f":"IF('Prezenční listina'!F45=0,\"\",'Prezenční listina'!D45)","v":1951},{"$f":"IF('Prezenční listina'!F45=0,\"\",'Prezenční listina'!E45)","v":"RUNNERS Zbýšov"},{"$f":"IF('Prezenční listina'!F45=0,\"\",'Prezenční listina'!H45)","v":"D"}]
[{"$f":"IF(C74=\"\",\"\",A73+1)","v":70},{"$f":"IF('Prezenční listina'!F17=0,\"\",'Prezenční listina'!F17)","v":82},{"$f":"IF('Prezenční listina'!F17=0,\"\",'Prezenční listina'!B17)","v":"Glier"},{"$f":"IF('Prezenční listina'!F17=0,\"\",'Prezenční listina'!C17)","v":"Michal"},{"$f":"IF('Prezenční listina'!F17=0,\"\",'Prezenční listina'!D17)","v":1982},{"$f":"IF('Prezenční listina'!F17=0,\"\",'Prezenční listina'!E17)","v":"Moravská Slávia Brno"},{"$f":"IF('Prezenční listina'!F17=0,\"\",'Prezenční listina'!H17)","v":"A"}]
[71,{"$f":"IF('Prezenční listina'!F91=0,\"\",'Prezenční listina'!F91)","v":83},{"$f":"IF('Prezenční listina'!F91=0,\"\",'Prezenční listina'!B91)","v":"Holoubek"},{"$f":"IF('Prezenční listina'!F91=0,\"\",'Prezenční listina'!C91)","v":"Jindřich"},{"$f":"IF('Prezenční listina'!F91=0,\"\",'Prezenční listina'!D91)","v":1968},{"$f":"IF('Prezenční listina'!F91=0,\"\",'Prezenční listina'!E91)","v":"Brno"},{"$f":"IF('Prezenční listina'!F91=0,\"\",'Prezenční listina'!H91)","v":"B"}]
[72,{"$f":"IF('Prezenční listina'!F92=0,\"\",'Prezenční listina'!F92)","v":84},{"$f":"IF('Prezenční listina'!F92=0,\"\",'Prezenční listina'!B92)","v":"Šilhan"},{"$f":"IF('Prezenční listina'!F92=0,\"\",'Prezenční listina'!C92)","v":"Vladimír"},{"$f":"IF('Prezenční listina'!F92=0,\"\",'Prezenční listina'!D92)","v":1957},{"$f":"IF('Prezenční listina'!F92=0,\"\",'Prezenční listina'!E92)","v":"Original Ježek Babice nad Svitavou"},{"$f":"IF('Prezenční listina'!F92=0,\"\",'Prezenční listina'!H92)","v":"C"}]
[73,{"$f":"IF('Prezenční listina'!F26=0,\"\",'Prezenční listina'!F26)","v":85},{"$f":"IF('Prezenční listina'!F26=0,\"\",'Prezenční listina'!B26)","v":"Jaskulka"},{"$f":"IF('Prezenční listina'!F26=0,\"\",'Prezenční listina'!C26)","v":"Martin"},{"$f":"IF('Prezenční listina'!F26=0,\"\",'Prezenční listina'!D26)","v":1968},{"$f":"IF('Prezenční listina'!F26=0,\"\",'Prezenční listina'!E26)","v":"Kuřim"},{"$f":"IF('Prezenční listina'!F26=0,\"\",'Prezenční listina'!H26)","v":"B"}]
[74,{"$f":"IF('Prezenční listina'!F37=0,\"\",'Prezenční listina'!F37)","v":86},{"$f":"IF('Prezenční listina'!F37=0,\"\",'Prezenční listina'!B37)","v":"Kosmák"},{"$f":"IF('Prezenční listina'!F37=0,\"\",'Prezenční listina'!C37)","v":"Václav"},{"$f":"IF('Prezenční listina'!F37=0,\"\",'Prezenční listina'!D37)","v":1983},{"$f":"IF('Prezenční listina'!F37=0,\"\",'Prezenční listina'!E37)","v":"Brno"},{"$f":"IF('Prezenční listina'!F37=0,\"\",'Prezenční listina'!H37)","v":"A"}]
[75,{"$f":"IF('Prezenční listina'!F14=0,\"\",'Prezenční listina'!F14)","v":87},{"$f":"IF('Prezenční listina'!F14=0,\"\",'Prezenční listina'!B14)","v":"Dýrová Macháčková"},{"$f":"IF('Prezenční listina'!F14=0,\"\",'Prezenční listina'!C14)","v":"Šárka"},{"$f":"IF('Prezenční listina'!F14=0,\"\",'Prezenční listina'!D14)","v":1983},{"$f":"IF('Prezenční listina'!F14=0,\"\",'Prezenční listina'!E14)","v":"Mizunoteam Brno"},{"$f":"IF('Prezenční listina'!F14=0,\"\",'Prezenční listina'!H14)","v":"F"}]
[76,{"$f":"IF('Prezenční listina'!F32=0,\"\",'Prezenční listina'!F32)","v":89},{"$f":"IF('Prezenční listina'!F32=0,\"\",'Prezenční listina'!B32)","v":"Kohoutek"},{"$f":"IF('Prezenční listina'!F32=0,\"\",'Prezenční listina'!C32)","v":"Jaromír"},{"$f":"IF('Prezenční listina'!F32=0,\"\",'Prezenční listina'!D32)","v":1955},{"$f":"IF('Prezenční listina'!F32=0,\"\",'Prezenční listina'!E32)","v":"Brno"},{"$f":"IF('Prezenční listina'!F32=0,\"\",'Prezenční listina'!H32)","v":"D"}]
[77,{"$f":"IF('Prezenční listina'!F93=0,\"\",'Prezenční listina'!F93)","v":90},{"$f":"IF('Prezenční listina'!F93=0,\"\",'Prezenční listina'!B93)","v":"Ježová"},{"$f":"IF('Prezenční listina'!F93=0,\"\",'Prezenční listina'!C93)","v":"Martina"},{"$f":"IF('Prezenční listina'!F93=0,\"\",'Prezenční listina'!D93)","v":1975},{"$f":"IF('Prezenční listina'!F93=0,\"\",'Prezenční listina'!E93)","v":"Brno"},{"$f":"IF('Prezenční listina'!F93=0,\"\",'Prezenční listina'!H93)","v":"G"}]
[78,{"$f":"IF('Prezenční listina'!F94=0,\"\",'Prezenční listina'!F94)","v":91},{"$f":"IF('Prezenční listina'!F94=0,\"\",'Prezenční listina'!B94)","v":"Poneš"},{"$f":"IF('Prezenční listina'!F94=0,\"\",'Prezenční listina'!C94)","v":"Pavel"},{"$f":"IF('Prezenční listina'!F94=0,\"\",'Prezenční listina'!D94)","v":1978},{"$f":"IF('Prezenční listina'!F94=0,\"\",'Prezenční listina'!E94)","v":"TK SOKOLI Brno"},{"$f":"IF('Prezenční listina'!F94=0,\"\",'Prezenční listina'!H94)","v":"A"}]
[79,{"$f":"IF('Prezenční listina'!F54=0,\"\",'Prezenční listina'!F54)","v":92},{"$f":"IF('Prezenční listina'!F54=0,\"\",'Prezenční listina'!B54)","v":"Řezníček"},{"$f":"IF('Prezenční listina'!F54=0,\"\",'Prezenční listina'!C54)","v":"Petr"},{"$f":"IF('Prezenční listina'!F54=0,\"\",'Prezenční listina'!D54)","v":1973},{"$f":"IF('Prezenční listina'!F54=0,\"\",'Prezenční listina'!E54)","v":"Polnička"},{"$f":"IF('Prezenční listina'!F54=0,\"\",'Prezenční listina'!H54)","v":"B"}]
[80,{"$f":"IF('Prezenční listina'!F95=0,\"\",'Prezenční listina'!F95)","v":93},{"$f":"IF('Prezenční listina'!F95=0,\"\",'Prezenční listina'!B95)","v":"Havlíček"},{"$f":"IF('Prezenční listina'!F95=0,\"\",'Prezenční listina'!C95)","v":"Ivo"},{"$f":"IF('Prezenční listina'!F95=0,\"\",'Prezenční listina'!D95)","v":1966},{"$f":"IF('Prezenční listina'!F95=0,\"\",'Prezenční listina'!E95)","v":"Lánov - Krkonoše"},{"$f":"IF('Prezenční listina'!F95=0,\"\",'Prezenční listina'!H95)","v":"B"}]
[81,{"$f":"IF('Prezenční listina'!F96=0,\"\",'Prezenční listina'!F96)","v":94},{"$f":"IF('Prezenční listina'!F96=0,\"\",'Prezenční listina'!B96)","v":"Benc"},{"$f":"IF('Prezenční listina'!F96=0,\"\",'Prezenční listina'!C96)","v":"Karel"},{"$f":"IF('Prezenční listina'!F96=0,\"\",'Prezenční listina'!D96)","v":1975},{"$f":"IF('Prezenční listina'!F96=0,\"\",'Prezenční listina'!E96)","v":"Pivonice"},{"$f":"IF('Prezenční listina'!F96=0,\"\",'Prezenční listina'!H96)","v":"B"}]
[82,{"$f":"IF('Prezenční listina'!F40=0,\"\",'Prezenční listina'!F40)","v":95},{"$f":"IF('Prezenční listina'!F40=0,\"\",'Prezenční listina'!B40)","v":"Kratochvíl"},{"$f":"IF('Prezenční listina'!F40=0,\"\",'Prezenční listina'!C40)","v":"Jaroslav"},{"$f":"IF('Prezenční listina'!F40=0,\"\",'Prezenční listina'!D40)","v":1977},{"$f":"IF('Prezenční listina'!F40=0,\"\",'Prezenční listina'!E40)","v":"SDH Hluboké"},{"$f":"IF('Prezenční listina'!F40=0,\"\",'Prezenční listina'!H40)","v":"A"}]
[83,{"$f":"IF('Prezenční listina'!F19=0,\"\",'Prezenční listina'!F19)","v":96},{"$f":"IF('Prezenční listina'!F19=0,\"\",'Prezenční listina'!B19)","v":"Hladký"},{"$f":"IF('Prezenční listina'!F19=0,\"\",'Prezenční listina'!C19)","v":"Jiří"},{"$f":"IF('Prezenční listina'!F19=0,\"\",'Prezenční listina'!D19)","v":1975},{"$f":"IF('Prezenční listina'!F19=0,\"\",'Prezenční listina'!E19)","v":"Brno - Nový Lískovec"},{"$f":"IF('Prezenční listina'!F19=0,\"\",'Prezenční listina'!H19)","v":"B"}]
[84,{"$f":"IF('Prezenční listina'!F97=0,\"\",'Prezenční listina'!F97)","v":97},{"$f":"IF('Prezenční listina'!F97=0,\"\",'Prezenční listina'!B97)","v":"Tonarová"},{"$f":"IF('Prezenční listina'!F97=0,\"\",'Prezenční listina'!C97)","v":"Miroslava"},{"$f":"IF('Prezenční listina'!F97=0,\"\",'Prezenční listina'!D97)","v":1976},{"$f":"IF('Prezenční listina'!F97=0,\"\",'Prezenční listina'!E97)","v":"Bory"},{"$f":"IF('Prezenční listina'!F97=0,\"\",'Prezenční listina'!H97)","v":"G"}]
[85,{"$f":"IF('Prezenční listina'!F35=0,\"\",'Prezenční listina'!F35)","v":98},{"$f":"IF('Prezenční listina'!F35=0,\"\",'Prezenční listina'!B35)","v":"Konečný"},{"$f":"IF('Prezenční listina'!F35=0,\"\",'Prezenční listina'!C35)","v":"Libor"},{"$f":"IF('Prezenční listina'!F35=0,\"\",'Prezenční listina'!D35)","v":1971},{"$f":"IF('Prezenční listina'!F35=0,\"\",'Prezenční listina'!E35)","v":"Kuřim"},{"$f":"IF('Prezenční listina'!F35=0,\"\",'Prezenční listina'!H35)","v":"B"}]
[86,{"$f":"IF('Prezenční listina'!F98=0,\"\",'Prezenční listina'!F98)","v":99},{"$f":"IF('Prezenční listina'!F98=0,\"\",'Prezenční listina'!B98)","v":"Vacula"},{"$f":"IF('Prezenční listina'!F98=0,\"\",'Prezenční listina'!C98)","v":"Ondřej"},{"$f":"IF('Prezenční listina'!F98=0,\"\",'Prezenční listina'!D98)","v":1981},{"$f":"IF('Prezenční listina'!F98=0,\"\",'Prezenční listina'!E98)","v":"AC Lelek Lelekovice"},{"$f":"IF('Prezenční listina'!F98=0,\"\",'Prezenční listina'!H98)","v":"A"}]
[{"$f":"IF(C91=\"\",\"\",A90+1)","v":87},{"$f":"IF('Prezenční listina'!F16=0,\"\",'Prezenční listina'!F16)","v":100},{"$f":"IF('Prezenční listina'!F16=0,\"\",'Prezenční listina'!B16)","v":"Fučík"},{"$f":"IF('Prezenční listina'!F16=0,\"\",'Prezenční listina'!C16)","v":"Jaroslav"},{"$f":"IF('Prezenční listina'!F16=0,\"\",'Prezenční listina'!D16)","v":1974},{"$f":"IF('Prezenční listina'!F16=0,\"\",'Prezenční listina'!E16)","v":"Prosetín"},{"$f":"IF('Prezenční listina'!F16=0,\"\",'Prezenční listina'!H16)","v":"B"}]
[88,{"$f":"IF('Prezenční listina'!F99=0,\"\",'Prezenční listina'!F99)","v":101},{"$f":"IF('Prezenční listina'!F99=0,\"\",'Prezenční listina'!B99)","v":"Milka"},{"$f":"IF('Prezenční listina'!F99=0,\"\",'Prezenční listina'!C99)","v":"Zdeněk"},{"$f":"IF('Prezenční listina'!F99=0,\"\",'Prezenční listina'!D99)","v":1984},{"$f":"IF('Prezenční listina'!F99=0,\"\",'Prezenční listina'!E99)","v":"Brno"},{"$f":"IF('Prezenční listina'!F99=0,\"\",'Prezenční listina'!H99)","v":"A"}]
[89,{"$f":"IF('Prezenční listina'!F36=0,\"\",'Prezenční listina'!F36)","v":102},{"$f":"IF('Prezenční listina'!F36=0,\"\",'Prezenční listina'!B36)","v":"Konečný"},{"$f":"IF('Prezenční listina'!F36=0,\"\",'Prezenční listina'!C36)","v":"Jaroslav"},{"$f":"IF('Prezenční listina'!F36=0,\"\",'Prezenční listina'!D36)","v":1969},{"$f":"IF('Prezenční listina'!F36=0,\"\",'Prezenční listina'!E36)","v":"Popůvky"},{"$f":"IF('Prezenční listina'!F36=0,\"\",'Prezenční listina'!H36)","v":"B"}]
[90,{"$f":"IF('Prezenční listina'!F28=0,\"\",'Prezenční listina'!F28)","v":103},{"$f":"IF('Prezenční listina'!F28=0,\"\",'Prezenční listina'!B28)","v":"Junga"},{"$f":"IF('Prezenční listina'!F28=0,\"\",'Prezenční listina'!C28)","v":"Stanislav"},{"$f":"IF('Prezenční listina'!F28=0,\"\",'Prezenční listina'!D28)","v":1971},{"$f":"IF('Prezenční listina'!F28=0,\"\",'Prezenční listina'!E28)","v":"Újezd u Brna"},{"$f":"IF('Prezenční listina'!F28=0,\"\",'Prezenční listina'!H28)","v":"B"}]
[91,{"$f":"IF('Prezenční listina'!F56=0,\"\",'Prezenční listina'!F56)","v":104},{"$f":"IF('Prezenční listina'!F56=0,\"\",'Prezenční listina'!B56)","v":"Sedláček"},{"$f":"IF('Prezenční listina'!F56=0,\"\",'Prezenční listina'!C56)","v":"Svatopluk"},{"$f":"IF('Prezenční listina'!F56=0,\"\",'Prezenční listina'!D56)","v":1957},{"$f":"IF('Prezenční listina'!F56=0,\"\",'Prezenční listina'!E56)","v":"Moravská Slávia Brno"},{"$f":"IF('Prezenční listina'!F56=0,\"\",'Prezenční listina'!H56)","v":"C"}]
[92,{"$f":"IF('Prezenční listina'!F51=0,\"\",'Prezenční listina'!F51)","v":105},{"$f":"IF('Prezenční listina'!F51=0,\"\",'Prezenční listina'!B51)","v":"Procházka"},{"$f":"IF('Prezenční listina'!F51=0,\"\",'Prezenční listina'!C51)","v":"Pavel"},{"$f":"IF('Prezenční listina'!F51=0,\"\",'Prezenční listina'!D51)","v":1988},{"$f":"IF('Prezenční listina'!F51=0,\"\",'Prezenční listina'!E51)","v":"Bystřice nad Pernštejnem"},{"$f":"IF('Prezenční listina'!F51=0,\"\",'Prezenční listina'!H51)","v":"A"}]
[93,{"$f":"IF('Prezenční listina'!F49=0,\"\",'Prezenční listina'!F49)","v":106},{"$f":"IF('Prezenční listina'!F49=0,\"\",'Prezenční listina'!B49)","v":"Podmelová"},{"$f":"IF('Prezenční listina'!F49=0,\"\",'Prezenční listina'!C49)","v":"Vilma"},{"$f":"IF('Prezenční listina'!F49=0,\"\",'Prezenční listina'!D49)","v":1962},{"$f":"IF('Prezenční listina'!F49=0,\"\",'Prezenční listina'!E49)","v":"Moravská Slávia Brno"},{"$f":"IF('Prezenční listina'!F49=0,\"\",'Prezenční listina'!H49)","v":"H"}]
[94,{"$f":"IF('Prezenční listina'!F48=0,\"\",'Prezenční listina'!F48)","v":107},{"$f":"IF('Prezenční listina'!F48=0,\"\",'Prezenční listina'!B48)","v":"Orálek"},{"$f":"IF('Prezenční listina'!F48=0,\"\",'Prezenční listina'!C48)","v":"Daniel"},{"$f":"IF('Prezenční listina'!F48=0,\"\",'Prezenční listina'!D48)","v":1970},{"$f":"IF('Prezenční listina'!F48=0,\"\",'Prezenční listina'!E48)","v":"Moravská Slávia Brno"},{"$f":"IF('Prezenční listina'!F48=0,\"\",'Prezenční listina'!H48)","v":"B"}]
["",{"$f":"IF('Prezenční listina'!F9=0,\"\",'Prezenční listina'!F9)","v":""},{"$f":"IF('Prezenční listina'!F9=0,\"\",'Prezenční listina'!B9)","v":""},{"$f":"IF('Prezenční listina'!F9=0,\"\",'Prezenční listina'!C9)","v":""},{"$f":"IF('Prezenční listina'!F9=0,\"\",'Prezenční listina'!D9)","v":""},{"$f":"IF('Prezenční listina'!F9=0,\"\",'Prezenční listina'!E9)","v":""},{"$f":"IF('Prezenční listina'!F9=0,\"\",'Prezenční listina'!H9)","v":""}]
["",{"$f":"IF('Prezenční listina'!F24=0,\"\",'Prezenční listina'!F24)","v":""},{"$f":"IF('Prezenční listina'!F24=0,\"\",'Prezenční listina'!B24)","v":""},{"$f":"IF('Prezenční listina'!F24=0,\"\",'Prezenční listina'!C24)","v":""},{"$f":"IF('Prezenční listina'!F24=0,\"\",'Prezenční listina'!D24)","v":""},{"$f":"IF('Prezenční listina'!F24=0,\"\",'Prezenční listina'!E24)","v":""},{"$f":"IF('Prezenční listina'!F24=0,\"\",'Prezenční listina'!H24)","v":""}]
["",{"$f":"IF('Prezenční listina'!F30=0,\"\",'Prezenční listina'!F30)","v":""},{"$f":"IF('Prezenční listina'!F30=0,\"\",'Prezenční listina'!B30)","v":""},{"$f":"IF('Prezenční listina'!F30=0,\"\",'Prezenční listina'!C30)","v":""},{"$f":"IF('Prezenční listina'!F30=0,\"\",'Prezenční listina'!D30)","v":""},{"$f":"IF('Prezenční listina'!F30=0,\"\",'Prezenční listina'!E30)","v":""},{"$f":"IF('Prezenční listina'!F30=0,\"\",'Prezenční listina'!H30)","v":""}]
["",{"$f":"IF('Prezenční listina'!F100=0,\"\",'Prezenční listina'!F100)","v":""},{"$f":"IF('Prezenční listina'!F100=0,\"\",'Prezenční listina'!B100)","v":""},{"$f":"IF('Prezenční listina'!F100=0,\"\",'Prezenční listina'!C100)","v":""},{"$f":"IF('Prezenční listina'!F100=0,\"\",'Prezenční listina'!D100)","v":""},{"$f":"IF('Prezenční listina'!F100=0,\"\",'Prezenční listina'!E100)","v":""},{"$f":"IF('Prezenční listina'!F100=0,\"\",'Prezenční listina'!H100)","v":""}]
["",{"$f":"IF('Prezenční listina'!F101=0,\"\",'Prezenční listina'!F101)","v":""},{"$f":"IF('Prezenční listina'!F101=0,\"\",'Prezenční listina'!B101)","v":""},{"$f":"IF('Prezenční listina'!F101=0,\"\",'Prezenční listina'!C101)","v":""},{"$f":"IF('Prezenční listina'!F101=0,\"\",'Prezenční listina'!D101)","v":""},{"$f":"IF('Prezenční listina'!F101=0,\"\",'Prezenční listina'!E101)","v":""},{"$f":"IF('Prezenční listina'!F101=0,\"\",'Prezenční listina'!H101)","v":""}]
["",{"$f":"IF('Prezenční listina'!F102=0,\"\",'Prezenční listina'!F102)","v":""},{"$f":"IF('Prezenční listina'!F102=0,\"\",'Prezenční listina'!B102)","v":""},{"$f":"IF('Prezenční listina'!F102=0,\"\",'Prezenční listina'!C102)","v":""},{"$f":"IF('Prezenční listina'!F102=0,\"\",'Prezenční listina'!D102)","v":""},{"$f":"IF('Prezenční listina'!F102=0,\"\",'Prezenční listina'!E102)","v":""},{"$f":"IF('Prezenční listina'!F102=0,\"\",'Prezenční listina'!H102)","v":""}]
["",{"$f":"IF('Prezenční listina'!F103=0,\"\",'Prezenční listina'!F103)","v":""},{"$f":"IF('Prezenční listina'!F103=0,\"\",'Prezenční listina'!B103)","v":""},{"$f":"IF('Prezenční listina'!F103=0,\"\",'Prezenční listina'!C103)","v":""},{"$f":"IF('Prezenční listina'!F103=0,\"\",'Prezenční listina'!D103)","v":""},{"$f":"IF('Prezenční listina'!F103=0,\"\",'Prezenční listina'!E103)","v":""},{"$f":"IF('Prezenční listina'!F103=0,\"\",'Prezenční listina'!H103)","v":""}]
["",{"$f":"IF('Prezenční listina'!F104=0,\"\",'Prezenční listina'!F104)","v":""},{"$f":"IF('Prezenční listina'!F104=0,\"\",'Prezenční listina'!B104)","v":""},{"$f":"IF('Prezenční listina'!F104=0,\"\",'Prezenční listina'!C104)","v":""},{"$f":"IF('Prezenční listina'!F104=0,\"\",'Prezenční listina'!D104)","v":""},{"$f":"IF('Prezenční listina'!F104=0,\"\",'Prezenční listina'!E104)","v":""},{"$f":"IF('Prezenční listina'!F104=0,\"\",'Prezenční listina'!H104)","v":""}]
["",{"$f":"IF('Prezenční listina'!F105=0,\"\",'Prezenční listina'!F105)","v":""},{"$f":"IF('Prezenční listina'!F105=0,\"\",'Prezenční listina'!B105)","v":""},{"$f":"IF('Prezenční listina'!F105=0,\"\",'Prezenční listina'!C105)","v":""},{"$f":"IF('Prezenční listina'!F105=0,\"\",'Prezenční listina'!D105)","v":""},{"$f":"IF('Prezenční listina'!F105=0,\"\",'Prezenční listina'!E105)","v":""},{"$f":"IF('Prezenční listina'!F105=0,\"\",'Prezenční listina'!H105)","v":""}]
["",{"$f":"IF('Prezenční listina'!F106=0,\"\",'Prezenční listina'!F106)","v":""},{"$f":"IF('Prezenční listina'!F106=0,\"\",'Prezenční listina'!B106)","v":""},{"$f":"IF('Prezenční listina'!F106=0,\"\",'Prezenční listina'!C106)","v":""},{"$f":"IF('Prezenční listina'!F106=0,\"\",'Prezenční listina'!D106)","v":""},{"$f":"IF('Prezenční listina'!F106=0,\"\",'Prezenční listina'!E106)","v":""},{"$f":"IF('Prezenční listina'!F106=0,\"\",'Prezenční listina'!H106)","v":""}]
["",{"$f":"IF('Prezenční listina'!F107=0,\"\",'Prezenční listina'!F107)","v":""},{"$f":"IF('Prezenční listina'!F107=0,\"\",'Prezenční listina'!B107)","v":""},{"$f":"IF('Prezenční listina'!F107=0,\"\",'Prezenční listina'!C107)","v":""},{"$f":"IF('Prezenční listina'!F107=0,\"\",'Prezenční listina'!D107)","v":""},{"$f":"IF('Prezenční listina'!F107=0,\"\",'Prezenční listina'!E107)","v":""},{"$f":"IF('Prezenční listina'!F107=0,\"\",'Prezenční listina'!H107)","v":""}]
["",{"$f":"IF('Prezenční listina'!F108=0,\"\",'Prezenční listina'!F108)","v":""},{"$f":"IF('Prezenční listina'!F108=0,\"\",'Prezenční listina'!B108)","v":""},{"$f":"IF('Prezenční listina'!F108=0,\"\",'Prezenční listina'!C108)","v":""},{"$f":"IF('Prezenční listina'!F108=0,\"\",'Prezenční listina'!D108)","v":""},{"$f":"IF('Prezenční listina'!F108=0,\"\",'Prezenční listina'!E108)","v":""},{"$f":"IF('Prezenční listina'!F108=0,\"\",'Prezenční listina'!H108)","v":""}]
["",{"$f":"IF('Prezenční listina'!F110=0,\"\",'Prezenční listina'!F110)","v":""},{"$f":"IF('Prezenční listina'!F110=0,\"\",'Prezenční listina'!B110)","v":""},{"$f":"IF('Prezenční listina'!F110=0,\"\",'Prezenční listina'!C110)","v":""},{"$f":"IF('Prezenční listina'!F110=0,\"\",'Prezenční listina'!D110)","v":""},{"$f":"IF('Prezenční listina'!F110=0,\"\",'Prezenční listina'!E110)","v":""},{"$f":"IF('Prezenční listina'!F110=0,\"\",'Prezenční listina'!H110)","v":""}]
["",{"$f":"IF('Prezenční listina'!F109=0,\"\",'Prezenční listina'!F109)","v":""},{"$f":"IF('Prezenční listina'!F109=0,\"\",'Prezenční listina'!B109)","v":""},{"$f":"IF('Prezenční listina'!F109=0,\"\",'Prezenční listina'!C109)","v":""},{"$f":"IF('Prezenční listina'!F109=0,\"\",'Prezenční listina'!D109)","v":""},{"$f":"IF('Prezenční listina'!F109=0,\"\",'Prezenční listina'!E109)","v":""},{"$f":"IF('Prezenční listina'!F109=0,\"\",'Prezenční listina'!H109)","v":""}]
["",{"$f":"IF('Prezenční listina'!F111=0,\"\",'Prezenční listina'!F111)","v":""},{"$f":"IF('Prezenční listina'!F111=0,\"\",'Prezenční listina'!B111)","v":""},{"$f":"IF('Prezenční listina'!F111=0,\"\",'Prezenční listina'!C111)","v":""},{"$f":"IF('Prezenční listina'!F111=0,\"\",'Prezenční listina'!D111)","v":""},{"$f":"IF('Prezenční listina'!F111=0,\"\",'Prezenční listina'!E111)","v":""},{"$f":"IF('Prezenční listina'!F111=0,\"\",'Prezenční listina'!H111)","v":""}]
["",{"$f":"IF('Prezenční listina'!F112=0,\"\",'Prezenční listina'!F112)","v":""},{"$f":"IF('Prezenční listina'!F112=0,\"\",'Prezenční listina'!B112)","v":""},{"$f":"IF('Prezenční listina'!F112=0,\"\",'Prezenční listina'!C112)","v":""},{"$f":"IF('Prezenční listina'!F112=0,\"\",'Prezenční listina'!D112)","v":""},{"$f":"IF('Prezenční listina'!F112=0,\"\",'Prezenční listina'!E112)","v":""},{"$f":"IF('Prezenční listina'!F112=0,\"\",'Prezenční listina'!H112)","v":""}]
["",{"$f":"IF('Prezenční listina'!F113=0,\"\",'Prezenční listina'!F113)","v":""},{"$f":"IF('Prezenční listina'!F113=0,\"\",'Prezenční listina'!B113)","v":""},{"$f":"IF('Prezenční listina'!F113=0,\"\",'Prezenční listina'!C113)","v":""},{"$f":"IF('Prezenční listina'!F113=0,\"\",'Prezenční listina'!D113)","v":""},{"$f":"IF('Prezenční listina'!F113=0,\"\",'Prezenční listina'!E113)","v":""},{"$f":"IF('Prezenční listina'!F113=0,\"\",'Prezenční listina'!H113)","v":""}]
["",{"$f":"IF('Prezenční listina'!F114=0,\"\",'Prezenční listina'!F114)","v":""},{"$f":"IF('Prezenční listina'!F114=0,\"\",'Prezenční listina'!B114)","v":""},{"$f":"IF('Prezenční listina'!F114=0,\"\",'Prezenční listina'!C114)","v":""},{"$f":"IF('Prezenční listina'!F114=0,\"\",'Prezenční listina'!D114)","v":""},{"$f":"IF('Prezenční listina'!F114=0,\"\",'Prezenční listina'!E114)","v":""},{"$f":"IF('Prezenční listina'!F114=0,\"\",'Prezenční listina'!H114)","v":""}]
["",{"$f":"IF('Prezenční listina'!F115=0,\"\",'Prezenční listina'!F115)","v":""},{"$f":"IF('Prezenční listina'!F115=0,\"\",'Prezenční listina'!B115)","v":""},{"$f":"IF('Prezenční listina'!F115=0,\"\",'Prezenční listina'!C115)","v":""},{"$f":"IF('Prezenční listina'!F115=0,\"\",'Prezenční listina'!D115)","v":""},{"$f":"IF('Prezenční listina'!F115=0,\"\",'Prezenční listina'!E115)","v":""},{"$f":"IF('Prezenční listina'!F115=0,\"\",'Prezenční listina'!H115)","v":""}]
["",{"$f":"IF('Prezenční listina'!F116=0,\"\",'Prezenční listina'!F116)","v":""},{"$f":"IF('Prezenční listina'!F116=0,\"\",'Prezenční listina'!B116)","v":""},{"$f":"IF('Prezenční listina'!F116=0,\"\",'Prezenční listina'!C116)","v":""},{"$f":"IF('Prezenční listina'!F116=0,\"\",'Prezenční listina'!D116)","v":""},{"$f":"IF('Prezenční listina'!F116=0,\"\",'Prezenční listina'!E116)","v":""},{"$f":"IF('Prezenční listina'!F116=0,\"\",'Prezenční listina'!H116)","v":""}]
["",{"$f":"IF('Prezenční listina'!F117=0,\"\",'Prezenční listina'!F117)","v":""},{"$f":"IF('Prezenční listina'!F117=0,\"\",'Prezenční listina'!B117)","v":""},{"$f":"IF('Prezenční listina'!F117=0,\"\",'Prezenční listina'!C117)","v":""},{"$f":"IF('Prezenční listina'!F117=0,\"\",'Prezenční listina'!D117)","v":""},{"$f":"IF('Prezenční listina'!F117=0,\"\",'Prezenční listina'!E117)","v":""},{"$f":"IF('Prezenční listina'!F117=0,\"\",'Prezenční listina'!H117)","v":""}]
["",{"$f":"IF('Prezenční listina'!F118=0,\"\",'Prezenční listina'!F118)","v":""},{"$f":"IF('Prezenční listina'!F118=0,\"\",'Prezenční listina'!B118)","v":""},{"$f":"IF('Prezenční listina'!F118=0,\"\",'Prezenční listina'!C118)","v":""},{"$f":"IF('Prezenční listina'!F118=0,\"\",'Prezenční listina'!D118)","v":""},{"$f":"IF('Prezenční listina'!F118=0,\"\",'Prezenční listina'!E118)","v":""},{"$f":"IF('Prezenční listina'!F118=0,\"\",'Prezenční listina'!H118)","v":""}]
["",{"$f":"IF('Prezenční listina'!F119=0,\"\",'Prezenční listina'!F119)","v":""},{"$f":"IF('Prezenční listina'!F119=0,\"\",'Prezenční listina'!B119)","v":""},{"$f":"IF('Prezenční listina'!F119=0,\"\",'Prezenční listina'!C119)","v":""},{"$f":"IF('Prezenční listina'!F119=0,\"\",'Prezenční listina'!D119)","v":""},{"$f":"IF('Prezenční listina'!F119=0,\"\",'Prezenční listina'!E119)","v":""},{"$f":"IF('Prezenční listina'!F119=0,\"\",'Prezenční listina'!H119)","v":""}]
["",{"$f":"IF('Prezenční listina'!F120=0,\"\",'Prezenční listina'!F120)","v":""},{"$f":"IF('Prezenční listina'!F120=0,\"\",'Prezenční listina'!B120)","v":""},{"$f":"IF('Prezenční listina'!F120=0,\"\",'Prezenční listina'!C120)","v":""},{"$f":"IF('Prezenční listina'!F120=0,\"\",'Prezenční listina'!D120)","v":""},{"$f":"IF('Prezenční listina'!F120=0,\"\",'Prezenční listina'!E120)","v":""},{"$f":"IF('Prezenční listina'!F120=0,\"\",'Prezenční listina'!H120)","v":""}]
["",{"$f":"IF('Prezenční listina'!F121=0,\"\",'Prezenční listina'!F121)","v":""},{"$f":"IF('Prezenční listina'!F121=0,\"\",'Prezenční listina'!B121)","v":""},{"$f":"IF('Prezenční listina'!F121=0,\"\",'Prezenční listina'!C121)","v":""},{"$f":"IF('Prezenční listina'!F121=0,\"\",'Prezenční listina'!D121)","v":""},{"$f":"IF('Prezenční listina'!F121=0,\"\",'Prezenční listina'!E121)","v":""},{"$f":"IF('Prezenční listina'!F121=0,\"\",'Prezenční listina'!H121)","v":""}]
["",{"$f":"IF('Prezenční listina'!F122=0,\"\",'Prezenční listina'!F122)","v":""},{"$f":"IF('Prezenční listina'!F122=0,\"\",'Prezenční listina'!B122)","v":""},{"$f":"IF('Prezenční listina'!F122=0,\"\",'Prezenční listina'!C122)","v":""},{"$f":"IF('Prezenční listina'!F122=0,\"\",'Prezenční listina'!D122)","v":""},{"$f":"IF('Prezenční listina'!F122=0,\"\",'Prezenční listina'!E122)","v":""},{"$f":"IF('Prezenční listina'!F122=0,\"\",'Prezenční listina'!H122)","v":""}]
["",{"$f":"IF('Prezenční listina'!F123=0,\"\",'Prezenční listina'!F123)","v":""},{"$f":"IF('Prezenční listina'!F123=0,\"\",'Prezenční listina'!B123)","v":""},{"$f":"IF('Prezenční listina'!F123=0,\"\",'Prezenční listina'!C123)","v":""},{"$f":"IF('Prezenční listina'!F123=0,\"\",'Prezenční listina'!D123)","v":""},{"$f":"IF('Prezenční listina'!F123=0,\"\",'Prezenční listina'!E123)","v":""},{"$f":"IF('Prezenční listina'!F123=0,\"\",'Prezenční listina'!H123)","v":""}]
["",{"$f":"IF('Prezenční listina'!F124=0,\"\",'Prezenční listina'!F124)","v":""},{"$f":"IF('Prezenční listina'!F124=0,\"\",'Prezenční listina'!B124)","v":""},{"$f":"IF('Prezenční listina'!F124=0,\"\",'Prezenční listina'!C124)","v":""},{"$f":"IF('Prezenční listina'!F124=0,\"\",'Prezenční listina'!D124)","v":""},{"$f":"IF('Prezenční listina'!F124=0,\"\",'Prezenční listina'!E124)","v":""},{"$f":"IF('Prezenční listina'!F124=0,\"\",'Prezenční listina'!H124)","v":""}]
["",{"$f":"IF('Prezenční listina'!F125=0,\"\",'Prezenční listina'!F125)","v":""},{"$f":"IF('Prezenční listina'!F125=0,\"\",'Prezenční listina'!B125)","v":""},{"$f":"IF('Prezenční listina'!F125=0,\"\",'Prezenční listina'!C125)","v":""},{"$f":"IF('Prezenční listina'!F125=0,\"\",'Prezenční listina'!D125)","v":""},{"$f":"IF('Prezenční listina'!F125=0,\"\",'Prezenční listina'!E125)","v":""},{"$f":"IF('Prezenční listina'!F125=0,\"\",'Prezenční listina'!H125)","v":""}]
["",{"$f":"IF('Prezenční listina'!F126=0,\"\",'Prezenční listina'!F126)","v":""},{"$f":"IF('Prezenční listina'!F126=0,\"\",'Prezenční listina'!B126)","v":""},{"$f":"IF('Prezenční listina'!F126=0,\"\",'Prezenční listina'!C126)","v":""},{"$f":"IF('Prezenční listina'!F126=0,\"\",'Prezenční listina'!D126)","v":""},{"$f":"IF('Prezenční listina'!F126=0,\"\",'Prezenční listina'!E126)","v":""},{"$f":"IF('Prezenční listina'!F126=0,\"\",'Prezenční listina'!H126)","v":""}]
["",{"$f":"IF('Prezenční listina'!F127=0,\"\",'Prezenční listina'!F127)","v":""},{"$f":"IF('Prezenční listina'!F127=0,\"\",'Prezenční listina'!B127)","v":""},{"$f":"IF('Prezenční listina'!F127=0,\"\",'Prezenční listina'!C127)","v":""},{"$f":"IF('Prezenční listina'!F127=0,\"\",'Prezenční listina'!D127)","v":""},{"$f":"IF('Prezenční listina'!F127=0,\"\",'Prezenční listina'!E127)","v":""},{"$f":"IF('Prezenční listina'!F127=0,\"\",'Prezenční listina'!H127)","v":""}]
["",{"$f":"IF('Prezenční listina'!F128=0,\"\",'Prezenční listina'!F128)","v":""},{"$f":"IF('Prezenční listina'!F128=0,\"\",'Prezenční listina'!B128)","v":""},{"$f":"IF('Prezenční listina'!F128=0,\"\",'Prezenční listina'!C128)","v":""},{"$f":"IF('Prezenční listina'!F128=0,\"\",'Prezenční listina'!D128)","v":""},{"$f":"IF('Prezenční listina'!F128=0,\"\",'Prezenční listina'!E128)","v":""},{"$f":"IF('Prezenční listina'!F128=0,\"\",'Prezenční listina'!H128)","v":""}]
["",{"$f":"IF('Prezenční listina'!F129=0,\"\",'Prezenční listina'!F129)","v":""},{"$f":"IF('Prezenční listina'!F129=0,\"\",'Prezenční listina'!B129)","v":""},{"$f":"IF('Prezenční listina'!F129=0,\"\",'Prezenční listina'!C129)","v":""},{"$f":"IF('Prezenční listina'!F129=0,\"\",'Prezenční listina'!D129)","v":""},{"$f":"IF('Prezenční listina'!F129=0,\"\",'Prezenční listina'!E129)","v":""},{"$f":"IF('Prezenční listina'!F129=0,\"\",'Prezenční listina'!H129)","v":""}]
["",{"$f":"IF('Prezenční listina'!F130=0,\"\",'Prezenční listina'!F130)","v":""},{"$f":"IF('Prezenční listina'!F130=0,\"\",'Prezenční listina'!B130)","v":""},{"$f":"IF('Prezenční listina'!F130=0,\"\",'Prezenční listina'!C130)","v":""},{"$f":"IF('Prezenční listina'!F130=0,\"\",'Prezenční listina'!D130)","v":""},{"$f":"IF('Prezenční listina'!F130=0,\"\",'Prezenční listina'!E130)","v":""},{"$f":"IF('Prezenční listina'!F130=0,\"\",'Prezenční listina'!H130)","v":""}]
["",{"$f":"IF('Prezenční listina'!F131=0,\"\",'Prezenční listina'!F131)","v":""},{"$f":"IF('Prezenční listina'!F131=0,\"\",'Prezenční listina'!B131)","v":""},{"$f":"IF('Prezenční listina'!F131=0,\"\",'Prezenční listina'!C131)","v":""},{"$f":"IF('Prezenční listina'!F131=0,\"\",'Prezenční listina'!D131)","v":""},{"$f":"IF('Prezenční listina'!F131=0,\"\",'Prezenční listina'!E131)","v":""},{"$f":"IF('Prezenční listina'!F131=0,\"\",'Prezenční listina'!H131)","v":""}]
["",{"$f":"IF('Prezenční listina'!F132=0,\"\",'Prezenční listina'!F132)","v":""},{"$f":"IF('Prezenční listina'!F132=0,\"\",'Prezenční listina'!B132)","v":""},{"$f":"IF('Prezenční listina'!F132=0,\"\",'Prezenční listina'!C132)","v":""},{"$f":"IF('Prezenční listina'!F132=0,\"\",'Prezenční listina'!D132)","v":""},{"$f":"IF('Prezenční listina'!F132=0,\"\",'Prezenční listina'!E132)","v":""},{"$f":"IF('Prezenční listina'!F132=0,\"\",'Prezenční listina'!H132)","v":""}]
["",{"$f":"IF('Prezenční listina'!F133=0,\"\",'Prezenční listina'!F133)","v":""},{"$f":"IF('Prezenční listina'!F133=0,\"\",'Prezenční listina'!B133)","v":""},{"$f":"IF('Prezenční listina'!F133=0,\"\",'Prezenční listina'!C133)","v":""},{"$f":"IF('Prezenční listina'!F133=0,\"\",'Prezenční listina'!D133)","v":""},{"$f":"IF('Prezenční listina'!F133=0,\"\",'Prezenční listina'!E133)","v":""},{"$f":"IF('Prezenční listina'!F133=0,\"\",'Prezenční listina'!H133)","v":""}]
["",{"$f":"IF('Prezenční listina'!F134=0,\"\",'Prezenční listina'!F134)","v":""},{"$f":"IF('Prezenční listina'!F134=0,\"\",'Prezenční listina'!B134)","v":""},{"$f":"IF('Prezenční listina'!F134=0,\"\",'Prezenční listina'!C134)","v":""},{"$f":"IF('Prezenční listina'!F134=0,\"\",'Prezenční listina'!D134)","v":""},{"$f":"IF('Prezenční listina'!F134=0,\"\",'Prezenční listina'!E134)","v":""},{"$f":"IF('Prezenční listina'!F134=0,\"\",'Prezenční listina'!H134)","v":""}]
["",{"$f":"IF('Prezenční listina'!F135=0,\"\",'Prezenční listina'!F135)","v":""},{"$f":"IF('Prezenční listina'!F135=0,\"\",'Prezenční listina'!B135)","v":""},{"$f":"IF('Prezenční listina'!F135=0,\"\",'Prezenční listina'!C135)","v":""},{"$f":"IF('Prezenční listina'!F135=0,\"\",'Prezenční listina'!D135)","v":""},{"$f":"IF('Prezenční listina'!F135=0,\"\",'Prezenční listina'!E135)","v":""},{"$f":"IF('Prezenční listina'!F135=0,\"\",'Prezenční listina'!H135)","v":""}]
["",{"$f":"IF('Prezenční listina'!F136=0,\"\",'Prezenční listina'!F136)","v":""},{"$f":"IF('Prezenční listina'!F136=0,\"\",'Prezenční listina'!B136)","v":""},{"$f":"IF('Prezenční listina'!F136=0,\"\",'Prezenční listina'!C136)","v":""},{"$f":"IF('Prezenční listina'!F136=0,\"\",'Prezenční listina'!D136)","v":""},{"$f":"IF('Prezenční listina'!F136=0,\"\",'Prezenční listina'!E136)","v":""},{"$f":"IF('Prezenční listina'!F136=0,\"\",'Prezenční listina'!H136)","v":""}]
["",{"$f":"IF('Prezenční listina'!F137=0,\"\",'Prezenční listina'!F137)","v":""},{"$f":"IF('Prezenční listina'!F137=0,\"\",'Prezenční listina'!B137)","v":""},{"$f":"IF('Prezenční listina'!F137=0,\"\",'Prezenční listina'!C137)","v":""},{"$f":"IF('Prezenční listina'!F137=0,\"\",'Prezenční listina'!D137)","v":""},{"$f":"IF('Prezenční listina'!F137=0,\"\",'Prezenční listina'!E137)","v":""},{"$f":"IF('Prezenční listina'!F137=0,\"\",'Prezenční listina'!H137)","v":""}]
["",{"$f":"IF('Prezenční listina'!F138=0,\"\",'Prezenční listina'!F138)","v":""},{"$f":"IF('Prezenční listina'!F138=0,\"\",'Prezenční listina'!B138)","v":""},{"$f":"IF('Prezenční listina'!F138=0,\"\",'Prezenční listina'!C138)","v":""},{"$f":"IF('Prezenční listina'!F138=0,\"\",'Prezenční listina'!D138)","v":""},{"$f":"IF('Prezenční listina'!F138=0,\"\",'Prezenční listina'!E138)","v":""},{"$f":"IF('Prezenční listina'!F138=0,\"\",'Prezenční listina'!H138)","v":""}]
["",{"$f":"IF('Prezenční listina'!F139=0,\"\",'Prezenční listina'!F139)","v":""},{"$f":"IF('Prezenční listina'!F139=0,\"\",'Prezenční listina'!B139)","v":""},{"$f":"IF('Prezenční listina'!F139=0,\"\",'Prezenční listina'!C139)","v":""},{"$f":"IF('Prezenční listina'!F139=0,\"\",'Prezenční listina'!D139)","v":""},{"$f":"IF('Prezenční listina'!F139=0,\"\",'Prezenční listina'!E139)","v":""},{"$f":"IF('Prezenční listina'!F139=0,\"\",'Prezenční listina'!H139)","v":""}]

{"sheet":"Výsledková listina","index":2,"n_rows":103,"n_cols":11,"rows_kept":103,"cut":false,"hidden":false,"merged":[[0,0,0,8],[2,0,2,8],[1,0,1,8],[1,10,12,14]]}
[{"$f":"\"Výsledková listina - Malý svratecký maraton \"&'Prezenční listina'!O2","v":"Výsledková listina - Malý svratecký maraton 2015"}]
["2015-08-22",null,null,null,null,null,null,null,null,null,"\nPoté, co jsou dopsány časy VŠECH běžců, stisknout tlačítko 1.řazení \n\n\nVe sloupci B (Pořadí v kategorii) vytvořit posloupnou číselnou řadu pro každou kategorii a poté stisknout tlačítko 2.řazení\n\n\n                      !!! POZOR!!!\n\n               Použití tlačítek je nevratný krok!"]
[{"$f":"'Prezenční listina'!O2-1953&\". ročník\"","v":"62. ročník"}]
["Celkové pořadí","Pořadí v kategorii","Kategorie","Startovní číslo","Příjmení","Jméno","Narození","Oddíl / Bydliště","Čas"]
[1,1,{"$f":"'Startovní listina'!G98","v":"B"},{"$f":"'Startovní listina'!B98","v":107},{"$f":"'Startovní listina'!C98","v":"Orálek"},{"$f":"'Startovní listina'!D98","v":"Daniel"},{"$f":"'Startovní listina'!E98","v":1970},{"$f":"'Startovní listina'!F98","v":"Moravská Slávia Brno"},"01:54:34"]
[{"$f":"IF('Výsledková listina'!D5<>\"\",A5+1,\"\")","v":2},1,{"$f":"'Startovní listina'!G15","v":"A"},{"$f":"'Startovní listina'!B15","v":11},{"$f":"'Startovní listina'!C15","v":"Fousek"},{"$f":"'Startovní listina'!D15","v":"Jan"},{"$f":"'Startovní listina'!E15","v":1991},{"$f":"'Startovní listina'!F15","v":"MK Seitl Ostrava"},"02:01:16"]
[{"$f":"IF('Výsledková listina'!D6<>\"\",A6+1,\"\")","v":3},2,{"$f":"'Startovní listina'!G27","v":"A"},{"$f":"'Startovní listina'!B27","v":26},{"$f":"'Startovní listina'!C27","v":"Nováček"},{"$f":"'Startovní listina'!D27","v":"Tomáš"},{"$f":"'Startovní listina'!E27","v":1983},{"$f":"'Startovní listina'!F27","v":"Atletic Třebíč"},"02:05:07"]
[{"$f":"IF('Výsledková listina'!D7<>\"\",A7+1,\"\")","v":4},2,{"$f":"'Startovní listina'!G12","v":"B"},{"$f":"'Startovní listina'!B12","v":8},{"$f":"'Startovní listina'!C12","v":"Škapa"},{"$f":"'Startovní listina'!D12","v":"Marek"},{"$f":"'Startovní listina'!E12","v":1971},{"$f":"'Startovní listina'!F12","v":"MK Seitl Ostrava"},"02:05:40"]
[{"$f":"IF('Výsledková listina'!D8<>\"\",A8+1,\"\")","v":5},3,{"$f":"'Startovní listina'!G9","v":"B"},{"$f":"'Startovní listina'!B9","v":5},{"$f":"'Startovní listina'!C9","v":"Chramosta"},{"$f":"'Startovní listina'!D9","v":"Jaroslav"},{"$f":"'Startovní listina'!E9","v":1966},{"$f":"'Startovní listina'!F9","v":"JABOJA Team Děčín"},"02:05:55"]
[{"$f":"IF('Výsledková listina'!D9<>\"\",A9+1,\"\")","v":6},4,{"$f":"'Startovní listina'!G39","v":"B"},{"$f":"'Startovní listina'!B39","v":40},{"$f":"'Startovní listina'!C39","v":"Ryška"},{"$f":"'Startovní listina'!D39","v":"Vít"},{"$f":"'Startovní listina'!E39","v":1975},{"$f":"'Startovní listina'!F39","v":"VSK Univerzita Brno"},"02:07:35"]
[{"$f":"IF('Výsledková listina'!D10<>\"\",A10+1,\"\")","v":7},3,{"$f":"'Startovní listina'!G58","v":"A"},{"$f":"'Startovní listina'!B58","v":60},{"$f":"'Startovní listina'!C58","v":"Kupidlovský"},{"$f":"'Startovní listina'!D58","v":"Daniel"},{"$f":"'Startovní listina'!E58","v":1976},{"$f":"'Startovní listina'!F58","v":"Stodůlky"},"02:07:54"]
[{"$f":"IF('Výsledková listina'!D11<>\"\",A11+1,\"\")","v":8},5,{"$f":"'Startovní listina'!G24","v":"B"},{"$f":"'Startovní listina'!B24","v":22},{"$f":"'Startovní listina'!C24","v":"Štýbnar"},{"$f":"'Startovní listina'!D24","v":"Zbyněk"},{"$f":"'Startovní listina'!E24","v":1974},{"$f":"'Startovní listina'!F24","v":"Běžec Vysočiny Jihlava"},"02:08:44"]
[{"$f":"IF('Výsledková listina'!D12<>\"\",A12+1,\"\")","v":9},6,{"$f":"'Startovní listina'!G40","v":"B"},{"$f":"'Startovní listina'!B40","v":41},{"$f":"'Startovní listina'!C40","v":"Hýbl"},{"$f":"'Startovní listina'!D40","v":"Jiří"},{"$f":"'Startovní listina'!E40","v":1967},{"$f":"'Startovní listina'!F40","v":"Hrušovany u Brna"},"02:10:10"]
[{"$f":"IF('Výsledková listina'!D13<>\"\",A13+1,\"\")","v":10},4,{"$f":"'Startovní listina'!G74","v":"A"},{"$f":"'Startovní listina'!B74","v":82},{"$f":"'Startovní listina'!C74","v":"Glier"},{"$f":"'Startovní listina'!D74","v":"Michal"},{"$f":"'Startovní listina'!E74","v":1982},{"$f":"'Startovní listina'!F74","v":"Moravská Slávia Brno"},"02:11:00"]
[{"$f":"IF('Výsledková listina'!D14<>\"\",A14+1,\"\")","v":11},7,{"$f":"'Startovní listina'!G49","v":"B"},{"$f":"'Startovní listina'!B49","v":50},{"$f":"'Startovní listina'!C49","v":"Dušil"},{"$f":"'Startovní listina'!D49","v":"Jaroslav"},{"$f":"'Startovní listina'!E49","v":1970},{"$f":"'Startovní listina'!F49","v":"Brno"},"02:13:13"]
[{"$f":"IF('Výsledková listina'!D15<>\"\",A15+1,\"\")","v":12},1,{"$f":"'Startovní listina'!G79","v":"F"},{"$f":"'Startovní listina'!B79","v":87},{"$f":"'Startovní listina'!C79","v":"Dýrová Macháčková"},{"$f":"'Startovní listina'!D79","v":"Šárka"},{"$f":"'Startovní listina'!E79","v":1983},{"$f":"'Startovní listina'!F79","v":"Mizunoteam Brno"},"02:13:29"]
[{"$f":"IF('Výsledková listina'!D16<>\"\",A16+1,\"\")","v":13},8,{"$f":"'Startovní listina'!G41","v":"B"},{"$f":"'Startovní listina'!B41","v":42},{"$f":"'Startovní listina'!C41","v":"Horný"},{"$f":"'Startovní listina'!D41","v":"Pavel"},{"$f":"'Startovní listina'!E41","v":1973},{"$f":"'Startovní listina'!F41","v":"VHT Přerov"},"02:16:46"]
[{"$f":"IF('Výsledková listina'!D17<>\"\",A17+1,\"\")","v":14},1,{"$f":"'Startovní listina'!G29","v":"C"},{"$f":"'Startovní listina'!B29","v":28},{"$f":"'Startovní listina'!C29","v":"Kratochvíl"},{"$f":"'Startovní listina'!D29","v":"Pavel"},{"$f":"'Startovní listina'!E29","v":1960},{"$f":"'Startovní listina'!F29","v":"Atletic Třebíč"},"02:19:07"]
[{"$f":"IF('Výsledková listina'!D18<>\"\",A18+1,\"\")","v":15},5,{"$f":"'Startovní listina'!G51","v":"A"},{"$f":"'Startovní listina'!B51","v":53},{"$f":"'Startovní listina'!C51","v":"Očenášek"},{"$f":"'Startovní listina'!D51","v":"Zdeněk"},{"$f":"'Startovní listina'!E51","v":1976},{"$f":"'Startovní listina'!F51","v":"Brno"},"02:19:36"]
[{"$f":"IF('Výsledková listina'!D19<>\"\",A19+1,\"\")","v":16},9,{"$f":"'Startovní listina'!G47","v":"B"},{"$f":"'Startovní listina'!B47","v":48},{"$f":"'Startovní listina'!C47","v":"Alman"},{"$f":"'Startovní listina'!D47","v":"Dušan"},{"$f":"'Startovní listina'!E47","v":1967},{"$f":"'Startovní listina'!F47","v":"Babice"},"02:19:48"]
[{"$f":"IF('Výsledková listina'!D20<>\"\",A20+1,\"\")","v":17},6,{"$f":"'Startovní listina'!G86","v":"A"},{"$f":"'Startovní listina'!B86","v":95},{"$f":"'Startovní listina'!C86","v":"Kratochvíl"},{"$f":"'Startovní listina'!D86","v":"Jaroslav"},{"$f":"'Startovní listina'!E86","v":1977},{"$f":"'Startovní listina'!F86","v":"SDH Hluboké"},"02:21:00"]
[{"$f":"IF('Výsledková listina'!D22<>\"\",A21+1,\"\")","v":18},10,{"$f":"'Startovní listina'!G48","v":"B"},{"$f":"'Startovní listina'!B48","v":49},{"$f":"'Startovní listina'!C48","v":"Plekanec"},{"$f":"'Startovní listina'!D48","v":"Juraj"},{"$f":"'Startovní listina'!E48","v":1974},{"$f":"'Startovní listina'!F48","v":"Brno"},"02:21:35"]
[{"$f":"IF('Výsledková listina'!D21<>\"\",A22+1,\"\")","v":19},2,{"$f":"'Startovní listina'!G50","v":"F"},{"$f":"'Startovní listina'!B50","v":51},{"$f":"'Startovní listina'!C50","v":"Pešáková"},{"$f":"'Startovní listina'!D50","v":"Mirka"},{"$f":"'Startovní listina'!E50","v":1985},{"$f":"'Startovní listina'!F50","v":"AK RACERS Tetčice"},"02:21:57"]
[{"$f":"IF('Výsledková listina'!D23<>\"\",A23+1,\"\")","v":20},11,{"$f":"'Startovní listina'!G89","v":"B"},{"$f":"'Startovní listina'!B89","v":98},{"$f":"'Startovní listina'!C89","v":"Konečný"},{"$f":"'Startovní listina'!D89","v":"Libor"},{"$f":"'Startovní listina'!E89","v":1971},{"$f":"'Startovní listina'!F89","v":"Kuřim"},"02:23:07"]
[{"$f":"IF('Výsledková listina'!D24<>\"\",A24+1,\"\")","v":21},2,{"$f":"'Startovní listina'!G59","v":"C"},{"$f":"'Startovní listina'!B59","v":61},{"$f":"'Startovní listina'!C59","v":"Bezrouk"},{"$f":"'Startovní listina'!D59","v":"Jiří"},{"$f":"'Startovní listina'!E59","v":1962},{"$f":"'Startovní listina'!F59","v":"Křtiny"},"02:23:11"]
[{"$f":"IF('Výsledková listina'!D25<>\"\",A25+1,\"\")","v":22},7,{"$f":"'Startovní listina'!G56","v":"A"},{"$f":"'Startovní listina'!B56","v":58},{"$f":"'Startovní listina'!C56","v":"Řezníček"},{"$f":"'Startovní listina'!D56","v":"Roman"},{"$f":"'Startovní listina'!E56","v":1977},{"$f":"'Startovní listina'!F56","v":"Žďár nad Sázavou"},"02:24:19"]
[{"$f":"IF('Výsledková listina'!D26<>\"\",A26+1,\"\")","v":23},8,{"$f":"'Startovní listina'!G22","v":"A"},{"$f":"'Startovní listina'!B22","v":19},{"$f":"'Startovní listina'!C22","v":"Pokorný"},{"$f":"'Startovní listina'!D22","v":"Václav"},{"$f":"'Startovní listina'!E22","v":1978},{"$f":"'Startovní listina'!F22","v":"Brno"},"02:25:09"]
[{"$f":"IF('Výsledková listina'!D27<>\"\",A27+1,\"\")","v":24},9,{"$f":"'Startovní listina'!G28","v":"A"},{"$f":"'Startovní listina'!B28","v":27},{"$f":"'Startovní listina'!C28","v":"Bohuslav"},{"$f":"'Startovní listina'!D28","v":"Martin"},{"$f":"'Startovní listina'!E28","v":1987},{"$f":"'Startovní listina'!F28","v":"Atletic Třebíč"},"02:26:07"]
[{"$f":"IF('Výsledková listina'!D28<>\"\",A28+1,\"\")","v":25},10,{"$f":"'Startovní listina'!G38","v":"A"},{"$f":"'Startovní listina'!B38","v":38},{"$f":"'Startovní listina'!C38","v":"Kocur"},{"$f":"'Startovní listina'!D38","v":"Lukáš"},{"$f":"'Startovní listina'!E38","v":1977},{"$f":"'Startovní listina'!F38","v":"VHS Brno"},"02:26:38"]
[{"$f":"IF('Výsledková listina'!D29<>\"\",A29+1,\"\")","v":26},11,{"$f":"'Startovní listina'!G61","v":"A"},{"$f":"'Startovní listina'!B61","v":63},{"$f":"'Startovní listina'!C61","v":"Sedláček"},{"$f":"'Startovní listina'!D61","v":"Aleš"},{"$f":"'Startovní listina'!E61","v":1976},{"$f":"'Startovní listina'!F61","v":"Sokol Přísnotice"},"02:27:55"]
[{"$f":"IF('Výsledková listina'!D30<>\"\",A30+1,\"\")","v":27},12,{"$f":"'Startovní listina'!G84","v":"B"},{"$f":"'Startovní listina'!B84","v":93},{"$f":"'Startovní listina'!C84","v":"Havlíček"},{"$f":"'Startovní listina'!D84","v":"Ivo"},{"$f":"'Startovní listina'!E84","v":1966},{"$f":"'Startovní listina'!F84","v":"Lánov - Krkonoše"},"02:28:22"]
[{"$f":"IF('Výsledková listina'!D31<>\"\",A31+1,\"\")","v":28},13,{"$f":"'Startovní listina'!G87","v":"B"},{"$f":"'Startovní listina'!B87","v":96},{"$f":"'Startovní listina'!C87","v":"Hladký"},{"$f":"'Startovní listina'!D87","v":"Jiří"},{"$f":"'Startovní listina'!E87","v":1975},{"$f":"'Startovní listina'!F87","v":"Brno - Nový Lískovec"},"02:29:21"]
[{"$f":"IF('Výsledková listina'!D32<>\"\",A32+1,\"\")","v":29},14,{"$f":"'Startovní listina'!G91","v":"B"},{"$f":"'Startovní listina'!B91","v":100},{"$f":"'Startovní listina'!C91","v":"Fučík"},{"$f":"'Startovní listina'!D91","v":"Jaroslav"},{"$f":"'Startovní listina'!E91","v":1974},{"$f":"'Startovní listina'!F91","v":"Prosetín"},"02:30:31"]
[{"$f":"IF('Výsledková listina'!D33<>\"\",A33+1,\"\")","v":30},15,{"$f":"'Startovní listina'!G83","v":"B"},{"$f":"'Startovní listina'!B83","v":92},{"$f":"'Startovní listina'!C83","v":"Řezníček"},{"$f":"'Startovní listina'!D83","v":"Petr"},{"$f":"'Startovní listina'!E83","v":1973},{"$f":"'Startovní listina'!F83","v":"Polnička"},"02:31:15"]
[{"$f":"IF('Výsledková listina'!D34<>\"\",A34+1,\"\")","v":31},1,{"$f":"'Startovní listina'!G35","v":"H"},{"$f":"'Startovní listina'!B35","v":35},{"$f":"'Startovní listina'!C35","v":"Krátká"},{"$f":"'Startovní listina'!D35","v":"Anna"},{"$f":"'Startovní listina'!E35","v":1969},{"$f":"'Startovní listina'!F35","v":"Hvězda SKP Pardubice"},"02:31:40"]
[{"$f":"IF('Výsledková listina'!D35<>\"\",A35+1,\"\")","v":32},16,{"$f":"'Startovní listina'!G37","v":"B"},{"$f":"'Startovní listina'!B37","v":37},{"$f":"'Startovní listina'!C37","v":"Kropáček"},{"$f":"'Startovní listina'!D37","v":"Jaroslav"},{"$f":"'Startovní listina'!E37","v":1970},{"$f":"'Startovní listina'!F37","v":"Brno"},"02:32:28"]
[{"$f":"IF('Výsledková listina'!D36<>\"\",A36+1,\"\")","v":33},3,{"$f":"'Startovní listina'!G14","v":"C"},{"$f":"'Startovní listina'!B14","v":10},{"$f":"'Startovní listina'!C14","v":"Dvorský"},{"$f":"'Startovní listina'!D14","v":"Ladislav"},{"$f":"'Startovní listina'!E14","v":1965},{"$f":"'Startovní listina'!F14","v":"MK Seitl Ostrava"},"02:32:37"]
[{"$f":"IF('Výsledková listina'!D37<>\"\",A37+1,\"\")","v":34},4,{"$f":"'Startovní listina'!G43","v":"C"},{"$f":"'Startovní listina'!B43","v":44},{"$f":"'Startovní listina'!C43","v":"Suchý"},{"$f":"'Startovní listina'!D43","v":"Karel"},{"$f":"'Startovní listina'!E43","v":1956},{"$f":"'Startovní listina'!F43","v":"Atletic Třebíč"},"02:32:49"]
[{"$f":"IF('Výsledková listina'!D38<>\"\",A38+1,\"\")","v":35},12,{"$f":"'Startovní listina'!G67","v":"A"},{"$f":"'Startovní listina'!B67","v":73},{"$f":"'Startovní listina'!C67","v":"Brabenec"},{"$f":"'Startovní listina'!D67","v":"Aleš"},{"$f":"'Startovní listina'!E67","v":1987},{"$f":"'Startovní listina'!F67","v":"Žďár nad Sázavou"},"02:34:42"]
[{"$f":"IF('Výsledková listina'!D39<>\"\",A39+1,\"\")","v":36},5,{"$f":"'Startovní listina'!G95","v":"C"},{"$f":"'Startovní listina'!B95","v":104},{"$f":"'Startovní listina'!C95","v":"Sedláček"},{"$f":"'Startovní listina'!D95","v":"Svatopluk"},{"$f":"'Startovní listina'!E95","v":1957},{"$f":"'Startovní listina'!F95","v":"Moravská Slávia Brno"},"02:34:44"]
[{"$f":"IF('Výsledková listina'!D40<>\"\",A40+1,\"\")","v":37},3,{"$f":"'Startovní listina'!G54","v":"F"},{"$f":"'Startovní listina'!B54","v":56},{"$f":"'Startovní listina'!C54","v":"Johaníková"},{"$f":"'Startovní listina'!D54","v":"Lucie"},{"$f":"'Startovní listina'!E54","v":1986},{"$f":"'Startovní listina'!F54","v":"Moravská Slávia Brno"},"02:37:38"]
[{"$f":"IF('Výsledková listina'!D41<>\"\",A41+1,\"\")","v":38},17,{"$f":"'Startovní listina'!G30","v":"B"},{"$f":"'Startovní listina'!B30","v":29},{"$f":"'Startovní listina'!C30","v":"Provazník"},{"$f":"'Startovní listina'!D30","v":"Milan"},{"$f":"'Startovní listina'!E30","v":1966},{"$f":"'Startovní listina'!F30","v":"Polička"},"02:37:53"]
[{"$f":"IF('Výsledková listina'!D42<>\"\",A42+1,\"\")","v":39},13,{"$f":"'Startovní listina'!G31","v":"A"},{"$f":"'Startovní listina'!B31","v":30},{"$f":"'Startovní listina'!C31","v":"Mikeš"},{"$f":"'Startovní listina'!D31","v":"Petr"},{"$f":"'Startovní listina'!E31","v":1977},{"$f":"'Startovní listina'!F31","v":"Vyškovec"},"02:38:44"]
[{"$f":"IF('Výsledková listina'!D43<>\"\",A43+1,\"\")","v":40},6,{"$f":"'Startovní listina'!G60","v":"C"},{"$f":"'Startovní listina'!B60","v":62},{"$f":"'Startovní listina'!C60","v":"Čuhel"},{"$f":"'Startovní listina'!D60","v":"Jiří"},{"$f":"'Startovní listina'!E60","v":1958},{"$f":"'Startovní listina'!F60","v":"Křtěnov"},"02:38:54"]
[{"$f":"IF('Výsledková listina'!D44<>\"\",A44+1,\"\")","v":41},14,{"$f":"'Startovní listina'!G63","v":"A"},{"$f":"'Startovní listina'!B63","v":67},{"$f":"'Startovní listina'!C63","v":"Dubský"},{"$f":"'Startovní listina'!D63","v":"Roman"},{"$f":"'Startovní listina'!E63","v":1978},{"$f":"'Startovní listina'!F63","v":"SK Přibyslav"},"02:39:15"]
[{"$f":"IF('Výsledková listina'!D45<>\"\",A45+1,\"\")","v":42},1,{"$f":"'Startovní listina'!G13","v":"D"},{"$f":"'Startovní listina'!B13","v":9},{"$f":"'Startovní listina'!C13","v":"Výtisk"},{"$f":"'Startovní listina'!D13","v":"Alfons"},{"$f":"'Startovní listina'!E13","v":1949},{"$f":"'Startovní listina'!F13","v":"MK Seitl Ostrava"},"02:40:16"]
[{"$f":"IF('Výsledková listina'!D46<>\"\",A46+1,\"\")","v":43},15,{"$f":"'Startovní listina'!G6","v":"A"},{"$f":"'Startovní listina'!B6","v":2},{"$f":"'Startovní listina'!C6","v":"Pivec"},{"$f":"'Startovní listina'!D6","v":"Jan"},{"$f":"'Startovní listina'!E6","v":1981},{"$f":"'Startovní listina'!F6","v":"HAL 3000 Brno"},"02:40:25"]
[{"$f":"IF('Výsledková listina'!D47<>\"\",A47+1,\"\")","v":44},7,{"$f":"'Startovní listina'!G55","v":"C"},{"$f":"'Startovní listina'!B55","v":57},{"$f":"'Startovní listina'!C55","v":"Češner"},{"$f":"'Startovní listina'!D55","v":"Vladimír"},{"$f":"'Startovní listina'!E55","v":1958},{"$f":"'Startovní listina'!F55","v":"Odolena Voda"},"02:40:36"]
[{"$f":"IF('Výsledková listina'!D48<>\"\",A48+1,\"\")","v":45},18,{"$f":"'Startovní listina'!G62","v":"B"},{"$f":"'Startovní listina'!B62","v":64},{"$f":"'Startovní listina'!C62","v":"Cechmaister"},{"$f":"'Startovní listina'!D62","v":"Bohumil"},{"$f":"'Startovní listina'!E62","v":1974},{"$f":"'Startovní listina'!F62","v":"Sokol Přísnotice"},"02:42:35"]
[{"$f":"IF('Výsledková listina'!D49<>\"\",A49+1,\"\")","v":46},16,{"$f":"'Startovní listina'!G57","v":"A"},{"$f":"'Startovní listina'!B57","v":59},{"$f":"'Startovní listina'!C57","v":"Hübner"},{"$f":"'Startovní listina'!D57","v":"Jan"},{"$f":"'Startovní listina'!E57","v":1978},{"$f":"'Startovní listina'!F57","v":"SDH Bolešín"},"02:42:39"]
[{"$f":"IF('Výsledková listina'!D50<>\"\",A50+1,\"\")","v":47},8,{"$f":"'Startovní listina'!G68","v":"C"},{"$f":"'Startovní listina'!B68","v":74},{"$f":"'Startovní listina'!C68","v":"Brabenec"},{"$f":"'Startovní listina'!D68","v":"Miroslav"},{"$f":"'Startovní listina'!E68","v":1959},{"$f":"'Startovní listina'!F68","v":"Žďár nad Sázavou"},"02:42:43"]
[{"$f":"IF('Výsledková listina'!D51<>\"\",A51+1,\"\")","v":48},17,{"$f":"'Startovní listina'!G20","v":"A"},{"$f":"'Startovní listina'!B20","v":17},{"$f":"'Startovní listina'!C20","v":"Kameníček"},{"$f":"'Startovní listina'!D20","v":"Michal"},{"$f":"'Startovní listina'!E20","v":1986},{"$f":"'Startovní listina'!F20","v":"Vinařice"},"02:43:21"]
[{"$f":"IF('Výsledková listina'!D52<>\"\",A52+1,\"\")","v":49},2,{"$f":"'Startovní listina'!G80","v":"D"},{"$f":"'Startovní listina'!B80","v":89},{"$f":"'Startovní listina'!C80","v":"Kohoutek"},{"$f":"'Startovní listina'!D80","v":"Jaromír"},{"$f":"'Startovní listina'!E80","v":1955},{"$f":"'Startovní listina'!F80","v":"Brno"},"02:45:32"]
[{"$f":"IF('Výsledková listina'!D53<>\"\",A53+1,\"\")","v":50},1,{"$f":"'Startovní listina'!G11","v":"G"},{"$f":"'Startovní listina'!B11","v":7},{"$f":"'Startovní listina'!C11","v":"Komárková"},{"$f":"'Startovní listina'!D11","v":"Zdeňka"},{"$f":"'Startovní listina'!E11","v":1974},{"$f":"'Startovní listina'!F11","v":"SDH Bolešín"},"02:45:37"]
[{"$f":"IF('Výsledková listina'!D54<>\"\",A54+1,\"\")","v":51},18,{"$f":"'Startovní listina'!G53","v":"A"},{"$f":"'Startovní listina'!B53","v":55},{"$f":"'Startovní listina'!C53","v":"Kolman"},{"$f":"'Startovní listina'!D53","v":"Jakub"},{"$f":"'Startovní listina'!E53","v":1976},{"$f":"'Startovní listina'!F53","v":"Posilovna Průvan"},"02:46:25"]
[{"$f":"IF('Výsledková listina'!D55<>\"\",A55+1,\"\")","v":52},19,{"$f":"'Startovní listina'!G66","v":"A"},{"$f":"'Startovní listina'!B66","v":72},{"$f":"'Startovní listina'!C66","v":"Mička"},{"$f":"'Startovní listina'!D66","v":"Michal"},{"$f":"'Startovní listina'!E66","v":1987},{"$f":"'Startovní listina'!F66","v":"Žďár nad Sázavou"},"02:46:48"]
[{"$f":"IF('Výsledková listina'!D56<>\"\",A56+1,\"\")","v":53},9,{"$f":"'Startovní listina'!G71","v":"C"},{"$f":"'Startovní listina'!B71","v":77},{"$f":"'Startovní listina'!C71","v":"Barták"},{"$f":"'Startovní listina'!D71","v":"Roland"},{"$f":"'Startovní listina'!E71","v":1965},{"$f":"'Startovní listina'!F71","v":"Kuřim"},"02:47:00"]
[{"$f":"IF('Výsledková listina'!D57<>\"\",A57+1,\"\")","v":54},20,{"$f":"'Startovní listina'!G78","v":"A"},{"$f":"'Startovní listina'!B78","v":86},{"$f":"'Startovní listina'!C78","v":"Kosmák"},{"$f":"'Startovní listina'!D78","v":"Václav"},{"$f":"'Startovní listina'!E78","v":1983},{"$f":"'Startovní listina'!F78","v":"Brno"},"02:49:04"]
[{"$f":"IF('Výsledková listina'!D58<>\"\",A58+1,\"\")","v":55},19,{"$f":"'Startovní listina'!G42","v":"B"},{"$f":"'Startovní listina'!B42","v":43},{"$f":"'Startovní listina'!C42","v":"Dvořák"},{"$f":"'Startovní listina'!D42","v":"Vojtěch"},{"$f":"'Startovní listina'!E42","v":1974},{"$f":"'Startovní listina'!F42","v":"Brno"},"02:49:46"]
[{"$f":"IF('Výsledková listina'!D59<>\"\",A59+1,\"\")","v":56},3,{"$f":"'Startovní listina'!G46","v":"D"},{"$f":"'Startovní listina'!B46","v":47},{"$f":"'Startovní listina'!C46","v":"Boháč"},{"$f":"'Startovní listina'!D46","v":"Jiří"},{"$f":"'Startovní listina'!E46","v":1954},{"$f":"'Startovní listina'!F46","v":"Běhej Brno com"},"02:50:33"]
[{"$f":"IF('Výsledková listina'!D60<>\"\",A60+1,\"\")","v":57},21,{"$f":"'Startovní listina'!G82","v":"A"},{"$f":"'Startovní listina'!B82","v":91},{"$f":"'Startovní listina'!C82","v":"Poneš"},{"$f":"'Startovní listina'!D82","v":"Pavel"},{"$f":"'Startovní listina'!E82","v":1978},{"$f":"'Startovní listina'!F82","v":"TK SOKOLI Brno"},"02:50:59"]
[{"$f":"IF('Výsledková listina'!D61<>\"\",A61+1,\"\")","v":58},2,{"$f":"'Startovní listina'!G88","v":"G"},{"$f":"'Startovní listina'!B88","v":97},{"$f":"'Startovní listina'!C88","v":"Tonarová"},{"$f":"'Startovní listina'!D88","v":"Miroslava"},{"$f":"'Startovní listina'!E88","v":1976},{"$f":"'Startovní listina'!F88","v":"Bory"},"02:53:55"]
[{"$f":"IF('Výsledková listina'!D62<>\"\",A62+1,\"\")","v":59},22,{"$f":"'Startovní listina'!G90","v":"A"},{"$f":"'Startovní listina'!B90","v":99},{"$f":"'Startovní listina'!C90","v":"Vacula"},{"$f":"'Startovní listina'!D90","v":"Ondřej"},{"$f":"'Startovní listina'!E90","v":1981},{"$f":"'Startovní listina'!F90","v":"AC Lelek Lelekovice"},"02:55:52"]
[{"$f":"IF('Výsledková listina'!D63<>\"\",A63+1,\"\")","v":60},10,{"$f":"'Startovní listina'!G70","v":"C"},{"$f":"'Startovní listina'!B70","v":76},{"$f":"'Startovní listina'!C70","v":"Novotný"},{"$f":"'Startovní listina'!D70","v":"Petr"},{"$f":"'Startovní listina'!E70","v":1965},{"$f":"'Startovní listina'!F70","v":"Kuřim"},"02:57:35"]
[{"$f":"IF('Výsledková listina'!D64<>\"\",A64+1,\"\")","v":61},20,{"$f":"'Startovní listina'!G65","v":"B"},{"$f":"'Startovní listina'!B65","v":70},{"$f":"'Startovní listina'!C65","v":"Strakoš"},{"$f":"'Startovní listina'!D65","v":"Vilém"},{"$f":"'Startovní listina'!E65","v":1969},{"$f":"'Startovní listina'!F65","v":"SK Fuga Kuřim"},"02:58:55"]
[{"$f":"IF('Výsledková listina'!D65<>\"\",A65+1,\"\")","v":62},23,{"$f":"'Startovní listina'!G32","v":"A"},{"$f":"'Startovní listina'!B32","v":31},{"$f":"'Startovní listina'!C32","v":"Kryštof"},{"$f":"'Startovní listina'!D32","v":"Ondřej"},{"$f":"'Startovní listina'!E32","v":1976},{"$f":"'Startovní listina'!F32","v":"Jiskra Vír"},"02:59:30"]
[{"$f":"IF('Výsledková listina'!D66<>\"\",A66+1,\"\")","v":63},11,{"$f":"'Startovní listina'!G10","v":"C"},{"$f":"'Startovní listina'!B10","v":6},{"$f":"'Startovní listina'!C10","v":"Zourek"},{"$f":"'Startovní listina'!D10","v":"Karel"},{"$f":"'Startovní listina'!E10","v":1959},{"$f":"'Startovní listina'!F10","v":"Brno"},"03:00:21"]
[{"$f":"IF('Výsledková listina'!D67<>\"\",A67+1,\"\")","v":64},12,{"$f":"'Startovní listina'!G34","v":"C"},{"$f":"'Startovní listina'!B34","v":34},{"$f":"'Startovní listina'!C34","v":"Navrátil"},{"$f":"'Startovní listina'!D34","v":"Petr"},{"$f":"'Startovní listina'!E34","v":1963},{"$f":"'Startovní listina'!F34","v":"Rožná"},"03:00:59"]
[{"$f":"IF('Výsledková listina'!D68<>\"\",A68+1,\"\")","v":65},2,{"$f":"'Startovní listina'!G19","v":"H"},{"$f":"'Startovní listina'!B19","v":16},{"$f":"'Startovní listina'!C19","v":"Kameníčková"},{"$f":"'Startovní listina'!D19","v":"Veronika"},{"$f":"'Startovní listina'!E19","v":1966},{"$f":"'Startovní listina'!F19","v":"Vinařice"},"03:01:04"]
[{"$f":"IF('Výsledková listina'!D69<>\"\",A69+1,\"\")","v":66},4,{"$f":"'Startovní listina'!G73","v":"D"},{"$f":"'Startovní listina'!B73","v":80},{"$f":"'Startovní listina'!C73","v":"Nekuža"},{"$f":"'Startovní listina'!D73","v":"Jiří"},{"$f":"'Startovní listina'!E73","v":1951},{"$f":"'Startovní listina'!F73","v":"RUNNERS Zbýšov"},"03:01:32"]
[{"$f":"IF('Výsledková listina'!D70<>\"\",A70+1,\"\")","v":67},21,{"$f":"'Startovní listina'!G75","v":"B"},{"$f":"'Startovní listina'!B75","v":83},{"$f":"'Startovní listina'!C75","v":"Holoubek"},{"$f":"'Startovní listina'!D75","v":"Jindřich"},{"$f":"'Startovní listina'!E75","v":1968},{"$f":"'Startovní listina'!F75","v":"Brno"},"03:01:37"]
[{"$f":"IF('Výsledková listina'!D71<>\"\",A71+1,\"\")","v":68},13,{"$f":"'Startovní listina'!G5","v":"C"},{"$f":"'Startovní listina'!B5","v":1},{"$f":"'Startovní listina'!C5","v":"Bečička"},{"$f":"'Startovní listina'!D5","v":"Petr"},{"$f":"'Startovní listina'!E5","v":1960},{"$f":"'Startovní listina'!F5","v":"HAL 3000 Brno"},"03:02:17"]
[{"$f":"IF('Výsledková listina'!D72<>\"\",A72+1,\"\")","v":69},4,{"$f":"'Startovní listina'!G25","v":"F"},{"$f":"'Startovní listina'!B25","v":23},{"$f":"'Startovní listina'!C25","v":"Vašalovská"},{"$f":"'Startovní listina'!D25","v":"Petra"},{"$f":"'Startovní listina'!E25","v":1986},{"$f":"'Startovní listina'!F25","v":"Atletic Třebíč"},"03:04:10"]
[{"$f":"IF('Výsledková listina'!D73<>\"\",A73+1,\"\")","v":70},24,{"$f":"'Startovní listina'!G92","v":"A"},{"$f":"'Startovní listina'!B92","v":101},{"$f":"'Startovní listina'!C92","v":"Milka"},{"$f":"'Startovní listina'!D92","v":"Zdeněk"},{"$f":"'Startovní listina'!E92","v":1984},{"$f":"'Startovní listina'!F92","v":"Brno"},"03:04:27"]
[{"$f":"IF('Výsledková listina'!D74<>\"\",A74+1,\"\")","v":71},14,{"$f":"'Startovní listina'!G17","v":"C"},{"$f":"'Startovní listina'!B17","v":13},{"$f":"'Startovní listina'!C17","v":"Kresta"},{"$f":"'Startovní listina'!D17","v":"Roman"},{"$f":"'Startovní listina'!E17","v":1965},{"$f":"'Startovní listina'!F17","v":"Brno"},"03:06:22"]
[{"$f":"IF('Výsledková listina'!D75<>\"\",A75+1,\"\")","v":72},3,{"$f":"'Startovní listina'!G26","v":"H"},{"$f":"'Startovní listina'!B26","v":24},{"$f":"'Startovní listina'!C26","v":"Mahelová"},{"$f":"'Startovní listina'!D26","v":"Jitka"},{"$f":"'Startovní listina'!E26","v":1962},{"$f":"'Startovní listina'!F26","v":"Atletic Třebíč"},"03:06:38"]
[{"$f":"IF('Výsledková listina'!D76<>\"\",A76+1,\"\")","v":73},5,{"$f":"'Startovní listina'!G7","v":"F"},{"$f":"'Startovní listina'!B7","v":3},{"$f":"'Startovní listina'!C7","v":"Dostálová"},{"$f":"'Startovní listina'!D7","v":"Vendula"},{"$f":"'Startovní listina'!E7","v":1981},{"$f":"'Startovní listina'!F7","v":"HAL 3000 Brno"},"03:07:50"]
[{"$f":"IF('Výsledková listina'!D77<>\"\",A77+1,\"\")","v":74},25,{"$f":"'Startovní listina'!G44","v":"A"},{"$f":"'Startovní listina'!B44","v":45},{"$f":"'Startovní listina'!C44","v":"Hakl"},{"$f":"'Startovní listina'!D44","v":"Martin"},{"$f":"'Startovní listina'!E44","v":1987},{"$f":"'Startovní listina'!F44","v":"Running with Those that Carit"},"03:10:37"]
[{"$f":"IF('Výsledková listina'!D78<>\"\",A78+1,\"\")","v":75},26,{"$f":"'Startovní listina'!G96","v":"A"},{"$f":"'Startovní listina'!B96","v":105},{"$f":"'Startovní listina'!C96","v":"Procházka"},{"$f":"'Startovní listina'!D96","v":"Pavel"},{"$f":"'Startovní listina'!E96","v":1988},{"$f":"'Startovní listina'!F96","v":"Bystřice nad Pernštejnem"},"03:12:26"]
[{"$f":"IF('Výsledková listina'!D79<>\"\",A79+1,\"\")","v":76},22,{"$f":"'Startovní listina'!G94","v":"B"},{"$f":"'Startovní listina'!B94","v":103},{"$f":"'Startovní listina'!C94","v":"Junga"},{"$f":"'Startovní listina'!D94","v":"Stanislav"},{"$f":"'Startovní listina'!E94","v":1971},{"$f":"'Startovní listina'!F94","v":"Újezd u Brna"},"03:13:50"]
[{"$f":"IF('Výsledková listina'!D80<>\"\",A80+1,\"\")","v":77},5,{"$f":"'Startovní listina'!G52","v":"D"},{"$f":"'Startovní listina'!B52","v":54},{"$f":"'Startovní listina'!C52","v":"Mareš"},{"$f":"'Startovní listina'!D52","v":"Bohumil"},{"$f":"'Startovní listina'!E52","v":1951},{"$f":"'Startovní listina'!F52","v":"LEAR Brno"},"03:14:48"]
[{"$f":"IF('Výsledková listina'!D81<>\"\",A81+1,\"\")","v":78},4,{"$f":"'Startovní listina'!G97","v":"H"},{"$f":"'Startovní listina'!B97","v":106},{"$f":"'Startovní listina'!C97","v":"Podmelová"},{"$f":"'Startovní listina'!D97","v":"Vilma"},{"$f":"'Startovní listina'!E97","v":1962},{"$f":"'Startovní listina'!F97","v":"Moravská Slávia Brno"},"03:14:54"]
[{"$f":"IF('Výsledková listina'!D82<>\"\",A82+1,\"\")","v":79},6,{"$f":"'Startovní listina'!G64","v":"F"},{"$f":"'Startovní listina'!B64","v":69},{"$f":"'Startovní listina'!C64","v":"Rokosová"},{"$f":"'Startovní listina'!D64","v":"Ivana"},{"$f":"'Startovní listina'!E64","v":1982},{"$f":"'Startovní listina'!F64","v":"Polička"},"03:18:47"]
[{"$f":"IF('Výsledková listina'!D83<>\"\",A83+1,\"\")","v":80},15,{"$f":"'Startovní listina'!G76","v":"C"},{"$f":"'Startovní listina'!B76","v":84},{"$f":"'Startovní listina'!C76","v":"Šilhan"},{"$f":"'Startovní listina'!D76","v":"Vladimír"},{"$f":"'Startovní listina'!E76","v":1957},{"$f":"'Startovní listina'!F76","v":"Original Ježek Babice nad Svitavou"},"03:18:56"]
[{"$f":"IF('Výsledková listina'!D84<>\"\",A84+1,\"\")","v":81},23,{"$f":"'Startovní listina'!G45","v":"B"},{"$f":"'Startovní listina'!B45","v":46},{"$f":"'Startovní listina'!C45","v":"Münster"},{"$f":"'Startovní listina'!D45","v":"Libor"},{"$f":"'Startovní listina'!E45","v":1966},{"$f":"'Startovní listina'!F45","v":"Blansko"},"03:21:11"]
[{"$f":"IF('Výsledková listina'!D85<>\"\",A85+1,\"\")","v":82},3,{"$f":"'Startovní listina'!G81","v":"G"},{"$f":"'Startovní listina'!B81","v":90},{"$f":"'Startovní listina'!C81","v":"Ježová"},{"$f":"'Startovní listina'!D81","v":"Martina"},{"$f":"'Startovní listina'!E81","v":1975},{"$f":"'Startovní listina'!F81","v":"Brno"},"03:24:59"]
[{"$f":"IF('Výsledková listina'!D86<>\"\",A86+1,\"\")","v":83},24,{"$f":"'Startovní listina'!G85","v":"B"},{"$f":"'Startovní listina'!B85","v":94},{"$f":"'Startovní listina'!C85","v":"Benc"},{"$f":"'Startovní listina'!D85","v":"Karel"},{"$f":"'Startovní listina'!E85","v":1975},{"$f":"'Startovní listina'!F85","v":"Pivonice"},"03:28:11"]
[{"$f":"IF('Výsledková listina'!D87<>\"\",A87+1,\"\")","v":84},7,{"$f":"'Startovní listina'!G8","v":"F"},{"$f":"'Startovní listina'!B8","v":4},{"$f":"'Startovní listina'!C8","v":"Navrátilová"},{"$f":"'Startovní listina'!D8","v":"Vlasta"},{"$f":"'Startovní listina'!E8","v":1983},{"$f":"'Startovní listina'!F8","v":"Vír"},"03:30:08"]
[{"$f":"IF('Výsledková listina'!D88<>\"\",A88+1,\"\")","v":85},25,{"$f":"'Startovní listina'!G93","v":"B"},{"$f":"'Startovní listina'!B93","v":102},{"$f":"'Startovní listina'!C93","v":"Konečný"},{"$f":"'Startovní listina'!D93","v":"Jaroslav"},{"$f":"'Startovní listina'!E93","v":1969},{"$f":"'Startovní listina'!F93","v":"Popůvky"},"03:31:45"]
[{"$f":"IF('Výsledková listina'!D89<>\"\",A89+1,\"\")","v":86},5,{"$f":"'Startovní listina'!G16","v":"H"},{"$f":"'Startovní listina'!B16","v":12},{"$f":"'Startovní listina'!C16","v":"Tesařová"},{"$f":"'Startovní listina'!D16","v":"Marie"},{"$f":"'Startovní listina'!E16","v":1954},{"$f":"'Startovní listina'!F16","v":"Křižanov"},"03:32:08"]
[{"$f":"IF('Výsledková listina'!D90<>\"\",A90+1,\"\")","v":87},8,{"$f":"'Startovní listina'!G21","v":"F"},{"$f":"'Startovní listina'!B21","v":18},{"$f":"'Startovní listina'!C21","v":"Peštuková"},{"$f":"'Startovní listina'!D21","v":"Ivana"},{"$f":"'Startovní listina'!E21","v":1990},{"$f":"'Startovní listina'!F21","v":"Vinařice"},"03:32:23"]
[{"$f":"IF('Výsledková listina'!D91<>\"\",A91+1,\"\")","v":88},26,{"$f":"'Startovní listina'!G77","v":"B"},{"$f":"'Startovní listina'!B77","v":85},{"$f":"'Startovní listina'!C77","v":"Jaskulka"},{"$f":"'Startovní listina'!D77","v":"Martin"},{"$f":"'Startovní listina'!E77","v":1968},{"$f":"'Startovní listina'!F77","v":"Kuřim"},"03:37:46"]
[{"$f":"IF('Výsledková listina'!D92<>\"\",A92+1,\"\")","v":89},1,{"$f":"'Startovní listina'!G18","v":"E"},{"$f":"'Startovní listina'!B18","v":14},{"$f":"'Startovní listina'!C18","v":"Holý"},{"$f":"'Startovní listina'!D18","v":"Josef"},{"$f":"'Startovní listina'!E18","v":1941},{"$f":"'Startovní listina'!F18","v":"Moravská Slávia Brno"},"03:42:45"]
[{"$f":"IF('Výsledková listina'!D93<>\"\",A93+1,\"\")","v":90},6,{"$f":"'Startovní listina'!G33","v":"H"},{"$f":"'Startovní listina'!B33","v":33},{"$f":"'Startovní listina'!C33","v":"Šedová"},{"$f":"'Startovní listina'!D33","v":"Věra"},{"$f":"'Startovní listina'!E33","v":1964},{"$f":"'Startovní listina'!F33","v":"Atletic Třebíč"},"03:44:49"]
[{"$f":"IF('Výsledková listina'!D94<>\"\",A94+1,\"\")","v":91},16,{"$f":"'Startovní listina'!G36","v":"C"},{"$f":"'Startovní listina'!B36","v":36},{"$f":"'Startovní listina'!C36","v":"Krátký"},{"$f":"'Startovní listina'!D36","v":"Josef"},{"$f":"'Startovní listina'!E36","v":1965},{"$f":"'Startovní listina'!F36","v":"Hvězda SKP Pardubice"},"03:49:35"]
[{"$f":"IF('Výsledková listina'!D95<>\"\",A95+1,\"\")","v":92},6,{"$f":"'Startovní listina'!G72","v":"D"},{"$f":"'Startovní listina'!B72","v":79},{"$f":"'Startovní listina'!C72","v":"Vídeňský"},{"$f":"'Startovní listina'!D72","v":"Jiří"},{"$f":"'Startovní listina'!E72","v":1947},{"$f":"'Startovní listina'!F72","v":"KD Moravské Budějovice"},"04:02:08"]
[{"$f":"IF('Výsledková listina'!D96<>\"\",A96+1,\"\")","v":93},2,{"$f":"'Startovní listina'!G23","v":"E"},{"$f":"'Startovní listina'!B23","v":21},{"$f":"'Startovní listina'!C23","v":"Hrubý"},{"$f":"'Startovní listina'!D23","v":"Milan"},{"$f":"'Startovní listina'!E23","v":1938},{"$f":"'Startovní listina'!F23","v":"Blansko"},"04:13:01"]
[{"$f":"IF('Výsledková listina'!D97<>\"\",A97+1,\"\")","v":94},7,{"$f":"'Startovní listina'!G69","v":"D"},{"$f":"'Startovní listina'!B69","v":75},{"$f":"'Startovní listina'!C69","v":"Kaše"},{"$f":"'Startovní listina'!D69","v":"Jaroslav"},{"$f":"'Startovní listina'!E69","v":1953},{"$f":"'Startovní listina'!F69","v":"Club běžeckých outsiderů"},"DNF"]
[{"$f":"IF('Výsledková listina'!D98<>\"\",A98+1,\"\")","v":95},null,{"$f":"'Startovní listina'!G99","v":""},{"$f":"'Startovní listina'!B99","v":""},{"$f":"'Startovní listina'!C99","v":""},{"$f":"'Startovní listina'!D99","v":""},{"$f":"'Startovní listina'!E99","v":""},{"$f":"'Startovní listina'!F99","v":""}]
[{"$f":"IF('Výsledková listina'!D99<>\"\",A99+1,\"\")","v":""},null,{"$f":"'Startovní listina'!G100","v":""},{"$f":"'Startovní listina'!B100","v":""},{"$f":"'Startovní listina'!C100","v":""},{"$f":"'Startovní listina'!D100","v":""},{"$f":"'Startovní listina'!E100","v":""},{"$f":"'Startovní listina'!F100","v":""}]
[{"$f":"IF('Výsledková listina'!D100<>\"\",A100+1,\"\")","v":""},null,{"$f":"'Startovní listina'!G101","v":""},{"$f":"'Startovní listina'!B101","v":""},{"$f":"'Startovní listina'!C101","v":""},{"$f":"'Startovní listina'!D101","v":""},{"$f":"'Startovní listina'!E101","v":""},{"$f":"'Startovní listina'!F101","v":""}]
[{"$f":"IF('Výsledková listina'!D101<>\"\",A101+1,\"\")","v":""},null,{"$f":"'Startovní listina'!G102","v":""},{"$f":"'Startovní listina'!B102","v":""},{"$f":"'Startovní listina'!C102","v":""},{"$f":"'Startovní listina'!D102","v":""},{"$f":"'Startovní listina'!E102","v":""},{"$f":"'Startovní listina'!F102","v":""}]
[{"$f":"IF('Výsledková listina'!D102<>\"\",A102+1,\"\")","v":""},null,{"$f":"'Startovní listina'!G103","v":""},{"$f":"'Startovní listina'!B103","v":""},{"$f":"'Startovní listina'!C103","v":""},{"$f":"'Startovní listina'!D103","v":""},{"$f":"'Startovní listina'!E103","v":""},{"$f":"'Startovní listina'!F103","v":""}]

{"sheet":"Družstva","index":3,"n_rows":21,"n_cols":11,"rows_kept":21,"cut":false,"hidden":false,"merged":[[3,8,4,8],[11,8,12,8],[0,1,0,8],[1,1,1,8],[13,8,14,8],[3,1,4,1],[11,1,12,1],[5,1,6,1],[7,1,8,1],[9,1,10,1],[5,6,6,6],[13,1,14,1],[3,6,4,6],[13,6,14,6],[7,6,8,6],[9,6,10,6],[11,6,12,6],[5,8,6,8],[7,8,8,8],[9,8,10,8],[15,1,16,1],[15,6,16,6],[15,8,16,8],[17,1,18,1],[17,6,18,6],[17,8,18,8],[19,1,20,1],[19,6,20,6],[19,8,20,8]]}
[null,{"$f":"\"Výsledková listina - Malý svratecký maratón \"&'Prezenční listina'!O2&\" - družstva\"","v":"Výsledková listina - Malý svratecký maratón 2015 - družstva"}]
[null,{"$f":"'Prezenční listina'!O2-1953&\". ročník\"","v":"62. ročník"}]
[null,"Pořadí","Startovní číslo","Příjmení","Jméno","Narození","Oddíl / Bydliště","Čas","Výsledný čas"]
[null,"1.",82,{"$f":"IF(ISERROR(VLOOKUP(C4,'Startovní listina'!$B$5:$F$141,2)),\"\",VLOOKUP(C4,'Startovní listina'!$B$5:$F$141,2))","v":"Glier"},{"$f":"IF(ISERROR(VLOOKUP(C4,'Startovní listina'!$B$5:$F$141,3)),\"\",VLOOKUP(C4,'Startovní listina'!$B$5:$F$141,3))","v":"Michal"},{"$f":"IF(ISERROR(VLOOKUP(C4,'Startovní listina'!$B$5:$F$141,4)),\"\",VLOOKUP(C4,'Startovní listina'!$B$5:$F$141,4))","v":1982},{"$f":"IF(K4=K5,K4,\"RŮZNÉ ODDÍLY !!!\")","v":"Moravská Slávia Brno"},"02:11:00",{"$f":"IF((H4=0),\"\",H4+H5)","v":"04:05:34"},null,{"$f":"IF(ISERROR(VLOOKUP(C4,'Startovní listina'!$B$5:$F$141,5)),\"\",VLOOKUP(C4,'Startovní listina'!$B$5:$F$141,5))","v":"Moravská Slávia Brno"}]
[null,null,107,{"$f":"IF(ISERROR(VLOOKUP(C5,'Startovní listina'!$B$5:$F$141,2)),\"\",VLOOKUP(C5,'Startovní listina'!$B$5:$F$141,2))","v":"Orálek"},{"$f":"IF(ISERROR(VLOOKUP(C5,'Startovní listina'!$B$5:$F$141,3)),\"\",VLOOKUP(C5,'Startovní listina'!$B$5:$F$141,3))","v":"Daniel"},{"$f":"IF(ISERROR(VLOOKUP(C5,'Startovní listina'!$B$5:$F$141,4)),\"\",VLOOKUP(C5,'Startovní listina'!$B$5:$F$141,4))","v":1970},null,"01:54:34",null,null,{"$f":"IF(ISERROR(VLOOKUP(C5,'Startovní listina'!$B$5:$F$141,5)),\"\",VLOOKUP(C5,'Startovní listina'!$B$5:$F$141,5))","v":"Moravská Slávia Brno"}]
[null,"2.",11,{"$f":"IF(ISERROR(VLOOKUP(C6,'Startovní listina'!$B$5:$F$141,2)),\"\",VLOOKUP(C6,'Startovní listina'!$B$5:$F$141,2))","v":"Fousek"},{"$f":"IF(ISERROR(VLOOKUP(C6,'Startovní listina'!$B$5:$F$141,3)),\"\",VLOOKUP(C6,'Startovní listina'!$B$5:$F$141,3))","v":"Jan"},{"$f":"IF(ISERROR(VLOOKUP(C6,'Startovní listina'!$B$5:$F$141,4)),\"\",VLOOKUP(C6,'Startovní listina'!$B$5:$F$141,4))","v":1991},{"$f":"IF(K6=K7,K6,\"RŮZNÉ ODDÍLY !!!\")","v":"MK Seitl Ostrava"},"02:01:16",{"$f":"IF((H6=0),\"\",H6+H7)","v":"04:06:56"},null,{"$f":"IF(ISERROR(VLOOKUP(C6,'Startovní listina'!$B$5:$F$141,5)),\"\",VLOOKUP(C6,'Startovní listina'!$B$5:$F$141,5))","v":"MK Seitl Ostrava"}]
[null,null,8,{"$f":"IF(ISERROR(VLOOKUP(C7,'Startovní listina'!$B$5:$F$141,2)),\"\",VLOOKUP(C7,'Startovní listina'!$B$5:$F$141,2))","v":"Škapa"},{"$f":"IF(ISERROR(VLOOKUP(C7,'Startovní listina'!$B$5:$F$141,3)),\"\",VLOOKUP(C7,'Startovní listina'!$B$5:$F$141,3))","v":"Marek"},{"$f":"IF(ISERROR(VLOOKUP(C7,'Startovní listina'!$B$5:$F$141,4)),\"\",VLOOKUP(C7,'Startovní listina'!$B$5:$F$141,4))","v":1971},null,"02:05:40",null,null,{"$f":"IF(ISERROR(VLOOKUP(C7,'Startovní listina'!$B$5:$F$141,5)),\"\",VLOOKUP(C7,'Startovní listina'!$B$5:$F$141,5))","v":"MK Seitl Ostrava"}]
[null,"3.",28,{"$f":"IF(ISERROR(VLOOKUP(C8,'Startovní listina'!$B$5:$F$141,2)),\"\",VLOOKUP(C8,'Startovní listina'!$B$5:$F$141,2))","v":"Kratochvíl"},{"$f":"IF(ISERROR(VLOOKUP(C8,'Startovní listina'!$B$5:$F$141,3)),\"\",VLOOKUP(C8,'Startovní listina'!$B$5:$F$141,3))","v":"Pavel"},{"$f":"IF(ISERROR(VLOOKUP(C8,'Startovní listina'!$B$5:$F$141,4)),\"\",VLOOKUP(C8,'Startovní listina'!$B$5:$F$141,4))","v":1960},{"$f":"IF(K8=K9,K8,\"RŮZNÉ ODDÍLY !!!\")","v":"Atletic Třebíč"},"02:19:07",{"$f":"IF((H8=0),\"\",H8+H9)","v":"04:24:14"},null,{"$f":"IF(ISERROR(VLOOKUP(C8,'Startovní listina'!$B$5:$F$141,5)),\"\",VLOOKUP(C8,'Startovní listina'!$B$5:$F$141,5))","v":"Atletic Třebíč"}]
[null,null,26,{"$f":"IF(ISERROR(VLOOKUP(C9,'Startovní listina'!$B$5:$F$141,2)),\"\",VLOOKUP(C9,'Startovní listina'!$B$5:$F$141,2))","v":"Nováček"},{"$f":"IF(ISERROR(VLOOKUP(C9,'Startovní listina'!$B$5:$F$141,3)),\"\",VLOOKUP(C9,'Startovní listina'!$B$5:$F$141,3))","v":"Tomáš"},{"$f":"IF(ISERROR(VLOOKUP(C9,'Startovní listina'!$B$5:$F$141,4)),\"\",VLOOKUP(C9,'Startovní listina'!$B$5:$F$141,4))","v":1983},null,"02:05:07",null,null,{"$f":"IF(ISERROR(VLOOKUP(C9,'Startovní listina'!$B$5:$F$141,5)),\"\",VLOOKUP(C9,'Startovní listina'!$B$5:$F$141,5))","v":"Atletic Třebíč"}]
[null,"4.",9,{"$f":"IF(ISERROR(VLOOKUP(C10,'Startovní listina'!$B$5:$F$141,2)),\"\",VLOOKUP(C10,'Startovní listina'!$B$5:$F$141,2))","v":"Výtisk"},{"$f":"IF(ISERROR(VLOOKUP(C10,'Startovní listina'!$B$5:$F$141,3)),\"\",VLOOKUP(C10,'Startovní listina'!$B$5:$F$141,3))","v":"Alfons"},{"$f":"IF(ISERROR(VLOOKUP(C10,'Startovní listina'!$B$5:$F$141,4)),\"\",VLOOKUP(C10,'Startovní listina'!$B$5:$F$141,4))","v":1949},{"$f":"IF(K10=K11,K10,\"RŮZNÉ ODDÍLY !!!\")","v":"MK Seitl Ostrava"},"02:40:16",{"$f":"IF((H10=0),\"\",H10+H11)","v":"05:12:53"},null,{"$f":"IF(ISERROR(VLOOKUP(C10,'Startovní listina'!$B$5:$F$141,5)),\"\",VLOOKUP(C10,'Startovní listina'!$B$5:$F$141,5))","v":"MK Seitl Ostrava"}]
[null,null,10,{"$f":"IF(ISERROR(VLOOKUP(C11,'Startovní listina'!$B$5:$F$141,2)),\"\",VLOOKUP(C11,'Startovní listina'!$B$5:$F$141,2))","v":"Dvorský"},{"$f":"IF(ISERROR(VLOOKUP(C11,'Startovní listina'!$B$5:$F$141,3)),\"\",VLOOKUP(C11,'Startovní listina'!$B$5:$F$141,3))","v":"Ladislav"},{"$f":"IF(ISERROR(VLOOKUP(C11,'Startovní listina'!$B$5:$F$141,4)),\"\",VLOOKUP(C11,'Startovní listina'!$B$5:$F$141,4))","v":1965},null,"02:32:37",null,null,{"$f":"IF(ISERROR(VLOOKUP(C11,'Startovní listina'!$B$5:$F$141,5)),\"\",VLOOKUP(C11,'Startovní listina'!$B$5:$F$141,5))","v":"MK Seitl Ostrava"}]
[null,"5.",3,{"$f":"IF(ISERROR(VLOOKUP(C12,'Startovní listina'!$B$5:$F$141,2)),\"\",VLOOKUP(C12,'Startovní listina'!$B$5:$F$141,2))","v":"Dostálová"},{"$f":"IF(ISERROR(VLOOKUP(C12,'Startovní listina'!$B$5:$F$141,3)),\"\",VLOOKUP(C12,'Startovní listina'!$B$5:$F$141,3))","v":"Vendula"},{"$f":"IF(ISERROR(VLOOKUP(C12,'Startovní listina'!$B$5:$F$141,4)),\"\",VLOOKUP(C12,'Startovní listina'!$B$5:$F$141,4))","v":1981},{"$f":"IF(K12=K13,K12,\"RŮZNÉ ODDÍLY !!!\")","v":"HAL 3000 Brno"},"03:07:50",{"$f":"IF((H12=0),\"\",H12+H13)","v":"05:48:15"},null,{"$f":"IF(ISERROR(VLOOKUP(C12,'Startovní listina'!$B$5:$F$141,5)),\"\",VLOOKUP(C12,'Startovní listina'!$B$5:$F$141,5))","v":"HAL 3000 Brno"}]
[null,null,2,{"$f":"IF(ISERROR(VLOOKUP(C13,'Startovní listina'!$B$5:$F$141,2)),\"\",VLOOKUP(C13,'Startovní listina'!$B$5:$F$141,2))","v":"Pivec"},{"$f":"IF(ISERROR(VLOOKUP(C13,'Startovní listina'!$B$5:$F$141,3)),\"\",VLOOKUP(C13,'Startovní listina'!$B$5:$F$141,3))","v":"Jan"},{"$f":"IF(ISERROR(VLOOKUP(C13,'Startovní listina'!$B$5:$F$141,4)),\"\",VLOOKUP(C13,'Startovní listina'!$B$5:$F$141,4))","v":1981},null,"02:40:25",null,null,{"$f":"IF(ISERROR(VLOOKUP(C13,'Startovní listina'!$B$5:$F$141,5)),\"\",VLOOKUP(C13,'Startovní listina'!$B$5:$F$141,5))","v":"HAL 3000 Brno"}]
[null,"6.",23,{"$f":"IF(ISERROR(VLOOKUP(C14,'Startovní listina'!$B$5:$F$141,2)),\"\",VLOOKUP(C14,'Startovní listina'!$B$5:$F$141,2))","v":"Vašalovská"},{"$f":"IF(ISERROR(VLOOKUP(C14,'Startovní listina'!$B$5:$F$141,3)),\"\",VLOOKUP(C14,'Startovní listina'!$B$5:$F$141,3))","v":"Petra"},{"$f":"IF(ISERROR(VLOOKUP(C14,'Startovní listina'!$B$5:$F$141,4)),\"\",VLOOKUP(C14,'Startovní listina'!$B$5:$F$141,4))","v":1986},{"$f":"IF(K14=K15,K14,\"RŮZNÉ ODDÍLY !!!\")","v":"Atletic Třebíč"},"03:04:10",{"$f":"IF((H14=0),\"\",H14+H15)","v":"06:10:48"},null,{"$f":"IF(ISERROR(VLOOKUP(C14,'Startovní listina'!$B$5:$F$141,5)),\"\",VLOOKUP(C14,'Startovní listina'!$B$5:$F$141,5))","v":"Atletic Třebíč"}]
[null,null,24,{"$f":"IF(ISERROR(VLOOKUP(C15,'Startovní listina'!$B$5:$F$141,2)),\"\",VLOOKUP(C15,'Startovní listina'!$B$5:$F$141,2))","v":"Mahelová"},{"$f":"IF(ISERROR(VLOOKUP(C15,'Startovní listina'!$B$5:$F$141,3)),\"\",VLOOKUP(C15,'Startovní listina'!$B$5:$F$141,3))","v":"Jitka"},{"$f":"IF(ISERROR(VLOOKUP(C15,'Startovní listina'!$B$5:$F$141,4)),\"\",VLOOKUP(C15,'Startovní listina'!$B$5:$F$141,4))","v":1962},null,"03:06:38",null,null,{"$f":"IF(ISERROR(VLOOKUP(C15,'Startovní listina'!$B$5:$F$141,5)),\"\",VLOOKUP(C15,'Startovní listina'!$B$5:$F$141,5))","v":"Atletic Třebíč"}]
[null,"7.",35,{"$f":"IF(ISERROR(VLOOKUP(C16,'Startovní listina'!$B$5:$F$141,2)),\"\",VLOOKUP(C16,'Startovní listina'!$B$5:$F$141,2))","v":"Krátká"},{"$f":"IF(ISERROR(VLOOKUP(C16,'Startovní listina'!$B$5:$F$141,3)),\"\",VLOOKUP(C16,'Startovní listina'!$B$5:$F$141,3))","v":"Anna"},{"$f":"IF(ISERROR(VLOOKUP(C16,'Startovní listina'!$B$5:$F$141,4)),\"\",VLOOKUP(C16,'Startovní listina'!$B$5:$F$141,4))","v":1969},{"$f":"IF(K16=K17,K16,\"RŮZNÉ ODDÍLY !!!\")","v":"Hvězda SKP Pardubice"},"02:31:40",{"$f":"IF((H16=0),\"\",H16+H17)","v":"06:21:15"},null,{"$f":"IF(ISERROR(VLOOKUP(C16,'Startovní listina'!$B$5:$F$141,5)),\"\",VLOOKUP(C16,'Startovní listina'!$B$5:$F$141,5))","v":"Hvězda SKP Pardubice"}]
[null,null,36,{"$f":"IF(ISERROR(VLOOKUP(C17,'Startovní listina'!$B$5:$F$141,2)),\"\",VLOOKUP(C17,'Startovní listina'!$B$5:$F$141,2))","v":"Krátký"},{"$f":"IF(ISERROR(VLOOKUP(C17,'Startovní listina'!$B$5:$F$141,3)),\"\",VLOOKUP(C17,'Startovní listina'!$B$5:$F$141,3))","v":"Josef"},{"$f":"IF(ISERROR(VLOOKUP(C17,'Startovní listina'!$B$5:$F$141,4)),\"\",VLOOKUP(C17,'Startovní listina'!$B$5:$F$141,4))","v":1965},null,"03:49:35",null,null,{"$f":"IF(ISERROR(VLOOKUP(C17,'Startovní listina'!$B$5:$F$141,5)),\"\",VLOOKUP(C17,'Startovní listina'!$B$5:$F$141,5))","v":"Hvězda SKP Pardubice"}]
[null,"8.",null,null,null,null,null,null,null,null,{"$f":"IF(ISERROR(VLOOKUP(C18,'Startovní listina'!$B$5:$F$141,5)),\"\",VLOOKUP(C18,'Startovní listina'!$B$5:$F$141,5))","v":""}]
[null,null,null,null,null,null,null,null,null,null,{"$f":"IF(ISERROR(VLOOKUP(C19,'Startovní listina'!$B$5:$F$141,5)),\"\",VLOOKUP(C19,'Startovní listina'!$B$5:$F$141,5))","v":""}]
[null,"9.",null,null,null,null,null,null,null,null,{"$f":"IF(ISERROR(VLOOKUP(C20,'Startovní listina'!$B$5:$F$141,5)),\"\",VLOOKUP(C20,'Startovní listina'!$B$5:$F$141,5))","v":""}]
[null,null,null,null,null,null,null,null,null,null,{"$f":"IF(ISERROR(VLOOKUP(C21,'Startovní listina'!$B$5:$F$141,5)),\"\",VLOOKUP(C21,'Startovní listina'!$B$5:$F$141,5))","v":""}]

{"sheet":"Běh Vírem","index":4,"n_rows":26,"n_cols":12,"rows_kept":26,"cut":false,"hidden":false,"merged":[[0,0,0,7],[1,0,1,7]]}
[{"$f":"\"Běh Vírem \"&'Prezenční listina'!O2","v":"Běh Vírem 2015"}]
[{"$f":"'Prezenční listina'!O2-1966&\".ročník\"","v":"49.ročník"}]
[null,"Příjmení","Jméno","Narození","Oddíl / Bydliště","Startovní číslo","Čas","Pohlaví"]
[1,"Křenková","Kateřina",2001,"Přeštice",65,"00:13:57",{"$f":"IF(LEN(B4)=0,\" \",IF(MID(B4,LEN(B4),1)=\"á\",\"Ž\",\"M\"))","v":"Ž"}]
[2,"Michutová","Karolína",1999,"Brno",95,"00:22:35","Ž"]
[3,"Peřanová","Eliška",1998,"Brno",75,"00:25:05","Ž"]
[1,"Šupka","Jiří",2000,"Vír",82,"00:11:57","M"]
[2,"Nykoliv","Jiří",2000,"Horní Rožínka",92,"00:12:05","M"]
[3,"Coural","Jaroslav",2002,"Vír",90,"00:12:15","M"]
[4,"Krejzek","Richard",1997,"Bystřice nad Pernštejnem",64,"00:13:21","M"]
[5,"Živný","Dominik",1998,"Bystřice nad Pernštejnem",70,"00:13:35","M",null,null,null,";"]
[6,"Jílek","František",2004,"Velké Tresné",76,"00:13:58","M"]
[7,"Purč","Marek",2000,"Brno",89,"00:14:18","M"]
[8,"Kluj","Jiří",2003,"Brno",63,"00:14:24","M"]
[9,"Štýbnar","Štěpán",2003,"Jihlava",72,"00:14:26","M"]
[10,"Jílek","Benedikt",2006,"Velké Tresné",93,"00:16:20","M"]
[null,null,null,null,null,null,null," "]
[null,null,null,null,null,null,null," "]
[null,null,null,null,null,null,null," "]
[null,null,null,null,null,null,null," "]
[null,null,null,null,null,null,null," "]
[null,null,null,null,null,null,null," "]
[null,null,null,null,null,null,null," "]
[null,null,null,null,null,null,null," ",null,null,","]
[null,null,null,null,null,null,null," "]
[null,null,null,null,null,null,null," "]

{"sheet":"mezičasy","index":5,"n_rows":11,"n_cols":8,"rows_kept":11,"cut":false,"hidden":true,"merged":[[0,0,0,1],[0,2,0,3],[0,4,0,5],[0,6,0,7]]}
["5. km",null,"10. km",null,"16. km",null,"25. km"]
["číslo","čas","číslo","čas","číslo","čas","číslo","čas"]
[107,"00:16:50",107,"00:34:03",107,"00:55:14",107,"01:28:54"]
[60,"00:18:11",11,"00:36:39",11,"00:59:32",11,"01:34:32"]
[22,null,60,"00:36:39",60,"00:59:30",60,"01:36:34"]
[82,null,82,"00:37:05",40,"01:00:10",26,"01:36:52"]
[11,null,40,"00:37:12",82,"01:00:15",40,"01:37:13"]
[26]
[40]
[]
[87,"00:20:50"]

{"sheet":"Družstva (prac.)","index":6,"n_rows":21,"n_cols":11,"rows_kept":21,"cut":false,"hidden":true,"merged":[[19,1,20,1],[19,6,20,6],[19,8,20,8],[15,1,16,1],[15,6,16,6],[15,8,16,8],[17,1,18,1],[17,6,18,6],[17,8,18,8],[11,1,12,1],[11,6,12,6],[11,8,12,8],[13,1,14,1],[13,6,14,6],[13,8,14,8],[7,1,8,1],[7,6,8,6],[7,8,8,8],[9,1,10,1],[9,6,10,6],[9,8,10,8],[5,1,6,1],[5,6,6,6],[5,8,6,8],[0,1,0,8],[1,1,1,8],[3,1,4,1],[3,6,4,6],[3,8,4,8]]}
[null,{"$f":"\"Výsledková listina - Malý svratecký maratón \"&'Prezenční listina'!O2&\" - družstva\"","v":"Výsledková listina - Malý svratecký maratón 2015 - družstva"}]
[null,{"$f":"'Prezenční listina'!O2-1953&\". ročník\"","v":"62. ročník"}]
[null,"Pořadí","Startovní číslo","Příjmení","Jméno","Narození","Oddíl / Bydliště","Čas","Výsledný čas"]
[null,"1.",3,{"$f":"IF(ISERROR(VLOOKUP(C4,'Startovní listina'!$B$5:$F$141,2)),\"\",VLOOKUP(C4,'Startovní listina'!$B$5:$F$141,2))","v":"Dostálová"},{"$f":"IF(ISERROR(VLOOKUP(C4,'Startovní listina'!$B$5:$F$141,3)),\"\",VLOOKUP(C4,'Startovní listina'!$B$5:$F$141,3))","v":"Vendula"},{"$f":"IF(ISERROR(VLOOKUP(C4,'Startovní listina'!$B$5:$F$141,4)),\"\",VLOOKUP(C4,'Startovní listina'!$B$5:$F$141,4))","v":1981},{"$f":"IF(K4=K5,K4,\"RŮZNÉ ODDÍLY !!!\")","v":"HAL 3000 Brno"},"03:07:50",{"$f":"IF((H4=0),\"\",H4+H5)","v":"05:48:15"},null,{"$f":"IF(ISERROR(VLOOKUP(C4,'Startovní listina'!$B$5:$F$141,5)),\"\",VLOOKUP(C4,'Startovní listina'!$B$5:$F$141,5))","v":"HAL 3000 Brno"}]
[null,null,2,{"$f":"IF(ISERROR(VLOOKUP(C5,'Startovní listina'!$B$5:$F$141,2)),\"\",VLOOKUP(C5,'Startovní listina'!$B$5:$F$141,2))","v":"Pivec"},{"$f":"IF(ISERROR(VLOOKUP(C5,'Startovní listina'!$B$5:$F$141,3)),\"\",VLOOKUP(C5,'Startovní listina'!$B$5:$F$141,3))","v":"Jan"},{"$f":"IF(ISERROR(VLOOKUP(C5,'Startovní listina'!$B$5:$F$141,4)),\"\",VLOOKUP(C5,'Startovní listina'!$B$5:$F$141,4))","v":1981},null,"02:40:25",null,null,{"$f":"IF(ISERROR(VLOOKUP(C5,'Startovní listina'!$B$5:$F$141,5)),\"\",VLOOKUP(C5,'Startovní listina'!$B$5:$F$141,5))","v":"HAL 3000 Brno"}]
[null,"2.",11,{"$f":"IF(ISERROR(VLOOKUP(C6,'Startovní listina'!$B$5:$F$141,2)),\"\",VLOOKUP(C6,'Startovní listina'!$B$5:$F$141,2))","v":"Fousek"},{"$f":"IF(ISERROR(VLOOKUP(C6,'Startovní listina'!$B$5:$F$141,3)),\"\",VLOOKUP(C6,'Startovní listina'!$B$5:$F$141,3))","v":"Jan"},{"$f":"IF(ISERROR(VLOOKUP(C6,'Startovní listina'!$B$5:$F$141,4)),\"\",VLOOKUP(C6,'Startovní listina'!$B$5:$F$141,4))","v":1991},{"$f":"IF(K6=K7,K6,\"RŮZNÉ ODDÍLY !!!\")","v":"MK Seitl Ostrava"},"02:01:16",{"$f":"IF((H6=0),\"\",H6+H7)","v":"04:06:56"},null,{"$f":"IF(ISERROR(VLOOKUP(C6,'Startovní listina'!$B$5:$F$141,5)),\"\",VLOOKUP(C6,'Startovní listina'!$B$5:$F$141,5))","v":"MK Seitl Ostrava"}]
[null,null,8,{"$f":"IF(ISERROR(VLOOKUP(C7,'Startovní listina'!$B$5:$F$141,2)),\"\",VLOOKUP(C7,'Startovní listina'!$B$5:$F$141,2))","v":"Škapa"},{"$f":"IF(ISERROR(VLOOKUP(C7,'Startovní listina'!$B$5:$F$141,3)),\"\",VLOOKUP(C7,'Startovní listina'!$B$5:$F$141,3))","v":"Marek"},{"$f":"IF(ISERROR(VLOOKUP(C7,'Startovní listina'!$B$5:$F$141,4)),\"\",VLOOKUP(C7,'Startovní listina'!$B$5:$F$141,4))","v":1971},null,"02:05:40",null,null,{"$f":"IF(ISERROR(VLOOKUP(C7,'Startovní listina'!$B$5:$F$141,5)),\"\",VLOOKUP(C7,'Startovní listina'!$B$5:$F$141,5))","v":"MK Seitl Ostrava"}]
[null,"3.",9,{"$f":"IF(ISERROR(VLOOKUP(C8,'Startovní listina'!$B$5:$F$141,2)),\"\",VLOOKUP(C8,'Startovní listina'!$B$5:$F$141,2))","v":"Výtisk"},{"$f":"IF(ISERROR(VLOOKUP(C8,'Startovní listina'!$B$5:$F$141,3)),\"\",VLOOKUP(C8,'Startovní listina'!$B$5:$F$141,3))","v":"Alfons"},{"$f":"IF(ISERROR(VLOOKUP(C8,'Startovní listina'!$B$5:$F$141,4)),\"\",VLOOKUP(C8,'Startovní listina'!$B$5:$F$141,4))","v":1949},{"$f":"IF(K8=K9,K8,\"RŮZNÉ ODDÍLY !!!\")","v":"MK Seitl Ostrava"},"02:40:16",{"$f":"IF((H8=0),\"\",H8+H9)","v":"05:12:53"},null,{"$f":"IF(ISERROR(VLOOKUP(C8,'Startovní listina'!$B$5:$F$141,5)),\"\",VLOOKUP(C8,'Startovní listina'!$B$5:$F$141,5))","v":"MK Seitl Ostrava"}]
[null,null,10,{"$f":"IF(ISERROR(VLOOKUP(C9,'Startovní listina'!$B$5:$F$141,2)),\"\",VLOOKUP(C9,'Startovní listina'!$B$5:$F$141,2))","v":"Dvorský"},{"$f":"IF(ISERROR(VLOOKUP(C9,'Startovní listina'!$B$5:$F$141,3)),\"\",VLOOKUP(C9,'Startovní listina'!$B$5:$F$141,3))","v":"Ladislav"},{"$f":"IF(ISERROR(VLOOKUP(C9,'Startovní listina'!$B$5:$F$141,4)),\"\",VLOOKUP(C9,'Startovní listina'!$B$5:$F$141,4))","v":1965},null,"02:32:37",null,null,{"$f":"IF(ISERROR(VLOOKUP(C9,'Startovní listina'!$B$5:$F$141,5)),\"\",VLOOKUP(C9,'Startovní listina'!$B$5:$F$141,5))","v":"MK Seitl Ostrava"}]
[null,"4.",23,{"$f":"IF(ISERROR(VLOOKUP(C10,'Startovní listina'!$B$5:$F$141,2)),\"\",VLOOKUP(C10,'Startovní listina'!$B$5:$F$141,2))","v":"Vašalovská"},{"$f":"IF(ISERROR(VLOOKUP(C10,'Startovní listina'!$B$5:$F$141,3)),\"\",VLOOKUP(C10,'Startovní listina'!$B$5:$F$141,3))","v":"Petra"},{"$f":"IF(ISERROR(VLOOKUP(C10,'Startovní listina'!$B$5:$F$141,4)),\"\",VLOOKUP(C10,'Startovní listina'!$B$5:$F$141,4))","v":1986},{"$f":"IF(K10=K11,K10,\"RŮZNÉ ODDÍLY !!!\")","v":"Atletic Třebíč"},"03:04:10",{"$f":"IF((H10=0),\"\",H10+H11)","v":"06:10:48"},null,{"$f":"IF(ISERROR(VLOOKUP(C10,'Startovní listina'!$B$5:$F$141,5)),\"\",VLOOKUP(C10,'Startovní listina'!$B$5:$F$141,5))","v":"Atletic Třebíč"}]
[null,null,24,{"$f":"IF(ISERROR(VLOOKUP(C11,'Startovní listina'!$B$5:$F$141,2)),\"\",VLOOKUP(C11,'Startovní listina'!$B$5:$F$141,2))","v":"Mahelová"},{"$f":"IF(ISERROR(VLOOKUP(C11,'Startovní listina'!$B$5:$F$141,3)),\"\",VLOOKUP(C11,'Startovní listina'!$B$5:$F$141,3))","v":"Jitka"},{"$f":"IF(ISERROR(VLOOKUP(C11,'Startovní listina'!$B$5:$F$141,4)),\"\",VLOOKUP(C11,'Startovní listina'!$B$5:$F$141,4))","v":1962},null,"03:06:38",null,null,{"$f":"IF(ISERROR(VLOOKUP(C11,'Startovní listina'!$B$5:$F$141,5)),\"\",VLOOKUP(C11,'Startovní listina'!$B$5:$F$141,5))","v":"Atletic Třebíč"}]
[null,"5.",35,{"$f":"IF(ISERROR(VLOOKUP(C12,'Startovní listina'!$B$5:$F$141,2)),\"\",VLOOKUP(C12,'Startovní listina'!$B$5:$F$141,2))","v":"Krátká"},{"$f":"IF(ISERROR(VLOOKUP(C12,'Startovní listina'!$B$5:$F$141,3)),\"\",VLOOKUP(C12,'Startovní listina'!$B$5:$F$141,3))","v":"Anna"},{"$f":"IF(ISERROR(VLOOKUP(C12,'Startovní listina'!$B$5:$F$141,4)),\"\",VLOOKUP(C12,'Startovní listina'!$B$5:$F$141,4))","v":1969},{"$f":"IF(K12=K13,K12,\"RŮZNÉ ODDÍLY !!!\")","v":"Hvězda SKP Pardubice"},"02:31:40",{"$f":"IF((H12=0),\"\",H12+H13)","v":"06:21:15"},null,{"$f":"IF(ISERROR(VLOOKUP(C12,'Startovní listina'!$B$5:$F$141,5)),\"\",VLOOKUP(C12,'Startovní listina'!$B$5:$F$141,5))","v":"Hvězda SKP Pardubice"}]
[null,null,36,{"$f":"IF(ISERROR(VLOOKUP(C13,'Startovní listina'!$B$5:$F$141,2)),\"\",VLOOKUP(C13,'Startovní listina'!$B$5:$F$141,2))","v":"Krátký"},{"$f":"IF(ISERROR(VLOOKUP(C13,'Startovní listina'!$B$5:$F$141,3)),\"\",VLOOKUP(C13,'Startovní listina'!$B$5:$F$141,3))","v":"Josef"},{"$f":"IF(ISERROR(VLOOKUP(C13,'Startovní listina'!$B$5:$F$141,4)),\"\",VLOOKUP(C13,'Startovní listina'!$B$5:$F$141,4))","v":1965},null,"03:49:35",null,null,{"$f":"IF(ISERROR(VLOOKUP(C13,'Startovní listina'!$B$5:$F$141,5)),\"\",VLOOKUP(C13,'Startovní listina'!$B$5:$F$141,5))","v":"Hvězda SKP Pardubice"}]
[null,"6.",82,{"$f":"IF(ISERROR(VLOOKUP(C14,'Startovní listina'!$B$5:$F$141,2)),\"\",VLOOKUP(C14,'Startovní listina'!$B$5:$F$141,2))","v":"Glier"},{"$f":"IF(ISERROR(VLOOKUP(C14,'Startovní listina'!$B$5:$F$141,3)),\"\",VLOOKUP(C14,'Startovní listina'!$B$5:$F$141,3))","v":"Michal"},{"$f":"IF(ISERROR(VLOOKUP(C14,'Startovní listina'!$B$5:$F$141,4)),\"\",VLOOKUP(C14,'Startovní listina'!$B$5:$F$141,4))","v":1982},{"$f":"IF(K14=K15,K14,\"RŮZNÉ ODDÍLY !!!\")","v":"Moravská Slávia Brno"},"02:11:00",{"$f":"IF((H14=0),\"\",H14+H15)","v":"04:05:34"},null,{"$f":"IF(ISERROR(VLOOKUP(C14,'Startovní listina'!$B$5:$F$141,5)),\"\",VLOOKUP(C14,'Startovní listina'!$B$5:$F$141,5))","v":"Moravská Slávia Brno"}]
[null,null,107,{"$f":"IF(ISERROR(VLOOKUP(C15,'Startovní listina'!$B$5:$F$141,2)),\"\",VLOOKUP(C15,'Startovní listina'!$B$5:$F$141,2))","v":"Orálek"},{"$f":"IF(ISERROR(VLOOKUP(C15,'Startovní listina'!$B$5:$F$141,3)),\"\",VLOOKUP(C15,'Startovní listina'!$B$5:$F$141,3))","v":"Daniel"},{"$f":"IF(ISERROR(VLOOKUP(C15,'Startovní listina'!$B$5:$F$141,4)),\"\",VLOOKUP(C15,'Startovní listina'!$B$5:$F$141,4))","v":1970},null,"01:54:34",null,null,{"$f":"IF(ISERROR(VLOOKUP(C15,'Startovní listina'!$B$5:$F$141,5)),\"\",VLOOKUP(C15,'Startovní listina'!$B$5:$F$141,5))","v":"Moravská Slávia Brno"}]
[null,"7.",28,{"$f":"IF(ISERROR(VLOOKUP(C16,'Startovní listina'!$B$5:$F$141,2)),\"\",VLOOKUP(C16,'Startovní listina'!$B$5:$F$141,2))","v":"Kratochvíl"},{"$f":"IF(ISERROR(VLOOKUP(C16,'Startovní listina'!$B$5:$F$141,3)),\"\",VLOOKUP(C16,'Startovní listina'!$B$5:$F$141,3))","v":"Pavel"},{"$f":"IF(ISERROR(VLOOKUP(C16,'Startovní listina'!$B$5:$F$141,4)),\"\",VLOOKUP(C16,'Startovní listina'!$B$5:$F$141,4))","v":1960},{"$f":"IF(K16=K17,K16,\"RŮZNÉ ODDÍLY !!!\")","v":"Atletic Třebíč"},"02:19:07",{"$f":"IF((H16=0),\"\",H16+H17)","v":"04:24:14"},null,{"$f":"IF(ISERROR(VLOOKUP(C16,'Startovní listina'!$B$5:$F$141,5)),\"\",VLOOKUP(C16,'Startovní listina'!$B$5:$F$141,5))","v":"Atletic Třebíč"}]
[null,null,26,{"$f":"IF(ISERROR(VLOOKUP(C17,'Startovní listina'!$B$5:$F$141,2)),\"\",VLOOKUP(C17,'Startovní listina'!$B$5:$F$141,2))","v":"Nováček"},{"$f":"IF(ISERROR(VLOOKUP(C17,'Startovní listina'!$B$5:$F$141,3)),\"\",VLOOKUP(C17,'Startovní listina'!$B$5:$F$141,3))","v":"Tomáš"},{"$f":"IF(ISERROR(VLOOKUP(C17,'Startovní listina'!$B$5:$F$141,4)),\"\",VLOOKUP(C17,'Startovní listina'!$B$5:$F$141,4))","v":1983},null,"02:05:07",null,null,{"$f":"IF(ISERROR(VLOOKUP(C17,'Startovní listina'!$B$5:$F$141,5)),\"\",VLOOKUP(C17,'Startovní listina'!$B$5:$F$141,5))","v":"Atletic Třebíč"}]
[null,"8.",null,{"$f":"IF(ISERROR(VLOOKUP(C18,'Startovní listina'!$B$5:$F$141,2)),\"\",VLOOKUP(C18,'Startovní listina'!$B$5:$F$141,2))","v":""},{"$f":"IF(ISERROR(VLOOKUP(C18,'Startovní listina'!$B$5:$F$141,3)),\"\",VLOOKUP(C18,'Startovní listina'!$B$5:$F$141,3))","v":""},{"$f":"IF(ISERROR(VLOOKUP(C18,'Startovní listina'!$B$5:$F$141,4)),\"\",VLOOKUP(C18,'Startovní listina'!$B$5:$F$141,4))","v":""},{"$f":"IF(K18=K19,K18,\"RŮZNÉ ODDÍLY !!!\")","v":""},null,{"$f":"IF((H18=0),\"\",H18+H19)","v":""},null,{"$f":"IF(ISERROR(VLOOKUP(C18,'Startovní listina'!$B$5:$F$141,5)),\"\",VLOOKUP(C18,'Startovní listina'!$B$5:$F$141,5))","v":""}]
[null,null,null,{"$f":"IF(ISERROR(VLOOKUP(C19,'Startovní listina'!$B$5:$F$141,2)),\"\",VLOOKUP(C19,'Startovní listina'!$B$5:$F$141,2))","v":""},{"$f":"IF(ISERROR(VLOOKUP(C19,'Startovní listina'!$B$5:$F$141,3)),\"\",VLOOKUP(C19,'Startovní listina'!$B$5:$F$141,3))","v":""},{"$f":"IF(ISERROR(VLOOKUP(C19,'Startovní listina'!$B$5:$F$141,4)),\"\",VLOOKUP(C19,'Startovní listina'!$B$5:$F$141,4))","v":""},null,null,null,null,{"$f":"IF(ISERROR(VLOOKUP(C19,'Startovní listina'!$B$5:$F$141,5)),\"\",VLOOKUP(C19,'Startovní listina'!$B$5:$F$141,5))","v":""}]
[null,"9.",null,{"$f":"IF(ISERROR(VLOOKUP(C20,'Startovní listina'!$B$5:$F$141,2)),\"\",VLOOKUP(C20,'Startovní listina'!$B$5:$F$141,2))","v":""},{"$f":"IF(ISERROR(VLOOKUP(C20,'Startovní listina'!$B$5:$F$141,3)),\"\",VLOOKUP(C20,'Startovní listina'!$B$5:$F$141,3))","v":""},{"$f":"IF(ISERROR(VLOOKUP(C20,'Startovní listina'!$B$5:$F$141,4)),\"\",VLOOKUP(C20,'Startovní listina'!$B$5:$F$141,4))","v":""},{"$f":"IF(K20=K21,K20,\"RŮZNÉ ODDÍLY !!!\")","v":""},null,{"$f":"IF((H20=0),\"\",H20+H21)","v":""},null,{"$f":"IF(ISERROR(VLOOKUP(C20,'Startovní listina'!$B$5:$F$141,5)),\"\",VLOOKUP(C20,'Startovní listina'!$B$5:$F$141,5))","v":""}]
[null,null,null,{"$f":"IF(ISERROR(VLOOKUP(C21,'Startovní listina'!$B$5:$F$141,2)),\"\",VLOOKUP(C21,'Startovní listina'!$B$5:$F$141,2))","v":""},{"$f":"IF(ISERROR(VLOOKUP(C21,'Startovní listina'!$B$5:$F$141,3)),\"\",VLOOKUP(C21,'Startovní listina'!$B$5:$F$141,3))","v":""},{"$f":"IF(ISERROR(VLOOKUP(C21,'Startovní listina'!$B$5:$F$141,4)),\"\",VLOOKUP(C21,'Startovní listina'!$B$5:$F$141,4))","v":""},null,null,null,null,{"$f":"IF(ISERROR(VLOOKUP(C21,'Startovní listina'!$B$5:$F$141,5)),\"\",VLOOKUP(C21,'Startovní listina'!$B$5:$F$141,5))","v":""}]

{"sheet":"Výsledková listina (2)","index":7,"n_rows":103,"n_cols":11,"rows_kept":103,"cut":false,"hidden":true,"merged":[[0,0,0,8],[1,0,1,8],[1,10,12,14],[2,0,2,8]]}
[{"$f":"\"Výsledková listina - Malý svratecký maraton \"&'Prezenční listina'!O2","v":"Výsledková listina - Malý svratecký maraton 2015"}]
["2015-08-22",null,null,null,null,null,null,null,null,null,"\nPoté, co jsou dopsány časy VŠECH běžců, stisknout tlačítko 1.řazení \n\n\nVe sloupci B (Pořadí v kategorii) vytvořit posloupnou číselnou řadu pro každou kategorii a poté stisknout tlačítko 2.řazení\n\n\n                      !!! POZOR!!!\n\n               Použití tlačítek je nevratný krok!"]
[{"$f":"'Prezenční listina'!O2-1953&\". ročník\"","v":"62. ročník"}]
["Celkové pořadí","Pořadí v kategorii","Kategorie","Startovní číslo","Příjmení","Jméno","Narození","Oddíl / Bydliště","Čas"]
[1,1,{"$f":"'Startovní listina'!G47","v":"B"},{"$f":"'Startovní listina'!B47","v":48},{"$f":"'Startovní listina'!C47","v":"Alman"},{"$f":"'Startovní listina'!D47","v":"Dušan"},{"$f":"'Startovní listina'!E47","v":1967},{"$f":"'Startovní listina'!F47","v":"Babice"},"02:19:48"]
[{"$f":"IF('Výsledková listina (2)'!D5<>\"\",A5+1,\"\")","v":2},null,{"$f":"'Startovní listina'!G71","v":"C"},{"$f":"'Startovní listina'!B71","v":77},{"$f":"'Startovní listina'!C71","v":"Barták"},{"$f":"'Startovní listina'!D71","v":"Roland"},{"$f":"'Startovní listina'!E71","v":1965},{"$f":"'Startovní listina'!F71","v":"Kuřim"},"02:47:00"]
[{"$f":"IF('Výsledková listina (2)'!D6<>\"\",A6+1,\"\")","v":3},null,{"$f":"'Startovní listina'!G5","v":"C"},{"$f":"'Startovní listina'!B5","v":1},{"$f":"'Startovní listina'!C5","v":"Bečička"},{"$f":"'Startovní listina'!D5","v":"Petr"},{"$f":"'Startovní listina'!E5","v":1960},{"$f":"'Startovní listina'!F5","v":"HAL 3000 Brno"},"03:02:17"]
[{"$f":"IF('Výsledková listina (2)'!D7<>\"\",A7+1,\"\")","v":4},null,{"$f":"'Startovní listina'!G85","v":"B"},{"$f":"'Startovní listina'!B85","v":94},{"$f":"'Startovní listina'!C85","v":"Benc"},{"$f":"'Startovní listina'!D85","v":"Karel"},{"$f":"'Startovní listina'!E85","v":1975},{"$f":"'Startovní listina'!F85","v":"Pivonice"},"03:28:11"]
[{"$f":"IF('Výsledková listina (2)'!D8<>\"\",A8+1,\"\")","v":5},null,{"$f":"'Startovní listina'!G59","v":"C"},{"$f":"'Startovní listina'!B59","v":61},{"$f":"'Startovní listina'!C59","v":"Bezrouk"},{"$f":"'Startovní listina'!D59","v":"Jiří"},{"$f":"'Startovní listina'!E59","v":1962},{"$f":"'Startovní listina'!F59","v":"Křtiny"},"02:23:11"]
[{"$f":"IF('Výsledková listina (2)'!D9<>\"\",A9+1,\"\")","v":6},null,{"$f":"'Startovní listina'!G46","v":"D"},{"$f":"'Startovní listina'!B46","v":47},{"$f":"'Startovní listina'!C46","v":"Boháč"},{"$f":"'Startovní listina'!D46","v":"Jiří"},{"$f":"'Startovní listina'!E46","v":1954},{"$f":"'Startovní listina'!F46","v":"Běhej Brno com"},"02:50:33"]
[{"$f":"IF('Výsledková listina (2)'!D10<>\"\",A10+1,\"\")","v":7},null,{"$f":"'Startovní listina'!G28","v":"A"},{"$f":"'Startovní listina'!B28","v":27},{"$f":"'Startovní listina'!C28","v":"Bohuslav"},{"$f":"'Startovní listina'!D28","v":"Martin"},{"$f":"'Startovní listina'!E28","v":1987},{"$f":"'Startovní listina'!F28","v":"Atletic Třebíč"},"02:26:07"]
[{"$f":"IF('Výsledková listina (2)'!D11<>\"\",A11+1,\"\")","v":8},null,{"$f":"'Startovní listina'!G67","v":"A"},{"$f":"'Startovní listina'!B67","v":73},{"$f":"'Startovní listina'!C67","v":"Brabenec"},{"$f":"'Startovní listina'!D67","v":"Aleš"},{"$f":"'Startovní listina'!E67","v":1987},{"$f":"'Startovní listina'!F67","v":"Žďár nad Sázavou"},"02:34:42"]
[{"$f":"IF('Výsledková listina (2)'!D12<>\"\",A12+1,\"\")","v":9},null,{"$f":"'Startovní listina'!G68","v":"C"},{"$f":"'Startovní listina'!B68","v":74},{"$f":"'Startovní listina'!C68","v":"Brabenec"},{"$f":"'Startovní listina'!D68","v":"Miroslav"},{"$f":"'Startovní listina'!E68","v":1959},{"$f":"'Startovní listina'!F68","v":"Žďár nad Sázavou"},"02:42:43"]
[{"$f":"IF('Výsledková listina (2)'!D13<>\"\",A13+1,\"\")","v":10},null,{"$f":"'Startovní listina'!G62","v":"B"},{"$f":"'Startovní listina'!B62","v":64},{"$f":"'Startovní listina'!C62","v":"Cechmaister"},{"$f":"'Startovní listina'!D62","v":"Bohumil"},{"$f":"'Startovní listina'!E62","v":1974},{"$f":"'Startovní listina'!F62","v":"Sokol Přísnotice"},"02:42:35"]
[{"$f":"IF('Výsledková listina (2)'!D14<>\"\",A14+1,\"\")","v":11},null,{"$f":"'Startovní listina'!G55","v":"C"},{"$f":"'Startovní listina'!B55","v":57},{"$f":"'Startovní listina'!C55","v":"Češner"},{"$f":"'Startovní listina'!D55","v":"Vladimír"},{"$f":"'Startovní listina'!E55","v":1958},{"$f":"'Startovní listina'!F55","v":"Odolena Voda"},"02:40:36"]
[{"$f":"IF('Výsledková listina (2)'!D15<>\"\",A15+1,\"\")","v":12},null,{"$f":"'Startovní listina'!G60","v":"C"},{"$f":"'Startovní listina'!B60","v":62},{"$f":"'Startovní listina'!C60","v":"Čuhel"},{"$f":"'Startovní listina'!D60","v":"Jiří"},{"$f":"'Startovní listina'!E60","v":1958},{"$f":"'Startovní listina'!F60","v":"Křtěnov"},"02:38:54"]
[{"$f":"IF('Výsledková listina (2)'!D16<>\"\",A16+1,\"\")","v":13},null,{"$f":"'Startovní listina'!G7","v":"F"},{"$f":"'Startovní listina'!B7","v":3},{"$f":"'Startovní listina'!C7","v":"Dostálová"},{"$f":"'Startovní listina'!D7","v":"Vendula"},{"$f":"'Startovní listina'!E7","v":1981},{"$f":"'Startovní listina'!F7","v":"HAL 3000 Brno"},"03:07:50"]
[{"$f":"IF('Výsledková listina (2)'!D17<>\"\",A17+1,\"\")","v":14},null,{"$f":"'Startovní listina'!G63","v":"A"},{"$f":"'Startovní listina'!B63","v":67},{"$f":"'Startovní listina'!C63","v":"Dubský"},{"$f":"'Startovní listina'!D63","v":"Roman"},{"$f":"'Startovní listina'!E63","v":1978},{"$f":"'Startovní listina'!F63","v":"SK Přibyslav"},"02:39:15"]
[{"$f":"IF('Výsledková listina (2)'!D18<>\"\",A18+1,\"\")","v":15},null,{"$f":"'Startovní listina'!G49","v":"B"},{"$f":"'Startovní listina'!B49","v":50},{"$f":"'Startovní listina'!C49","v":"Dušil"},{"$f":"'Startovní listina'!D49","v":"Jaroslav"},{"$f":"'Startovní listina'!E49","v":1970},{"$f":"'Startovní listina'!F49","v":"Brno"},"02:13:13"]
[{"$f":"IF('Výsledková listina (2)'!D19<>\"\",A19+1,\"\")","v":16},null,{"$f":"'Startovní listina'!G14","v":"C"},{"$f":"'Startovní listina'!B14","v":10},{"$f":"'Startovní listina'!C14","v":"Dvorský"},{"$f":"'Startovní listina'!D14","v":"Ladislav"},{"$f":"'Startovní listina'!E14","v":1965},{"$f":"'Startovní listina'!F14","v":"MK Seitl Ostrava"},"02:32:37"]
[{"$f":"IF('Výsledková listina (2)'!D20<>\"\",A20+1,\"\")","v":17},null,{"$f":"'Startovní listina'!G42","v":"B"},{"$f":"'Startovní listina'!B42","v":43},{"$f":"'Startovní listina'!C42","v":"Dvořák"},{"$f":"'Startovní listina'!D42","v":"Vojtěch"},{"$f":"'Startovní listina'!E42","v":1974},{"$f":"'Startovní listina'!F42","v":"Brno"},"02:49:46"]
[{"$f":"IF('Výsledková listina (2)'!D22<>\"\",A21+1,\"\")","v":18},null,{"$f":"'Startovní listina'!G79","v":"F"},{"$f":"'Startovní listina'!B79","v":87},{"$f":"'Startovní listina'!C79","v":"Dýrová Macháčková"},{"$f":"'Startovní listina'!D79","v":"Šárka"},{"$f":"'Startovní listina'!E79","v":1983},{"$f":"'Startovní listina'!F79","v":"Mizunoteam Brno"},"02:13:29"]
[{"$f":"IF('Výsledková listina (2)'!D21<>\"\",A22+1,\"\")","v":19},null,{"$f":"'Startovní listina'!G15","v":"A"},{"$f":"'Startovní listina'!B15","v":11},{"$f":"'Startovní listina'!C15","v":"Fousek"},{"$f":"'Startovní listina'!D15","v":"Jan"},{"$f":"'Startovní listina'!E15","v":1991},{"$f":"'Startovní listina'!F15","v":"MK Seitl Ostrava"},"02:01:16"]
[{"$f":"IF('Výsledková listina (2)'!D23<>\"\",A23+1,\"\")","v":20},null,{"$f":"'Startovní listina'!G91","v":"B"},{"$f":"'Startovní listina'!B91","v":100},{"$f":"'Startovní listina'!C91","v":"Fučík"},{"$f":"'Startovní listina'!D91","v":"Jaroslav"},{"$f":"'Startovní listina'!E91","v":1974},{"$f":"'Startovní listina'!F91","v":"Prosetín"},"02:30:31"]
[{"$f":"IF('Výsledková listina (2)'!D24<>\"\",A24+1,\"\")","v":21},null,{"$f":"'Startovní listina'!G74","v":"A"},{"$f":"'Startovní listina'!B74","v":82},{"$f":"'Startovní listina'!C74","v":"Glier"},{"$f":"'Startovní listina'!D74","v":"Michal"},{"$f":"'Startovní listina'!E74","v":1982},{"$f":"'Startovní listina'!F74","v":"Moravská Slávia Brno"},"02:11:00"]
[{"$f":"IF('Výsledková listina (2)'!D25<>\"\",A25+1,\"\")","v":22},null,{"$f":"'Startovní listina'!G44","v":"A"},{"$f":"'Startovní listina'!B44","v":45},{"$f":"'Startovní listina'!C44","v":"Hakl"},{"$f":"'Startovní listina'!D44","v":"Martin"},{"$f":"'Startovní listina'!E44","v":1987},{"$f":"'Startovní listina'!F44","v":"Running with Those that Carit"},"03:10:37"]
[{"$f":"IF('Výsledková listina (2)'!D26<>\"\",A26+1,\"\")","v":23},null,{"$f":"'Startovní listina'!G84","v":"B"},{"$f":"'Startovní listina'!B84","v":93},{"$f":"'Startovní listina'!C84","v":"Havlíček"},{"$f":"'Startovní listina'!D84","v":"Ivo"},{"$f":"'Startovní listina'!E84","v":1966},{"$f":"'Startovní listina'!F84","v":"Lánov - Krkonoše"},"02:28:22"]
[{"$f":"IF('Výsledková listina (2)'!D27<>\"\",A27+1,\"\")","v":24},null,{"$f":"'Startovní listina'!G87","v":"B"},{"$f":"'Startovní listina'!B87","v":96},{"$f":"'Startovní listina'!C87","v":"Hladký"},{"$f":"'Startovní listina'!D87","v":"Jiří"},{"$f":"'Startovní listina'!E87","v":1975},{"$f":"'Startovní listina'!F87","v":"Brno - Nový Lískovec"},"02:29:21"]
[{"$f":"IF('Výsledková listina (2)'!D28<>\"\",A28+1,\"\")","v":25},null,{"$f":"'Startovní listina'!G75","v":"B"},{"$f":"'Startovní listina'!B75","v":83},{"$f":"'Startovní listina'!C75","v":"Holoubek"},{"$f":"'Startovní listina'!D75","v":"Jindřich"},{"$f":"'Startovní listina'!E75","v":1968},{"$f":"'Startovní listina'!F75","v":"Brno"},"03:01:37"]
[{"$f":"IF('Výsledková listina (2)'!D29<>\"\",A29+1,\"\")","v":26},null,{"$f":"'Startovní listina'!G18","v":"E"},{"$f":"'Startovní listina'!B18","v":14},{"$f":"'Startovní listina'!C18","v":"Holý"},{"$f":"'Startovní listina'!D18","v":"Josef"},{"$f":"'Startovní listina'!E18","v":1941},{"$f":"'Startovní listina'!F18","v":"Moravská Slávia Brno"}]
[{"$f":"IF('Výsledková listina (2)'!D30<>\"\",A30+1,\"\")","v":27},null,{"$f":"'Startovní listina'!G41","v":"B"},{"$f":"'Startovní listina'!B41","v":42},{"$f":"'Startovní listina'!C41","v":"Horný"},{"$f":"'Startovní listina'!D41","v":"Pavel"},{"$f":"'Startovní listina'!E41","v":1973},{"$f":"'Startovní listina'!F41","v":"VHT Přerov"},"02:16:46"]
[{"$f":"IF('Výsledková listina (2)'!D31<>\"\",A31+1,\"\")","v":28},null,{"$f":"'Startovní listina'!G23","v":"E"},{"$f":"'Startovní listina'!B23","v":21},{"$f":"'Startovní listina'!C23","v":"Hrubý"},{"$f":"'Startovní listina'!D23","v":"Milan"},{"$f":"'Startovní listina'!E23","v":1938},{"$f":"'Startovní listina'!F23","v":"Blansko"}]
[{"$f":"IF('Výsledková listina (2)'!D32<>\"\",A32+1,\"\")","v":29},null,{"$f":"'Startovní listina'!G57","v":"A"},{"$f":"'Startovní listina'!B57","v":59},{"$f":"'Startovní listina'!C57","v":"Hübner"},{"$f":"'Startovní listina'!D57","v":"Jan"},{"$f":"'Startovní listina'!E57","v":1978},{"$f":"'Startovní listina'!F57","v":"SDH Bolešín"},"02:42:39"]
[{"$f":"IF('Výsledková listina (2)'!D33<>\"\",A33+1,\"\")","v":30},null,{"$f":"'Startovní listina'!G40","v":"B"},{"$f":"'Startovní listina'!B40","v":41},{"$f":"'Startovní listina'!C40","v":"Hýbl"},{"$f":"'Startovní listina'!D40","v":"Jiří"},{"$f":"'Startovní listina'!E40","v":1967},{"$f":"'Startovní listina'!F40","v":"Hrušovany u Brna"},"02:10:10"]
[{"$f":"IF('Výsledková listina (2)'!D34<>\"\",A34+1,\"\")","v":31},null,{"$f":"'Startovní listina'!G9","v":"B"},{"$f":"'Startovní listina'!B9","v":5},{"$f":"'Startovní listina'!C9","v":"Chramosta"},{"$f":"'Startovní listina'!D9","v":"Jaroslav"},{"$f":"'Startovní listina'!E9","v":1966},{"$f":"'Startovní listina'!F9","v":"JABOJA Team Děčín"},"02:05:55"]
[{"$f":"IF('Výsledková listina (2)'!D35<>\"\",A35+1,\"\")","v":32},null,{"$f":"'Startovní listina'!G77","v":"B"},{"$f":"'Startovní listina'!B77","v":85},{"$f":"'Startovní listina'!C77","v":"Jaskulka"},{"$f":"'Startovní listina'!D77","v":"Martin"},{"$f":"'Startovní listina'!E77","v":1968},{"$f":"'Startovní listina'!F77","v":"Kuřim"}]
[{"$f":"IF('Výsledková listina (2)'!D36<>\"\",A36+1,\"\")","v":33},null,{"$f":"'Startovní listina'!G81","v":"G"},{"$f":"'Startovní listina'!B81","v":90},{"$f":"'Startovní listina'!C81","v":"Ježová"},{"$f":"'Startovní listina'!D81","v":"Martina"},{"$f":"'Startovní listina'!E81","v":1975},{"$f":"'Startovní listina'!F81","v":"Brno"},"03:24:59"]
[{"$f":"IF('Výsledková listina (2)'!D37<>\"\",A37+1,\"\")","v":34},null,{"$f":"'Startovní listina'!G54","v":"F"},{"$f":"'Startovní listina'!B54","v":56},{"$f":"'Startovní listina'!C54","v":"Johaníková"},{"$f":"'Startovní listina'!D54","v":"Lucie"},{"$f":"'Startovní listina'!E54","v":1986},{"$f":"'Startovní listina'!F54","v":"Moravská Slávia Brno"},"02:37:38"]
[{"$f":"IF('Výsledková listina (2)'!D38<>\"\",A38+1,\"\")","v":35},null,{"$f":"'Startovní listina'!G94","v":"B"},{"$f":"'Startovní listina'!B94","v":103},{"$f":"'Startovní listina'!C94","v":"Junga"},{"$f":"'Startovní listina'!D94","v":"Stanislav"},{"$f":"'Startovní listina'!E94","v":1971},{"$f":"'Startovní listina'!F94","v":"Újezd u Brna"},"03:13:50"]
[{"$f":"IF('Výsledková listina (2)'!D39<>\"\",A39+1,\"\")","v":36},null,{"$f":"'Startovní listina'!G20","v":"A"},{"$f":"'Startovní listina'!B20","v":17},{"$f":"'Startovní listina'!C20","v":"Kameníček"},{"$f":"'Startovní listina'!D20","v":"Michal"},{"$f":"'Startovní listina'!E20","v":1986},{"$f":"'Startovní listina'!F20","v":"Vinařice"},"02:43:21"]
[{"$f":"IF('Výsledková listina (2)'!D40<>\"\",A40+1,\"\")","v":37},null,{"$f":"'Startovní listina'!G19","v":"H"},{"$f":"'Startovní listina'!B19","v":16},{"$f":"'Startovní listina'!C19","v":"Kameníčková"},{"$f":"'Startovní listina'!D19","v":"Veronika"},{"$f":"'Startovní listina'!E19","v":1966},{"$f":"'Startovní listina'!F19","v":"Vinařice"},"03:01:04"]
[{"$f":"IF('Výsledková listina (2)'!D41<>\"\",A41+1,\"\")","v":38},null,{"$f":"'Startovní listina'!G69","v":"D"},{"$f":"'Startovní listina'!B69","v":75},{"$f":"'Startovní listina'!C69","v":"Kaše"},{"$f":"'Startovní listina'!D69","v":"Jaroslav"},{"$f":"'Startovní listina'!E69","v":1953},{"$f":"'Startovní listina'!F69","v":"Club běžeckých outsiderů"},"DNF"]
[{"$f":"IF('Výsledková listina (2)'!D42<>\"\",A42+1,\"\")","v":39},null,{"$f":"'Startovní listina'!G38","v":"A"},{"$f":"'Startovní listina'!B38","v":38},{"$f":"'Startovní listina'!C38","v":"Kocur"},{"$f":"'Startovní listina'!D38","v":"Lukáš"},{"$f":"'Startovní listina'!E38","v":1977},{"$f":"'Startovní listina'!F38","v":"VHS Brno"},"02:26:38"]
[{"$f":"IF('Výsledková listina (2)'!D43<>\"\",A43+1,\"\")","v":40},null,{"$f":"'Startovní listina'!G80","v":"D"},{"$f":"'Startovní listina'!B80","v":89},{"$f":"'Startovní listina'!C80","v":"Kohoutek"},{"$f":"'Startovní listina'!D80","v":"Jaromír"},{"$f":"'Startovní listina'!E80","v":1955},{"$f":"'Startovní listina'!F80","v":"Brno"},"02:45:32"]
[{"$f":"IF('Výsledková listina (2)'!D44<>\"\",A44+1,\"\")","v":41},null,{"$f":"'Startovní listina'!G53","v":"A"},{"$f":"'Startovní listina'!B53","v":55},{"$f":"'Startovní listina'!C53","v":"Kolman"},{"$f":"'Startovní listina'!D53","v":"Jakub"},{"$f":"'Startovní listina'!E53","v":1976},{"$f":"'Startovní listina'!F53","v":"Posilovna Průvan"},"02:46:25"]
[{"$f":"IF('Výsledková listina (2)'!D45<>\"\",A45+1,\"\")","v":42},null,{"$f":"'Startovní listina'!G11","v":"G"},{"$f":"'Startovní listina'!B11","v":7},{"$f":"'Startovní listina'!C11","v":"Komárková"},{"$f":"'Startovní listina'!D11","v":"Zdeňka"},{"$f":"'Startovní listina'!E11","v":1974},{"$f":"'Startovní listina'!F11","v":"SDH Bolešín"},"02:45:37"]
[{"$f":"IF('Výsledková listina (2)'!D46<>\"\",A46+1,\"\")","v":43},null,{"$f":"'Startovní listina'!G89","v":"B"},{"$f":"'Startovní listina'!B89","v":98},{"$f":"'Startovní listina'!C89","v":"Konečný"},{"$f":"'Startovní listina'!D89","v":"Libor"},{"$f":"'Startovní listina'!E89","v":1971},{"$f":"'Startovní listina'!F89","v":"Kuřim"},"02:23:07"]
[{"$f":"IF('Výsledková listina (2)'!D47<>\"\",A47+1,\"\")","v":44},null,{"$f":"'Startovní listina'!G93","v":"B"},{"$f":"'Startovní listina'!B93","v":102},{"$f":"'Startovní listina'!C93","v":"Konečný"},{"$f":"'Startovní listina'!D93","v":"Jaroslav"},{"$f":"'Startovní listina'!E93","v":1969},{"$f":"'Startovní listina'!F93","v":"Popůvky"}]
[{"$f":"IF('Výsledková listina (2)'!D48<>\"\",A48+1,\"\")","v":45},null,{"$f":"'Startovní listina'!G78","v":"A"},{"$f":"'Startovní listina'!B78","v":86},{"$f":"'Startovní listina'!C78","v":"Kosmák"},{"$f":"'Startovní listina'!D78","v":"Václav"},{"$f":"'Startovní listina'!E78","v":1983},{"$f":"'Startovní listina'!F78","v":"Brno"},"02:49:04"]
[{"$f":"IF('Výsledková listina (2)'!D49<>\"\",A49+1,\"\")","v":46},null,{"$f":"'Startovní listina'!G35","v":"H"},{"$f":"'Startovní listina'!B35","v":35},{"$f":"'Startovní listina'!C35","v":"Krátká"},{"$f":"'Startovní listina'!D35","v":"Anna"},{"$f":"'Startovní listina'!E35","v":1969},{"$f":"'Startovní listina'!F35","v":"Hvězda SKP Pardubice"},"02:31:40"]
[{"$f":"IF('Výsledková listina (2)'!D50<>\"\",A50+1,\"\")","v":47},null,{"$f":"'Startovní listina'!G36","v":"C"},{"$f":"'Startovní listina'!B36","v":36},{"$f":"'Startovní listina'!C36","v":"Krátký"},{"$f":"'Startovní listina'!D36","v":"Josef"},{"$f":"'Startovní listina'!E36","v":1965},{"$f":"'Startovní listina'!F36","v":"Hvězda SKP Pardubice"}]
[{"$f":"IF('Výsledková listina (2)'!D51<>\"\",A51+1,\"\")","v":48},null,{"$f":"'Startovní listina'!G29","v":"C"},{"$f":"'Startovní listina'!B29","v":28},{"$f":"'Startovní listina'!C29","v":"Kratochvíl"},{"$f":"'Startovní listina'!D29","v":"Pavel"},{"$f":"'Startovní listina'!E29","v":1960},{"$f":"'Startovní listina'!F29","v":"Atletic Třebíč"},"02:19:07"]
[{"$f":"IF('Výsledková listina (2)'!D52<>\"\",A52+1,\"\")","v":49},null,{"$f":"'Startovní listina'!G86","v":"A"},{"$f":"'Startovní listina'!B86","v":95},{"$f":"'Startovní listina'!C86","v":"Kratochvíl"},{"$f":"'Startovní listina'!D86","v":"Jaroslav"},{"$f":"'Startovní listina'!E86","v":1977},{"$f":"'Startovní listina'!F86","v":"SDH Hluboké"},"02:21:00"]
[{"$f":"IF('Výsledková listina (2)'!D53<>\"\",A53+1,\"\")","v":50},null,{"$f":"'Startovní listina'!G17","v":"C"},{"$f":"'Startovní listina'!B17","v":13},{"$f":"'Startovní listina'!C17","v":"Kresta"},{"$f":"'Startovní listina'!D17","v":"Roman"},{"$f":"'Startovní listina'!E17","v":1965},{"$f":"'Startovní listina'!F17","v":"Brno"},"03:06:22"]
[{"$f":"IF('Výsledková listina (2)'!D54<>\"\",A54+1,\"\")","v":51},null,{"$f":"'Startovní listina'!G37","v":"B"},{"$f":"'Startovní listina'!B37","v":37},{"$f":"'Startovní listina'!C37","v":"Kropáček"},{"$f":"'Startovní listina'!D37","v":"Jaroslav"},{"$f":"'Startovní listina'!E37","v":1970},{"$f":"'Startovní listina'!F37","v":"Brno"},"02:32:28"]
[{"$f":"IF('Výsledková listina (2)'!D55<>\"\",A55+1,\"\")","v":52},null,{"$f":"'Startovní listina'!G32","v":"A"},{"$f":"'Startovní listina'!B32","v":31},{"$f":"'Startovní listina'!C32","v":"Kryštof"},{"$f":"'Startovní listina'!D32","v":"Ondřej"},{"$f":"'Startovní listina'!E32","v":1976},{"$f":"'Startovní listina'!F32","v":"Jiskra Vír"},"02:59:30"]
[{"$f":"IF('Výsledková listina (2)'!D56<>\"\",A56+1,\"\")","v":53},null,{"$f":"'Startovní listina'!G58","v":"A"},{"$f":"'Startovní listina'!B58","v":60},{"$f":"'Startovní listina'!C58","v":"Kupidlovský"},{"$f":"'Startovní listina'!D58","v":"Daniel"},{"$f":"'Startovní listina'!E58","v":1976},{"$f":"'Startovní listina'!F58","v":"Stodůlky"},"02:07:54"]
[{"$f":"IF('Výsledková listina (2)'!D57<>\"\",A57+1,\"\")","v":54},null,{"$f":"'Startovní listina'!G26","v":"H"},{"$f":"'Startovní listina'!B26","v":24},{"$f":"'Startovní listina'!C26","v":"Mahelová"},{"$f":"'Startovní listina'!D26","v":"Jitka"},{"$f":"'Startovní listina'!E26","v":1962},{"$f":"'Startovní listina'!F26","v":"Atletic Třebíč"},"03:06:38"]
[{"$f":"IF('Výsledková listina (2)'!D58<>\"\",A58+1,\"\")","v":55},null,{"$f":"'Startovní listina'!G52","v":"D"},{"$f":"'Startovní listina'!B52","v":54},{"$f":"'Startovní listina'!C52","v":"Mareš"},{"$f":"'Startovní listina'!D52","v":"Bohumil"},{"$f":"'Startovní listina'!E52","v":1951},{"$f":"'Startovní listina'!F52","v":"LEAR Brno"},"03:14:48"]
[{"$f":"IF('Výsledková listina (2)'!D59<>\"\",A59+1,\"\")","v":56},null,{"$f":"'Startovní listina'!G66","v":"A"},{"$f":"'Startovní listina'!B66","v":72},{"$f":"'Startovní listina'!C66","v":"Mička"},{"$f":"'Startovní listina'!D66","v":"Michal"},{"$f":"'Startovní listina'!E66","v":1987},{"$f":"'Startovní listina'!F66","v":"Žďár nad Sázavou"},"02:46:48"]
[{"$f":"IF('Výsledková listina (2)'!D60<>\"\",A60+1,\"\")","v":57},null,{"$f":"'Startovní listina'!G31","v":"A"},{"$f":"'Startovní listina'!B31","v":30},{"$f":"'Startovní listina'!C31","v":"Mikeš"},{"$f":"'Startovní listina'!D31","v":"Petr"},{"$f":"'Startovní listina'!E31","v":1977},{"$f":"'Startovní listina'!F31","v":"Vyškovec"},"02:38:44"]
[{"$f":"IF('Výsledková listina (2)'!D61<>\"\",A61+1,\"\")","v":58},null,{"$f":"'Startovní listina'!G92","v":"A"},{"$f":"'Startovní listina'!B92","v":101},{"$f":"'Startovní listina'!C92","v":"Milka"},{"$f":"'Startovní listina'!D92","v":"Zdeněk"},{"$f":"'Startovní listina'!E92","v":1984},{"$f":"'Startovní listina'!F92","v":"Brno"},"03:04:27"]
[{"$f":"IF('Výsledková listina (2)'!D62<>\"\",A62+1,\"\")","v":59},null,{"$f":"'Startovní listina'!G45","v":"B"},{"$f":"'Startovní listina'!B45","v":46},{"$f":"'Startovní listina'!C45","v":"Münster"},{"$f":"'Startovní listina'!D45","v":"Libor"},{"$f":"'Startovní listina'!E45","v":1966},{"$f":"'Startovní listina'!F45","v":"Blansko"},"03:21:11"]
[{"$f":"IF('Výsledková listina (2)'!D63<>\"\",A63+1,\"\")","v":60},null,{"$f":"'Startovní listina'!G34","v":"C"},{"$f":"'Startovní listina'!B34","v":34},{"$f":"'Startovní listina'!C34","v":"Navrátil"},{"$f":"'Startovní listina'!D34","v":"Petr"},{"$f":"'Startovní listina'!E34","v":1963},{"$f":"'Startovní listina'!F34","v":"Rožná"},"03:00:59"]
[{"$f":"IF('Výsledková listina (2)'!D64<>\"\",A64+1,\"\")","v":61},null,{"$f":"'Startovní listina'!G8","v":"F"},{"$f":"'Startovní listina'!B8","v":4},{"$f":"'Startovní listina'!C8","v":"Navrátilová"},{"$f":"'Startovní listina'!D8","v":"Vlasta"},{"$f":"'Startovní listina'!E8","v":1983},{"$f":"'Startovní listina'!F8","v":"Vír"},"03:30:08"]
[{"$f":"IF('Výsledková listina (2)'!D65<>\"\",A65+1,\"\")","v":62},null,{"$f":"'Startovní listina'!G73","v":"D"},{"$f":"'Startovní listina'!B73","v":80},{"$f":"'Startovní listina'!C73","v":"Nekuža"},{"$f":"'Startovní listina'!D73","v":"Jiří"},{"$f":"'Startovní listina'!E73","v":1951},{"$f":"'Startovní listina'!F73","v":"RUNNERS Zbýšov"},"03:01:32"]
[{"$f":"IF('Výsledková listina (2)'!D66<>\"\",A66+1,\"\")","v":63},null,{"$f":"'Startovní listina'!G27","v":"A"},{"$f":"'Startovní listina'!B27","v":26},{"$f":"'Startovní listina'!C27","v":"Nováček"},{"$f":"'Startovní listina'!D27","v":"Tomáš"},{"$f":"'Startovní listina'!E27","v":1983},{"$f":"'Startovní listina'!F27","v":"Atletic Třebíč"},"02:05:07"]
[{"$f":"IF('Výsledková listina (2)'!D67<>\"\",A67+1,\"\")","v":64},null,{"$f":"'Startovní listina'!G70","v":"C"},{"$f":"'Startovní listina'!B70","v":76},{"$f":"'Startovní listina'!C70","v":"Novotný"},{"$f":"'Startovní listina'!D70","v":"Petr"},{"$f":"'Startovní listina'!E70","v":1965},{"$f":"'Startovní listina'!F70","v":"Kuřim"},"02:57:35"]
[{"$f":"IF('Výsledková listina (2)'!D68<>\"\",A68+1,\"\")","v":65},null,{"$f":"'Startovní listina'!G51","v":"A"},{"$f":"'Startovní listina'!B51","v":53},{"$f":"'Startovní listina'!C51","v":"Očenášek"},{"$f":"'Startovní listina'!D51","v":"Zdeněk"},{"$f":"'Startovní listina'!E51","v":1976},{"$f":"'Startovní listina'!F51","v":"Brno"},"02:19:36"]
[{"$f":"IF('Výsledková listina (2)'!D69<>\"\",A69+1,\"\")","v":66},null,{"$f":"'Startovní listina'!G98","v":"B"},{"$f":"'Startovní listina'!B98","v":107},{"$f":"'Startovní listina'!C98","v":"Orálek"},{"$f":"'Startovní listina'!D98","v":"Daniel"},{"$f":"'Startovní listina'!E98","v":1970},{"$f":"'Startovní listina'!F98","v":"Moravská Slávia Brno"},"01:54:34"]
[{"$f":"IF('Výsledková listina (2)'!D70<>\"\",A70+1,\"\")","v":67},null,{"$f":"'Startovní listina'!G50","v":"F"},{"$f":"'Startovní listina'!B50","v":51},{"$f":"'Startovní listina'!C50","v":"Pešáková"},{"$f":"'Startovní listina'!D50","v":"Mirka"},{"$f":"'Startovní listina'!E50","v":1985},{"$f":"'Startovní listina'!F50","v":"AK RACERS Tetčice"},"02:21:57"]
[{"$f":"IF('Výsledková listina (2)'!D71<>\"\",A71+1,\"\")","v":68},null,{"$f":"'Startovní listina'!G21","v":"F"},{"$f":"'Startovní listina'!B21","v":18},{"$f":"'Startovní listina'!C21","v":"Peštuková"},{"$f":"'Startovní listina'!D21","v":"Ivana"},{"$f":"'Startovní listina'!E21","v":1990},{"$f":"'Startovní listina'!F21","v":"Vinařice"}]
[{"$f":"IF('Výsledková listina (2)'!D72<>\"\",A72+1,\"\")","v":69},null,{"$f":"'Startovní listina'!G6","v":"A"},{"$f":"'Startovní listina'!B6","v":2},{"$f":"'Startovní listina'!C6","v":"Pivec"},{"$f":"'Startovní listina'!D6","v":"Jan"},{"$f":"'Startovní listina'!E6","v":1981},{"$f":"'Startovní listina'!F6","v":"HAL 3000 Brno"},"02:40:25"]
[{"$f":"IF('Výsledková listina (2)'!D73<>\"\",A73+1,\"\")","v":70},null,{"$f":"'Startovní listina'!G48","v":"B"},{"$f":"'Startovní listina'!B48","v":49},{"$f":"'Startovní listina'!C48","v":"Plekanec"},{"$f":"'Startovní listina'!D48","v":"Juraj"},{"$f":"'Startovní listina'!E48","v":1974},{"$f":"'Startovní listina'!F48","v":"Brno"},"02:21:35"]
[{"$f":"IF('Výsledková listina (2)'!D74<>\"\",A74+1,\"\")","v":71},null,{"$f":"'Startovní listina'!G97","v":"H"},{"$f":"'Startovní listina'!B97","v":106},{"$f":"'Startovní listina'!C97","v":"Podmelová"},{"$f":"'Startovní listina'!D97","v":"Vilma"},{"$f":"'Startovní listina'!E97","v":1962},{"$f":"'Startovní listina'!F97","v":"Moravská Slávia Brno"},"03:14:54"]
[{"$f":"IF('Výsledková listina (2)'!D75<>\"\",A75+1,\"\")","v":72},null,{"$f":"'Startovní listina'!G22","v":"A"},{"$f":"'Startovní listina'!B22","v":19},{"$f":"'Startovní listina'!C22","v":"Pokorný"},{"$f":"'Startovní listina'!D22","v":"Václav"},{"$f":"'Startovní listina'!E22","v":1978},{"$f":"'Startovní listina'!F22","v":"Brno"},"02:25:09"]
[{"$f":"IF('Výsledková listina (2)'!D76<>\"\",A76+1,\"\")","v":73},null,{"$f":"'Startovní listina'!G82","v":"A"},{"$f":"'Startovní listina'!B82","v":91},{"$f":"'Startovní listina'!C82","v":"Poneš"},{"$f":"'Startovní listina'!D82","v":"Pavel"},{"$f":"'Startovní listina'!E82","v":1978},{"$f":"'Startovní listina'!F82","v":"TK SOKOLI Brno"},"02:50:59"]
[{"$f":"IF('Výsledková listina (2)'!D77<>\"\",A77+1,\"\")","v":74},null,{"$f":"'Startovní listina'!G96","v":"A"},{"$f":"'Startovní listina'!B96","v":105},{"$f":"'Startovní listina'!C96","v":"Procházka"},{"$f":"'Startovní listina'!D96","v":"Pavel"},{"$f":"'Startovní listina'!E96","v":1988},{"$f":"'Startovní listina'!F96","v":"Bystřice nad Pernštejnem"},"03:12:26"]
[{"$f":"IF('Výsledková listina (2)'!D78<>\"\",A78+1,\"\")","v":75},null,{"$f":"'Startovní listina'!G30","v":"B"},{"$f":"'Startovní listina'!B30","v":29},{"$f":"'Startovní listina'!C30","v":"Provazník"},{"$f":"'Startovní listina'!D30","v":"Milan"},{"$f":"'Startovní listina'!E30","v":1966},{"$f":"'Startovní listina'!F30","v":"Polička"},"02:37:53"]
[{"$f":"IF('Výsledková listina (2)'!D79<>\"\",A79+1,\"\")","v":76},null,{"$f":"'Startovní listina'!G64","v":"F"},{"$f":"'Startovní listina'!B64","v":69},{"$f":"'Startovní listina'!C64","v":"Rokosová"},{"$f":"'Startovní listina'!D64","v":"Ivana"},{"$f":"'Startovní listina'!E64","v":1982},{"$f":"'Startovní listina'!F64","v":"Polička"},"03:18:47"]
[{"$f":"IF('Výsledková listina (2)'!D80<>\"\",A80+1,\"\")","v":77},null,{"$f":"'Startovní listina'!G39","v":"B"},{"$f":"'Startovní listina'!B39","v":40},{"$f":"'Startovní listina'!C39","v":"Ryška"},{"$f":"'Startovní listina'!D39","v":"Vít"},{"$f":"'Startovní listina'!E39","v":1975},{"$f":"'Startovní listina'!F39","v":"VSK Univerzita Brno"},"02:07:35"]
[{"$f":"IF('Výsledková listina (2)'!D81<>\"\",A81+1,\"\")","v":78},null,{"$f":"'Startovní listina'!G56","v":"A"},{"$f":"'Startovní listina'!B56","v":58},{"$f":"'Startovní listina'!C56","v":"Řezníček"},{"$f":"'Startovní listina'!D56","v":"Roman"},{"$f":"'Startovní listina'!E56","v":1977},{"$f":"'Startovní listina'!F56","v":"Žďár nad Sázavou"},"02:24:19"]
[{"$f":"IF('Výsledková listina (2)'!D82<>\"\",A82+1,\"\")","v":79},null,{"$f":"'Startovní listina'!G83","v":"B"},{"$f":"'Startovní listina'!B83","v":92},{"$f":"'Startovní listina'!C83","v":"Řezníček"},{"$f":"'Startovní listina'!D83","v":"Petr"},{"$f":"'Startovní listina'!E83","v":1973},{"$f":"'Startovní listina'!F83","v":"Polnička"},"02:31:15"]
[{"$f":"IF('Výsledková listina (2)'!D83<>\"\",A83+1,\"\")","v":80},null,{"$f":"'Startovní listina'!G61","v":"A"},{"$f":"'Startovní listina'!B61","v":63},{"$f":"'Startovní listina'!C61","v":"Sedláček"},{"$f":"'Startovní listina'!D61","v":"Aleš"},{"$f":"'Startovní listina'!E61","v":1976},{"$f":"'Startovní listina'!F61","v":"Sokol Přísnotice"},"02:27:55"]
[{"$f":"IF('Výsledková listina (2)'!D84<>\"\",A84+1,\"\")","v":81},null,{"$f":"'Startovní listina'!G95","v":"C"},{"$f":"'Startovní listina'!B95","v":104},{"$f":"'Startovní listina'!C95","v":"Sedláček"},{"$f":"'Startovní listina'!D95","v":"Svatopluk"},{"$f":"'Startovní listina'!E95","v":1957},{"$f":"'Startovní listina'!F95","v":"Moravská Slávia Brno"},"02:34:44"]
[{"$f":"IF('Výsledková listina (2)'!D85<>\"\",A85+1,\"\")","v":82},null,{"$f":"'Startovní listina'!G65","v":"B"},{"$f":"'Startovní listina'!B65","v":70},{"$f":"'Startovní listina'!C65","v":"Strakoš"},{"$f":"'Startovní listina'!D65","v":"Vilém"},{"$f":"'Startovní listina'!E65","v":1969},{"$f":"'Startovní listina'!F65","v":"SK Fuga Kuřim"},"02:58:55"]
[{"$f":"IF('Výsledková listina (2)'!D86<>\"\",A86+1,\"\")","v":83},null,{"$f":"'Startovní listina'!G43","v":"C"},{"$f":"'Startovní listina'!B43","v":44},{"$f":"'Startovní listina'!C43","v":"Suchý"},{"$f":"'Startovní listina'!D43","v":"Karel"},{"$f":"'Startovní listina'!E43","v":1956},{"$f":"'Startovní listina'!F43","v":"Atletic Třebíč"},"02:32:49"]
[{"$f":"IF('Výsledková listina (2)'!D87<>\"\",A87+1,\"\")","v":84},null,{"$f":"'Startovní listina'!G33","v":"H"},{"$f":"'Startovní listina'!B33","v":33},{"$f":"'Startovní listina'!C33","v":"Šedová"},{"$f":"'Startovní listina'!D33","v":"Věra"},{"$f":"'Startovní listina'!E33","v":1964},{"$f":"'Startovní listina'!F33","v":"Atletic Třebíč"}]
[{"$f":"IF('Výsledková listina (2)'!D88<>\"\",A88+1,\"\")","v":85},null,{"$f":"'Startovní listina'!G76","v":"C"},{"$f":"'Startovní listina'!B76","v":84},{"$f":"'Startovní listina'!C76","v":"Šilhan"},{"$f":"'Startovní listina'!D76","v":"Vladimír"},{"$f":"'Startovní listina'!E76","v":1957},{"$f":"'Startovní listina'!F76","v":"Original Ježek Babice nad Svitavou"},"03:18:56"]
[{"$f":"IF('Výsledková listina (2)'!D89<>\"\",A89+1,\"\")","v":86},null,{"$f":"'Startovní listina'!G12","v":"B"},{"$f":"'Startovní listina'!B12","v":8},{"$f":"'Startovní listina'!C12","v":"Škapa"},{"$f":"'Startovní listina'!D12","v":"Marek"},{"$f":"'Startovní listina'!E12","v":1971},{"$f":"'Startovní listina'!F12","v":"MK Seitl Ostrava"},"02:05:40"]
[{"$f":"IF('Výsledková listina (2)'!D90<>\"\",A90+1,\"\")","v":87},null,{"$f":"'Startovní listina'!G24","v":"B"},{"$f":"'Startovní listina'!B24","v":22},{"$f":"'Startovní listina'!C24","v":"Štýbnar"},{"$f":"'Startovní listina'!D24","v":"Zbyněk"},{"$f":"'Startovní listina'!E24","v":1974},{"$f":"'Startovní listina'!F24","v":"Běžec Vysočiny Jihlava"},"02:08:44"]
[{"$f":"IF('Výsledková listina (2)'!D91<>\"\",A91+1,\"\")","v":88},null,{"$f":"'Startovní listina'!G16","v":"H"},{"$f":"'Startovní listina'!B16","v":12},{"$f":"'Startovní listina'!C16","v":"Tesařová"},{"$f":"'Startovní listina'!D16","v":"Marie"},{"$f":"'Startovní listina'!E16","v":1954},{"$f":"'Startovní listina'!F16","v":"Křižanov"}]
[{"$f":"IF('Výsledková listina (2)'!D92<>\"\",A92+1,\"\")","v":89},null,{"$f":"'Startovní listina'!G88","v":"G"},{"$f":"'Startovní listina'!B88","v":97},{"$f":"'Startovní listina'!C88","v":"Tonarová"},{"$f":"'Startovní listina'!D88","v":"Miroslava"},{"$f":"'Startovní listina'!E88","v":1976},{"$f":"'Startovní listina'!F88","v":"Bory"},"02:53:55"]
[{"$f":"IF('Výsledková listina (2)'!D93<>\"\",A93+1,\"\")","v":90},null,{"$f":"'Startovní listina'!G90","v":"A"},{"$f":"'Startovní listina'!B90","v":99},{"$f":"'Startovní listina'!C90","v":"Vacula"},{"$f":"'Startovní listina'!D90","v":"Ondřej"},{"$f":"'Startovní listina'!E90","v":1981},{"$f":"'Startovní listina'!F90","v":"AC Lelek Lelekovice"},"02:55:52"]
[{"$f":"IF('Výsledková listina (2)'!D94<>\"\",A94+1,\"\")","v":91},null,{"$f":"'Startovní listina'!G25","v":"F"},{"$f":"'Startovní listina'!B25","v":23},{"$f":"'Startovní listina'!C25","v":"Vašalovská"},{"$f":"'Startovní listina'!D25","v":"Petra"},{"$f":"'Startovní listina'!E25","v":1986},{"$f":"'Startovní listina'!F25","v":"Atletic Třebíč"},"03:04:10"]
[{"$f":"IF('Výsledková listina (2)'!D95<>\"\",A95+1,\"\")","v":92},null,{"$f":"'Startovní listina'!G72","v":"D"},{"$f":"'Startovní listina'!B72","v":79},{"$f":"'Startovní listina'!C72","v":"Vídeňský"},{"$f":"'Startovní listina'!D72","v":"Jiří"},{"$f":"'Startovní listina'!E72","v":1947},{"$f":"'Startovní listina'!F72","v":"KD Moravské Budějovice"}]
[{"$f":"IF('Výsledková listina (2)'!D96<>\"\",A96+1,\"\")","v":93},null,{"$f":"'Startovní listina'!G13","v":"D"},{"$f":"'Startovní listina'!B13","v":9},{"$f":"'Startovní listina'!C13","v":"Výtisk"},{"$f":"'Startovní listina'!D13","v":"Alfons"},{"$f":"'Startovní listina'!E13","v":1949},{"$f":"'Startovní listina'!F13","v":"MK Seitl Ostrava"},"02:40:16"]
[{"$f":"IF('Výsledková listina (2)'!D97<>\"\",A97+1,\"\")","v":94},null,{"$f":"'Startovní listina'!G10","v":"C"},{"$f":"'Startovní listina'!B10","v":6},{"$f":"'Startovní listina'!C10","v":"Zourek"},{"$f":"'Startovní listina'!D10","v":"Karel"},{"$f":"'Startovní listina'!E10","v":1959},{"$f":"'Startovní listina'!F10","v":"Brno"},"03:00:21"]
[{"$f":"IF('Výsledková listina (2)'!D98<>\"\",A98+1,\"\")","v":95},null,{"$f":"'Startovní listina'!G99","v":""},{"$f":"'Startovní listina'!B99","v":""},{"$f":"'Startovní listina'!C99","v":""},{"$f":"'Startovní listina'!D99","v":""},{"$f":"'Startovní listina'!E99","v":""},{"$f":"'Startovní listina'!F99","v":""}]
[{"$f":"IF('Výsledková listina (2)'!D99<>\"\",A99+1,\"\")","v":""},null,{"$f":"'Startovní listina'!G100","v":""},{"$f":"'Startovní listina'!B100","v":""},{"$f":"'Startovní listina'!C100","v":""},{"$f":"'Startovní listina'!D100","v":""},{"$f":"'Startovní listina'!E100","v":""},{"$f":"'Startovní listina'!F100","v":""}]
[{"$f":"IF('Výsledková listina (2)'!D100<>\"\",A100+1,\"\")","v":""},null,{"$f":"'Startovní listina'!G101","v":""},{"$f":"'Startovní listina'!B101","v":""},{"$f":"'Startovní listina'!C101","v":""},{"$f":"'Startovní listina'!D101","v":""},{"$f":"'Startovní listina'!E101","v":""},{"$f":"'Startovní listina'!F101","v":""}]
[{"$f":"IF('Výsledková listina (2)'!D101<>\"\",A101+1,\"\")","v":""},null,{"$f":"'Startovní listina'!G102","v":""},{"$f":"'Startovní listina'!B102","v":""},{"$f":"'Startovní listina'!C102","v":""},{"$f":"'Startovní listina'!D102","v":""},{"$f":"'Startovní listina'!E102","v":""},{"$f":"'Startovní listina'!F102","v":""}]
[{"$f":"IF('Výsledková listina (2)'!D102<>\"\",A102+1,\"\")","v":""},null,{"$f":"'Startovní listina'!G103","v":""},{"$f":"'Startovní listina'!B103","v":""},{"$f":"'Startovní listina'!C103","v":""},{"$f":"'Startovní listina'!D103","v":""},{"$f":"'Startovní listina'!E103","v":""},{"$f":"'Startovní listina'!F103","v":""}]